BIOGUIDE_ID,OFFICE,QUARTER,CATEGORY,DATE,PAYEE,START DATE,END DATE,PURPOSE,AMOUNT,YEAR,TRANSCODE,TRANSCODELONG,RECORDID,RECIP (orig.)
,OFFICE OF THE SPEAKER,2013Q4,TRAVEL,10-08,"SOMMERS,MICHAEL",07/22/13,09/17/13,TAXI/PARKING/TOLLS,40.00,2013,AP,Accounts payable,E0070935,"SOMMERS,MICHAEL"
,OFFICE OF THE SPEAKER,2013Q4,TRAVEL,11-13,"SMITH, KEVIN",07/22/13,09/16/13,TAXI/PARKING/TOLLS,150.00,2013,AP,Accounts payable,E0083706,"SMITH, KEVIN"
,OFFICE OF THE SPEAKER,2013Q4,SUPPLIES AND MATERIALS,10-02,DAIOHS USA INC,05/24/13,05/24/13,FOOD & BEVERAGE,-623.74,2013,AR,Accounts receivable,AC-08567,DAIOHS USA INC
,OFFICE OF THE SPEAKER,2013Q4,SUPPLIES AND MATERIALS,10-09,DAIOHS FIRST CHOICE COFFEE SERVICES,09/25/13,09/25/13,FOOD & BEVERAGE,555.67,2013,AP,Accounts payable,E0072133,DAIOHS FIRST CHOICE COFFEE SERVICES
,OFFICE OF THE SPEAKER,2013Q4,SUPPLIES AND MATERIALS,10-09,DAIOHS FIRST CHOICE COFFEE SERVICES,09/11/13,09/11/13,FOOD & BEVERAGE,617.05,2013,AP,Accounts payable,E0072135,DAIOHS FIRST CHOICE COFFEE SERVICES
,OFFICE OF THE SPEAKER,2013Q4,SUPPLIES AND MATERIALS,10-09,DAIOHS FIRST CHOICE COFFEE SERVICES,09/18/13,09/18/13,FOOD & BEVERAGE,538.54,2013,AP,Accounts payable,E0072139,DAIOHS FIRST CHOICE COFFEE SERVICES
,OFFICE OF THE SPEAKER,2013Q4,SUPPLIES AND MATERIALS,10-09,DAIOHS FIRST CHOICE COFFEE SERVICES,09/11/13,09/11/13,FOOD & BEVERAGE,15.00,2013,AP,Accounts payable,E0072141,DAIOHS FIRST CHOICE COFFEE SERVICES
,OFFICE OF THE SPEAKER,2013Q4,SUPPLIES AND MATERIALS,10-17,"LOHMEYER, SONJA M",09/04/13,09/13/13,FOOD & BEVERAGE,178.22,2013,AP,Accounts payable,00691490,"LOHMEYER, SONJA M"
,OFFICE OF THE SPEAKER,2013Q4,SUPPLIES AND MATERIALS,10-18,CITI PCARD-CAPITOL HOST (RIDGEWEL,08/29/13,09/28/13,FOOD & BEVERAGE,165.00,2013,AP,Accounts payable,00695455,CITI PCARD-CAPITOL HOST (RIDGEWEL
,OFFICE OF THE SPEAKER,2013Q4,SUPPLIES AND MATERIALS,10-18,CITI PCARD-CORNER BAKERY,08/29/13,09/28/13,FOOD & BEVERAGE,457.60,2013,AP,Accounts payable,00695455,CITI PCARD-CORNER BAKERY
,OFFICE OF THE SPEAKER,2013Q4,SUPPLIES AND MATERIALS,10-18,CITI PCARD-FIREHOOK - CAPITOL HIL,08/29/13,09/28/13,FOOD & BEVERAGE,36.90,2013,AP,Accounts payable,00695455,CITI PCARD-FIREHOOK - CAPITOL HIL
,OFFICE OF THE SPEAKER,2013Q4,SUPPLIES AND MATERIALS,10-18,CITI PCARD-HILL COUNTRY BARBECUE,08/29/13,09/28/13,FOOD & BEVERAGE,377.50,2013,AP,Accounts payable,00695455,CITI PCARD-HILL COUNTRY BARBECUE
,OFFICE OF THE SPEAKER,2013Q4,SUPPLIES AND MATERIALS,10-18,CITI PCARD-PORT OF PIRAEUS III,08/29/13,09/28/13,FOOD & BEVERAGE,236.24,2013,AP,Accounts payable,00695455,CITI PCARD-PORT OF PIRAEUS III
,OFFICE OF THE SPEAKER,2013Q4,SUPPLIES AND MATERIALS,10-18,CITI PCARD-TAYLOR GOURMET,08/29/13,09/28/13,FOOD & BEVERAGE,470.80,2013,AP,Accounts payable,00695455,CITI PCARD-TAYLOR GOURMET
,OFFICE OF THE SPEAKER,2013Q4,SUPPLIES AND MATERIALS,10-18,CITI PCARD-WHOLEFDS PST,08/29/13,09/28/13,FOOD & BEVERAGE,291.95,2013,AP,Accounts payable,00695455,CITI PCARD-WHOLEFDS PST
,OFFICE OF THE SPEAKER,2013Q4,SUPPLIES AND MATERIALS,11-20,DAIOHS FIRST CHOICE COFFEE SERVICES,08/21/13,08/21/13,FOOD & BEVERAGE,764.05,2013,AP,Accounts payable,E0086876,DAIOHS FIRST CHOICE COFFEE SERVICES
,OFFICE OF THE SPEAKER,2013Q4,SUPPLIES AND MATERIALS,11-21,CITI PCARD-CHICK-FIL-A,09/29/13,09/30/13,FOOD & BEVERAGE,427.46,2013,AP,Accounts payable,00700548,CITI PCARD-CHICK-FIL-A
,OFFICE OF THE SPEAKER,2013Q4,SUPPLIES AND MATERIALS,11-21,CITI PCARD-CHIPOTLE,09/29/13,09/30/13,FOOD & BEVERAGE,532.00,2013,AP,Accounts payable,00700548,CITI PCARD-CHIPOTLE
,OFFICE OF THE SPEAKER,2013Q4,SUPPLIES AND MATERIALS,11-21,CITI PCARD-MATCHBOX CAPITOL HILL,09/29/13,09/30/13,FOOD & BEVERAGE,524.40,2013,AP,Accounts payable,00700548,CITI PCARD-MATCHBOX CAPITOL HILL
,OFFICE OF THE MAJORITY LEADER,2013Q4,TRAVEL,10-14,"GUSTAFSON,NICOLE M",03/05/13,03/25/13,MEALS,49.53,2013,AP,Accounts payable,E0073806,"GUSTAFSON,NICOLE M"
,OFFICE OF THE MAJORITY LEADER,2013Q4,TRAVEL,10-14,"GUSTAFSON,NICOLE M",03/07/13,03/08/13,CAR RENTAL,112.06,2013,AP,Accounts payable,E0073806,"GUSTAFSON,NICOLE M"
,OFFICE OF THE MAJORITY LEADER,2013Q4,TRAVEL,10-14,"GUSTAFSON,NICOLE M",03/08/13,03/08/13,GASOLINE,13.00,2013,AP,Accounts payable,E0073806,"GUSTAFSON,NICOLE M"
,OFFICE OF THE MAJORITY LEADER,2013Q4,TRAVEL,10-14,"GUSTAFSON,NICOLE M",01/07/13,09/22/13,TAXI/PARKING/TOLLS,264.90,2013,AP,Accounts payable,E0073806,"GUSTAFSON,NICOLE M"
,OFFICE OF THE MAJORITY LEADER,2013Q4,TRAVEL,10-14,"GUSTAFSON,NICOLE M",10/11/12,10/11/12,TAXI/PARKING/TOLLS,11.05,2013,AP,Accounts payable,E0073807,"GUSTAFSON,NICOLE M"
,OFFICE OF THE MAJORITY LEADER,2013Q4,TRAVEL,10-14,"VILLARI, GENEVIEVE",08/22/13,08/22/13,PRIVATE AUTO MILEAGE,61.02,2013,AP,Accounts payable,E0073810,"VILLARI, GENEVIEVE"
,OFFICE OF THE MAJORITY LEADER,2013Q4,TRAVEL,10-24,"WALSH, WILLIAM C",09/22/13,09/23/13,TAXI/PARKING/TOLLS,16.83,2013,AP,Accounts payable,E0076344,"WALSH, WILLIAM C"
,OFFICE OF THE MAJORITY LEADER,2013Q4,TRAVEL,10-24,"CUTLER, AARON",06/10/13,08/28/13,TAXI/PARKING/TOLLS,70.00,2013,AP,Accounts payable,E0076346,"CUTLER, AARON"
,OFFICE OF THE MAJORITY LEADER,2013Q4,"RENT, COMMUNICATION, UTILITIES",10-16,"HEYE, DOUGLAS R",09/25/13,09/25/13,EQUIP RENTAL (EFF 1/3/03),828.00,2013,AP,Accounts payable,E0073805,"HEYE, DOUGLAS R"
,OFFICE OF THE MAJORITY LEADER,2013Q4,SUPPLIES AND MATERIALS,10-14,LEXIS-NEXIS,08/01/13,08/31/13,PUBLICATIONS/REFERENCE MAT'L,625.00,2013,AP,Accounts payable,E0073809,LEXIS-NEXIS
,OFFICE OF THE MAJORITY LEADER,2013Q4,SUPPLIES AND MATERIALS,10-18,CITI PCARD-SAFEWAY STORE,08/29/13,09/28/13,FOOD & BEVERAGE,493.98,2013,AP,Accounts payable,00695455,CITI PCARD-SAFEWAY STORE
,OFFICE OF THE MAJORITY LEADER,2013Q4,SUPPLIES AND MATERIALS,10-24,DEER PARK WATER,08/27/13,09/26/13,FOOD & BEVERAGE,599.98,2013,AP,Accounts payable,E0076347,DEER PARK WATER
,OFFICE OF THE MAJORITY LEADER,2013Q4,SUPPLIES AND MATERIALS,10-31,DAIOHS FIRST CHOICE COFFEE SERVICES,04/12/13,05/11/13,FOOD & BEVERAGE,200.00,2013,AP,Accounts payable,E0079433,DAIOHS FIRST CHOICE COFFEE SERVICES
,OFFICE OF THE MAJORITY LEADER,2013Q4,SUPPLIES AND MATERIALS,10-31,DAIOHS FIRST CHOICE COFFEE SERVICES,05/28/13,06/27/13,FOOD & BEVERAGE,525.05,2013,AP,Accounts payable,E0079434,DAIOHS FIRST CHOICE COFFEE SERVICES
,OFFICE OF THE MAJORITY LEADER,2013Q4,SUPPLIES AND MATERIALS,10-31,DAIOHS FIRST CHOICE COFFEE SERVICES,05/24/13,06/23/13,FOOD & BEVERAGE,238.85,2013,AP,Accounts payable,E0079437,DAIOHS FIRST CHOICE COFFEE SERVICES
,OFFICE OF THE MAJORITY LEADER,2013Q4,SUPPLIES AND MATERIALS,10-31,DAIOHS FIRST CHOICE COFFEE SERVICES,04/26/13,05/25/13,FOOD & BEVERAGE,110.00,2013,AP,Accounts payable,E0079438,DAIOHS FIRST CHOICE COFFEE SERVICES
,OFFICE OF THE MAJORITY LEADER,2013Q4,SUPPLIES AND MATERIALS,11-21,CITI PCARD-HARRIS TEETER,09/29/13,09/30/13,FOOD & BEVERAGE,129.03,2013,AP,Accounts payable,00700548,CITI PCARD-HARRIS TEETER
,OFFICE OF THE MAJORITY LEADER,2013Q4,SUPPLIES AND MATERIALS,11-21,CITI PCARD-SAFEWAY STORE,09/29/13,09/30/13,FOOD & BEVERAGE,52.23,2013,AP,Accounts payable,00700548,CITI PCARD-SAFEWAY STORE
,OFFICE OF THE MAJORITY LEADER,2013Q4,SUPPLIES AND MATERIALS,12-06,DEER PARK WATER,09/27/13,10/26/13,FOOD & BEVERAGE,650.95,2013,AP,Accounts payable,E0091928,DEER PARK WATER
,OFFICE OF THE MINORITY LEADER,2013Q4,TRAVEL,10-09,CITIBANK GOV CARD SERVICE,09/02/13,09/25/13,TRAVEL SUBSISTENCE,"3,304.07",2013,AP,Accounts payable,E0071558,CITIBANK GOV CARD SERVICE
,OFFICE OF THE MINORITY LEADER,2013Q4,TRAVEL,10-09,"SURGEON,BINA G",06/23/13,09/25/13,TRAVEL SUBSISTENCE,123.05,2013,AP,Accounts payable,E0071574,"SURGEON,BINA G"
,OFFICE OF THE MINORITY LEADER,2013Q4,TRAVEL,10-09,"BARRY, MARY-KATE",09/22/13,09/22/13,MEALS,15.09,2013,AP,Accounts payable,E0071575,"BARRY, MARY-KATE"
,OFFICE OF THE MINORITY LEADER,2013Q4,TRAVEL,10-09,"BARRY, MARY-KATE",09/12/13,09/30/13,TAXI/PARKING/TOLLS,42.15,2013,AP,Accounts payable,E0071575,"BARRY, MARY-KATE"
,OFFICE OF THE MINORITY LEADER,2013Q4,TRAVEL,10-09,CITIBANK GOV CARD SERVICE,09/12/13,09/25/13,COMMERCIAL TRANSPORTATION,"1,969.98",2013,AP,Accounts payable,E0071579,CITIBANK GOV CARD SERVICE
,OFFICE OF THE MINORITY LEADER,2013Q4,TRAVEL,10-10,CITIBANK GOV CARD SERVICE,09/22/13,09/23/13,TRAVEL SUBSISTENCE,737.41,2013,AP,Accounts payable,E0071799,CITIBANK GOV CARD SERVICE
,OFFICE OF THE MINORITY LEADER,2013Q4,TRAVEL,10-10,"LIZARRAGA, JAIME E",09/23/13,09/24/13,TRAVEL SUBSISTENCE,40.36,2013,AP,Accounts payable,E0073044,"LIZARRAGA, JAIME E"
,OFFICE OF THE MINORITY LEADER,2013Q4,TRAVEL,10-10,CITIBANK GOV CARD SERVICE,09/22/13,09/25/13,TRAVEL SUBSISTENCE,"1,294.89",2013,AP,Accounts payable,E0073047,CITIBANK GOV CARD SERVICE
,OFFICE OF THE MINORITY LEADER,2013Q4,TRAVEL,10-22,"PRICE, REVA B",09/03/13,09/30/13,TAXI/PARKING/TOLLS,68.00,2013,AP,Accounts payable,E0076133,"PRICE, REVA B"
,OFFICE OF THE MINORITY LEADER,2013Q4,TRAVEL,11-06,"MINOR, JAIME N",09/15/13,09/15/13,MEALS,3.54,2013,AP,Accounts payable,E0081246,"MINOR, JAIME N"
,OFFICE OF THE MINORITY LEADER,2013Q4,TRAVEL,11-06,"MINOR, JAIME N",09/16/13,09/16/13,TAXI/PARKING/TOLLS,15.00,2013,AP,Accounts payable,E0081246,"MINOR, JAIME N"
,OFFICE OF THE MINORITY LEADER,2013Q4,TRAVEL,11-06,"PARKER, WYNDEE R",09/04/13,09/04/13,TAXI/PARKING/TOLLS,17.00,2013,AP,Accounts payable,E0081251,"PARKER, WYNDEE R"
,OFFICE OF THE MINORITY LEADER,2013Q4,TRAVEL,11-18,CITIBANK GOV CARD SERVICE,09/24/13,09/25/13,TRAVEL SUBSISTENCE,-350.28,2013,AP,Accounts payable,00698147,CITIBANK GOV CARD SERVICE
,OFFICE OF THE MINORITY LEADER,2013Q4,TRAVEL,12-16,"GEORGE, EVANGELINE M",01/25/13,11/25/13,TRAVEL SUBSISTENCE,"4,463.42",2013,AP,Accounts payable,E0094261,"GEORGE, EVANGELINE M"
,OFFICE OF THE MINORITY LEADER,2013Q4,TRAVEL,12-30,"PARDUE, LAURA E",07/24/13,09/29/13,TAXI/PARKING/TOLLS,38.89,2013,AP,Accounts payable,E0100876,"PARDUE, LAURA E"
,OFFICE OF THE MINORITY LEADER,2013Q4,"RENT, COMMUNICATION, UTILITIES",10-08,FEDEX,09/06/13,09/10/13,POSTAGE / COURIER / BOX RENTAL,62.78,2013,AP,Accounts payable,E0071556,FEDEX
,OFFICE OF THE MINORITY LEADER,2013Q4,"RENT, COMMUNICATION, UTILITIES",10-09,FEDERAL EXPRESS CORP,08/07/13,08/07/13,POSTAGE / COURIER / BOX RENTAL,-14.97,2013,AR,Accounts receivable,AC-08580,FEDERAL EXPRESS CORP
,OFFICE OF THE MINORITY LEADER,2013Q4,"RENT, COMMUNICATION, UTILITIES",10-18,CITI PCARD-TIV TIVO SERVICE,08/29/13,09/28/13,RECORDING (OUTSIDE),27.46,2013,AP,Accounts payable,00695455,CITI PCARD-TIV TIVO SERVICE
,OFFICE OF THE MINORITY LEADER,2013Q4,"RENT, COMMUNICATION, UTILITIES",10-22,FEDEX,09/24/13,09/24/13,POSTAGE / COURIER / BOX RENTAL,13.75,2013,AP,Accounts payable,E0076126,FEDEX
,OFFICE OF THE MINORITY LEADER,2013Q4,"RENT, COMMUNICATION, UTILITIES",11-06,FEDEX,09/30/13,09/30/13,POSTAGE / COURIER / BOX RENTAL,12.07,2013,AP,Accounts payable,E0081268,FEDEX
,OFFICE OF THE MINORITY LEADER,2013Q4,PRINTING AND REPRODUCTION,10-10,DAVID L. ANDRUKITUS INC,09/30/13,09/30/13,PRINTING & REPRODUCTION,97.50,2013,AP,Accounts payable,E0073045,DAVID L. ANDRUKITUS INC
,OFFICE OF THE MINORITY LEADER,2013Q4,PRINTING AND REPRODUCTION,10-10,DAVID L. ANDRUKITUS INC,09/30/13,09/30/13,PRINTING & REPRODUCTION,192.50,2013,AP,Accounts payable,E0073046,DAVID L. ANDRUKITUS INC
,OFFICE OF THE MINORITY LEADER,2013Q4,PRINTING AND REPRODUCTION,12-11,"MINOR, JAIME N",09/16/13,09/16/13,PRINTING & REPRODUCTION,17.81,2013,AP,Accounts payable,E0093208,"MINOR, JAIME N"
,OFFICE OF THE MINORITY LEADER,2013Q4,SUPPLIES AND MATERIALS,10-08,HAUTE CATERING,09/17/13,09/17/13,FOOD & BEVERAGE,66.00,2013,AP,Accounts payable,E0071538,HAUTE CATERING
,OFFICE OF THE MINORITY LEADER,2013Q4,SUPPLIES AND MATERIALS,10-08,HELEN OLIVIA FLOWERS,09/30/13,09/30/13,HABITATION EXPENSE,249.00,2013,AP,Accounts payable,E0071543,HELEN OLIVIA FLOWERS
,OFFICE OF THE MINORITY LEADER,2013Q4,SUPPLIES AND MATERIALS,10-08,CAPITOLHOST,09/30/13,09/30/13,FOOD & BEVERAGE,66.00,2013,AP,Accounts payable,E0071564,CAPITOLHOST
,OFFICE OF THE MINORITY LEADER,2013Q4,SUPPLIES AND MATERIALS,10-08,HAUTE CATERING,09/18/13,09/18/13,FOOD & BEVERAGE,33.00,2013,AP,Accounts payable,E0071569,HAUTE CATERING
,OFFICE OF THE MINORITY LEADER,2013Q4,SUPPLIES AND MATERIALS,10-09,BLOOMBERG FINANCE LP,09/01/13,08/31/14,PUBLICATIONS/REFERENCE MAT'L,"4,774.79",2013,AP,Accounts payable,E0071561,BLOOMBERG FINANCE LP
,OFFICE OF THE MINORITY LEADER,2013Q4,SUPPLIES AND MATERIALS,10-18,CITI PCARD-COSI,08/29/13,09/28/13,FOOD & BEVERAGE,920.63,2013,AP,Accounts payable,00695455,CITI PCARD-COSI
,OFFICE OF THE MINORITY LEADER,2013Q4,SUPPLIES AND MATERIALS,10-18,CITI PCARD-DUNKIN,08/29/13,09/28/13,FOOD & BEVERAGE,63.94,2013,AP,Accounts payable,00695455,CITI PCARD-DUNKIN
,OFFICE OF THE MINORITY LEADER,2013Q4,SUPPLIES AND MATERIALS,10-18,CITI PCARD-HARRIS TEETER,08/29/13,09/28/13,FOOD & BEVERAGE,67.69,2013,AP,Accounts payable,00695455,CITI PCARD-HARRIS TEETER
,OFFICE OF THE MINORITY LEADER,2013Q4,SUPPLIES AND MATERIALS,10-18,CITI PCARD-PAUL BAKERY,08/29/13,09/28/13,FOOD & BEVERAGE,42.02,2013,AP,Accounts payable,00695455,CITI PCARD-PAUL BAKERY
,OFFICE OF THE MINORITY LEADER,2013Q4,SUPPLIES AND MATERIALS,10-18,CITI PCARD-TARGET,08/29/13,09/28/13,FOOD & BEVERAGE,517.94,2013,AP,Accounts payable,00695455,CITI PCARD-TARGET
,OFFICE OF THE MINORITY LEADER,2013Q4,SUPPLIES AND MATERIALS,10-24,"WOLTERS, KATE",09/24/13,09/24/13,FOOD & BEVERAGE,30.32,2013,AP,Accounts payable,E0076653,"WOLTERS, KATE"
,OFFICE OF THE MINORITY LEADER,2013Q4,SUPPLIES AND MATERIALS,10-31,CAPITOLHOST,04/25/13,04/25/13,FOOD & BEVERAGE,66.00,2013,AP,Accounts payable,00696195,CAPITOLHOST
,OFFICE OF THE MINORITY LEADER,2013Q4,SUPPLIES AND MATERIALS,10-31,OCCASIONS CATERERS,05/22/13,05/22/13,FOOD & BEVERAGE,"5,035.00",2013,AP,Accounts payable,00696197,OCCASIONS CATERERS
,OFFICE OF THE MINORITY LEADER,2013Q4,SUPPLIES AND MATERIALS,11-06,"MINOR, JAIME N",09/15/13,09/16/13,PUBLICATIONS/REFERENCE MAT'L,16.85,2013,AP,Accounts payable,E0081246,"MINOR, JAIME N"
,OFFICE OF THE MINORITY LEADER,2013Q4,SUPPLIES AND MATERIALS,11-06,CRYSTAL SPRINGS,09/01/13,09/30/13,FOOD & BEVERAGE,"2,709.41",2013,AP,Accounts payable,E0081256,CRYSTAL SPRINGS
,OFFICE OF THE MINORITY LEADER,2013Q4,SUPPLIES AND MATERIALS,11-21,CITI PCARD-CARMINE S,09/29/13,09/30/13,FOOD & BEVERAGE,382.25,2013,AP,Accounts payable,00700548,CITI PCARD-CARMINE S
,OFFICE OF THE MINORITY LEADER,2013Q4,SUPPLIES AND MATERIALS,11-21,CITI PCARD-HARRIS TEETER,09/29/13,09/30/13,FOOD & BEVERAGE,59.10,2013,AP,Accounts payable,00700548,CITI PCARD-HARRIS TEETER
,OFFICE OF THE MINORITY LEADER,2013Q4,SUPPLIES AND MATERIALS,11-21,CITI PCARD-MATCHBOX CAPITOL HILL,09/29/13,09/30/13,FOOD & BEVERAGE,343.20,2013,AP,Accounts payable,00700548,CITI PCARD-MATCHBOX CAPITOL HILL
,OFFICE OF THE MINORITY LEADER,2013Q4,SUPPLIES AND MATERIALS,11-21,CITI PCARD-TARGET,09/29/13,09/30/13,FOOD & BEVERAGE,399.18,2013,AP,Accounts payable,00700548,CITI PCARD-TARGET
,OFFICE OF THE MINORITY LEADER,2013Q4,SUPPLIES AND MATERIALS,12-30,CAPITOLHOST,06/05/13,06/05/13,FOOD & BEVERAGE,33.00,2013,AP,Accounts payable,E0100859,CAPITOLHOST
,OFFICE OF THE MINORITY LEADER,2013Q4,SUPPLIES AND MATERIALS,12-30,CAPITOLHOST,09/11/13,09/11/13,FOOD & BEVERAGE,33.00,2013,AP,Accounts payable,E0100881,CAPITOLHOST
,OFFICE OF THE MAJORITY WHIP,2013Q4,SUPPLIES AND MATERIALS,10-14,DEER PARK WATER,08/27/13,09/26/13,WATER,360.54,2013,AP,Accounts payable,E0073995,DEER PARK WATER
,OFFICE OF THE MAJORITY WHIP,2013Q4,SUPPLIES AND MATERIALS,10-18,CITI PCARD-CAPITOL HOST (RIDGEWEL,08/29/13,09/28/13,FOOD & BEVERAGE,465.00,2013,AP,Accounts payable,00695455,CITI PCARD-CAPITOL HOST (RIDGEWEL
,OFFICE OF THE MAJORITY WHIP,2013Q4,SUPPLIES AND MATERIALS,10-18,CITI PCARD-CORNER BAKERY,08/29/13,09/28/13,FOOD & BEVERAGE,271.80,2013,AP,Accounts payable,00695455,CITI PCARD-CORNER BAKERY
,OFFICE OF THE MAJORITY WHIP,2013Q4,SUPPLIES AND MATERIALS,10-18,CITI PCARD-HARRIS TEETER,08/29/13,09/28/13,FOOD & BEVERAGE,13.47,2013,AP,Accounts payable,00695455,CITI PCARD-HARRIS TEETER
,OFFICE OF THE MAJORITY WHIP,2013Q4,SUPPLIES AND MATERIALS,10-18,CITI PCARD-NEW YORK TIMES DIGITAL,08/29/13,09/28/13,PUBLICATIONS/REFERENCE MAT'L,37.10,2013,AP,Accounts payable,00695455,CITI PCARD-NEW YORK TIMES DIGITAL
,OFFICE OF THE MAJORITY WHIP,2013Q4,SUPPLIES AND MATERIALS,10-18,"CITI PCARD-WE, THE PIZZA",08/29/13,09/28/13,FOOD & BEVERAGE,101.00,2013,AP,Accounts payable,00695455,"CITI PCARD-WE, THE PIZZA"
,OFFICE OF THE MAJORITY WHIP,2013Q4,SUPPLIES AND MATERIALS,10-31,"METTLER, ASHLEY",06/27/13,06/27/13,FOOD & BEVERAGE,13.77,2013,AP,Accounts payable,00696194,"METTLER, ASHLEY"
,OFFICE OF THE MAJORITY WHIP,2013Q4,SUPPLIES AND MATERIALS,10-31,"METTLER, ASHLEY",04/18/13,04/18/13,FOOD & BEVERAGE,13.47,2013,AP,Accounts payable,00696201,"METTLER, ASHLEY"
,OFFICE OF THE MAJORITY WHIP,2013Q4,SUPPLIES AND MATERIALS,11-13,DEER PARK WATER,09/27/13,10/26/13,WATER,247.45,2013,AP,Accounts payable,E0083492,DEER PARK WATER
,OFFICE OF THE MAJORITY WHIP,2013Q4,SUPPLIES AND MATERIALS,11-21,CITI PCARD-NEW YORK TIMES DIGITAL,09/29/13,09/30/13,PUBLICATIONS/REFERENCE MAT'L,37.10,2013,AP,Accounts payable,00700548,CITI PCARD-NEW YORK TIMES DIGITAL
,OFFICE OF THE MINORITY WHIP,2013Q4,TRAVEL,10-21,"COBIA, LINDSEY G",09/30/13,09/30/13,TAXI/PARKING/TOLLS,8.00,2013,AP,Accounts payable,E0075639,"COBIA, LINDSEY G"
,OFFICE OF THE MINORITY WHIP,2013Q4,TRAVEL,10-21,"AVILES,DANIELLE R",09/25/13,09/25/13,TAXI/PARKING/TOLLS,21.00,2013,AP,Accounts payable,E0075650,"AVILES,DANIELLE R"
,OFFICE OF THE MINORITY WHIP,2013Q4,TRAVEL,10-21,"GENSEMER, ELLIOT J",09/29/13,09/29/13,TAXI/PARKING/TOLLS,15.00,2013,AP,Accounts payable,E0075652,"GENSEMER, ELLIOT J"
,OFFICE OF THE MINORITY WHIP,2013Q4,TRAVEL,10-21,"AVILES,DANIELLE R",09/28/13,09/28/13,TAXI/PARKING/TOLLS,27.00,2013,AP,Accounts payable,E0075654,"AVILES,DANIELLE R"
,OFFICE OF THE MINORITY WHIP,2013Q4,TRAVEL,10-21,"GENSEMER, ELLIOT J",09/20/13,09/20/13,TAXI/PARKING/TOLLS,17.00,2013,AP,Accounts payable,E0075656,"GENSEMER, ELLIOT J"
,OFFICE OF THE MINORITY WHIP,2013Q4,TRAVEL,10-21,"COBIA, LINDSEY G",09/28/13,09/28/13,TAXI/PARKING/TOLLS,12.00,2013,AP,Accounts payable,E0075660,"COBIA, LINDSEY G"
,OFFICE OF THE MINORITY WHIP,2013Q4,TRAVEL,10-21,"AVILES,DANIELLE R",09/29/13,09/29/13,TAXI/PARKING/TOLLS,26.00,2013,AP,Accounts payable,E0075663,"AVILES,DANIELLE R"
,OFFICE OF THE MINORITY WHIP,2013Q4,"RENT, COMMUNICATION, UTILITIES",10-18,CITI PCARD-METROCAST MARYLAND VIR,08/29/13,09/28/13,UTILITIES,48.95,2013,AP,Accounts payable,00695455,CITI PCARD-METROCAST MARYLAND VIR
,OFFICE OF THE MINORITY WHIP,2013Q4,"RENT, COMMUNICATION, UTILITIES",10-18,CITI PCARD-SXM SIRIUSXM.COM/ACCT,08/29/13,09/28/13,UTILITIES,197.24,2013,AP,Accounts payable,00695455,CITI PCARD-SXM SIRIUSXM.COM/ACCT
,OFFICE OF THE MINORITY WHIP,2013Q4,"RENT, COMMUNICATION, UTILITIES",10-18,CITI PCARD-USPS,08/29/13,09/28/13,POSTAGE / COURIER / BOX RENTAL,5.60,2013,AP,Accounts payable,00695455,CITI PCARD-USPS
,OFFICE OF THE MINORITY WHIP,2013Q4,PRINTING AND REPRODUCTION,10-24,DAVID L. ANDRUKITUS INC,09/30/13,09/30/13,PRINTING & REPRODUCTION,179.50,2013,AP,Accounts payable,E0075642,DAVID L. ANDRUKITUS INC
,OFFICE OF THE MINORITY WHIP,2013Q4,PRINTING AND REPRODUCTION,10-24,DAVID L. ANDRUKITUS INC,09/25/13,09/25/13,PRINTING & REPRODUCTION,427.50,2013,AP,Accounts payable,E0075644,DAVID L. ANDRUKITUS INC
,OFFICE OF THE MINORITY WHIP,2013Q4,PRINTING AND REPRODUCTION,10-24,DAVID L. ANDRUKITUS INC,09/25/13,09/25/13,PRINTING & REPRODUCTION,295.00,2013,AP,Accounts payable,E0075664,DAVID L. ANDRUKITUS INC
,OFFICE OF THE MINORITY WHIP,2013Q4,SUPPLIES AND MATERIALS,10-18,CITI PCARD-NEW YORK TIMES DIGITAL,08/29/13,09/28/13,PUBLICATIONS/REFERENCE MAT'L,37.10,2013,AP,Accounts payable,00695455,CITI PCARD-NEW YORK TIMES DIGITAL
,OFFICE OF THE MINORITY WHIP,2013Q4,SUPPLIES AND MATERIALS,10-18,CITI PCARD-RA CAPITAL M,08/29/13,09/28/13,FOOD & BEVERAGE,19.95,2013,AP,Accounts payable,00695455,CITI PCARD-RA CAPITAL M
,OFFICE OF THE MINORITY WHIP,2013Q4,SUPPLIES AND MATERIALS,11-21,CITI PCARD-RA CAPITAL M,09/29/13,09/30/13,FOOD & BEVERAGE,25.53,2013,AP,Accounts payable,00700548,CITI PCARD-RA CAPITAL M
,DEMOCRATIC CAUCUS,2013Q4,TRAVEL,11-12,"ATTAPIT, SIRAT",09/04/13,09/05/13,TRAVEL SUBSISTENCE,186.39,2013,AP,Accounts payable,E0082801,"ATTAPIT, SIRAT"
,DEMOCRATIC CAUCUS,2013Q4,"RENT, COMMUNICATION, UTILITIES",10-18,CITI PCARD-USPS,08/29/13,09/28/13,POSTAGE / COURIER / BOX RENTAL,46.00,2013,AP,Accounts payable,00695455,CITI PCARD-USPS
,DEMOCRATIC CAUCUS,2013Q4,"RENT, COMMUNICATION, UTILITIES",10-18,CITI PCARD-USTREAM TV,08/29/13,09/28/13,TELECOMSRV/EQ/TOLL CHARGE,99.00,2013,AP,Accounts payable,00695455,CITI PCARD-USTREAM TV
,DEMOCRATIC CAUCUS,2013Q4,SUPPLIES AND MATERIALS,10-18,CITI PCARD-CARMINE S,08/29/13,09/28/13,FOOD & BEVERAGE,"1,102.54",2013,AP,Accounts payable,00695455,CITI PCARD-CARMINE S
,DEMOCRATIC CAUCUS,2013Q4,SUPPLIES AND MATERIALS,10-18,CITI PCARD-FIREHOOK BAKERY-WHOLES,08/29/13,09/28/13,FOOD & BEVERAGE,829.00,2013,AP,Accounts payable,00695455,CITI PCARD-FIREHOOK BAKERY-WHOLES
,DEMOCRATIC CAUCUS,2013Q4,SUPPLIES AND MATERIALS,10-18,CITI PCARD-FTP FINANCIAL TIMES IN,08/29/13,09/28/13,PUBLICATIONS/REFERENCE MAT'L,421.88,2013,AP,Accounts payable,00695455,CITI PCARD-FTP FINANCIAL TIMES IN
,DEMOCRATIC CAUCUS,2013Q4,SUPPLIES AND MATERIALS,10-18,CITI PCARD-HARRIS TEETER,08/29/13,09/28/13,FOOD & BEVERAGE,"1,004.85",2013,AP,Accounts payable,00695455,CITI PCARD-HARRIS TEETER
,DEMOCRATIC CAUCUS,2013Q4,SUPPLIES AND MATERIALS,10-18,CITI PCARD-KRISPY KREME DOUGH,08/29/13,09/28/13,FOOD & BEVERAGE,17.19,2013,AP,Accounts payable,00695455,CITI PCARD-KRISPY KREME DOUGH
,DEMOCRATIC CAUCUS,2013Q4,SUPPLIES AND MATERIALS,10-18,CITI PCARD-NYT TIMES E-BILLING,08/29/13,09/28/13,PUBLICATIONS/REFERENCE MAT'L,500.67,2013,AP,Accounts payable,00695455,CITI PCARD-NYT TIMES E-BILLING
,DEMOCRATIC CAUCUS,2013Q4,SUPPLIES AND MATERIALS,10-18,CITI PCARD-RA LONGWORTH,08/29/13,09/28/13,FOOD & BEVERAGE,5.14,2013,AP,Accounts payable,00695455,CITI PCARD-RA LONGWORTH
,DEMOCRATIC CAUCUS,2013Q4,SUPPLIES AND MATERIALS,10-18,CITI PCARD-SAFEWAY STORE,08/29/13,09/28/13,FOOD & BEVERAGE,15.56,2013,AP,Accounts payable,00695455,CITI PCARD-SAFEWAY STORE
,DEMOCRATIC CAUCUS,2013Q4,SUPPLIES AND MATERIALS,10-18,CITI PCARD-SAINT GERMAIN CATERING,08/29/13,09/28/13,FOOD & BEVERAGE,570.63,2013,AP,Accounts payable,00695455,CITI PCARD-SAINT GERMAIN CATERING
,DEMOCRATIC CAUCUS,2013Q4,SUPPLIES AND MATERIALS,10-31,"VENEGAS, STEPHANIE A",03/13/13,03/13/13,FOOD & BEVERAGE,24.75,2013,AP,Accounts payable,00696171,"VENEGAS, STEPHANIE A"
,DEMOCRATIC CAUCUS,2013Q4,SUPPLIES AND MATERIALS,11-12,THE NEW YORK TIMES,09/27/13,09/25/14,PUBLICATIONS/REFERENCE MAT'L,463.04,2013,AP,Accounts payable,E0082799,THE NEW YORK TIMES
,REPUBLICAN CONFERENCE,2013Q4,TRAVEL,10-08,"LITMAN, RIVA",09/29/13,09/29/13,TAXI/PARKING/TOLLS,20.00,2013,AP,Accounts payable,E0071874,"LITMAN, RIVA"
,REPUBLICAN CONFERENCE,2013Q4,"RENT, COMMUNICATION, UTILITIES",10-18,CITI PCARD-USPS,08/29/13,09/28/13,POSTAGE / COURIER / BOX RENTAL,13.80,2013,AP,Accounts payable,00695455,CITI PCARD-USPS
,REPUBLICAN CONFERENCE,2013Q4,PRINTING AND REPRODUCTION,11-14,SHARP BUSINESS SYSTEMS,07/01/13,10/01/13,PRINTING & REPRODUCTION,"1,005.00",2013,AP,Accounts payable,E0084730,SHARP BUSINESS SYSTEMS
,REPUBLICAN CONFERENCE,2013Q4,OTHER SERVICES,10-08,O'DONNELL & ASSOC LTD,09/01/13,09/30/13,TRAINING,"2,800.00",2013,AP,Accounts payable,E0071869,O'DONNELL & ASSOC LTD
,REPUBLICAN CONFERENCE,2013Q4,SUPPLIES AND MATERIALS,10-08,"HODSON, NATHAN",09/28/13,09/28/13,FOOD & BEVERAGE,92.67,2013,AP,Accounts payable,E0071939,"HODSON, NATHAN"
,REPUBLICAN CONFERENCE,2013Q4,SUPPLIES AND MATERIALS,10-08,"GRAVES, JOEL D",09/25/13,09/25/13,FOOD & BEVERAGE,27.29,2013,AP,Accounts payable,E0071941,"GRAVES, JOEL D"
,REPUBLICAN CONFERENCE,2013Q4,SUPPLIES AND MATERIALS,10-08,"MURPHY, SHAUGHNESSY",09/28/13,09/28/13,FOOD & BEVERAGE,144.63,2013,AP,Accounts payable,E0071969,"MURPHY, SHAUGHNESSY"
,REPUBLICAN CONFERENCE,2013Q4,SUPPLIES AND MATERIALS,10-08,"MURPHY, SHAUGHNESSY",09/30/13,09/30/13,FOOD & BEVERAGE,205.81,2013,AP,Accounts payable,E0071969,"MURPHY, SHAUGHNESSY"
,REPUBLICAN CONFERENCE,2013Q4,SUPPLIES AND MATERIALS,10-18,CITI PCARD-BAYOU BAKERY,08/29/13,09/28/13,FOOD & BEVERAGE,99.00,2013,AP,Accounts payable,00695455,CITI PCARD-BAYOU BAKERY
,REPUBLICAN CONFERENCE,2013Q4,SUPPLIES AND MATERIALS,10-18,CITI PCARD-COSI,08/29/13,09/28/13,FOOD & BEVERAGE,200.69,2013,AP,Accounts payable,00695455,CITI PCARD-COSI
,REPUBLICAN CONFERENCE,2013Q4,SUPPLIES AND MATERIALS,10-18,CITI PCARD-DGS DELICATESSEN,08/29/13,09/28/13,FOOD & BEVERAGE,168.58,2013,AP,Accounts payable,00695455,CITI PCARD-DGS DELICATESSEN
,REPUBLICAN CONFERENCE,2013Q4,SUPPLIES AND MATERIALS,10-18,CITI PCARD-DUNKIN,08/29/13,09/28/13,FOOD & BEVERAGE,24.04,2013,AP,Accounts payable,00695455,CITI PCARD-DUNKIN
,REPUBLICAN CONFERENCE,2013Q4,SUPPLIES AND MATERIALS,10-18,CITI PCARD-NEW YORK TIMES DIGITAL,08/29/13,09/28/13,PUBLICATIONS/REFERENCE MAT'L,15.90,2013,AP,Accounts payable,00695455,CITI PCARD-NEW YORK TIMES DIGITAL
,REPUBLICAN CONFERENCE,2013Q4,SUPPLIES AND MATERIALS,10-18,CITI PCARD-SAFEWAY STORE,08/29/13,09/28/13,FOOD & BEVERAGE,41.28,2013,AP,Accounts payable,00695455,CITI PCARD-SAFEWAY STORE
,REPUBLICAN CONFERENCE,2013Q4,SUPPLIES AND MATERIALS,10-31,WRAP2GO LLC,04/09/13,04/09/13,FOOD & BEVERAGE,99.90,2013,AP,Accounts payable,00696151,WRAP2GO LLC
,REPUBLICAN CONFERENCE,2013Q4,SUPPLIES AND MATERIALS,10-31,CAPITOLHOST,07/09/13,07/09/13,FOOD & BEVERAGE,618.00,2013,AP,Accounts payable,00696153,CAPITOLHOST
,REPUBLICAN CONFERENCE,2013Q4,SUPPLIES AND MATERIALS,10-31,DORNETTE MARJORIE F,07/12/13,07/12/13,FOOD & BEVERAGE,287.52,2013,AP,Accounts payable,00696154,DORNETTE MARJORIE F
,REPUBLICAN CONFERENCE,2013Q4,SUPPLIES AND MATERIALS,10-31,DORNETTE MARJORIE F,02/01/13,02/01/13,FOOD & BEVERAGE,288.55,2013,AP,Accounts payable,00696155,DORNETTE MARJORIE F
,REPUBLICAN CONFERENCE,2013Q4,SUPPLIES AND MATERIALS,10-31,"JIRIK, MONICA",05/08/13,05/08/13,FOOD & BEVERAGE,56.18,2013,AP,Accounts payable,00696160,"JIRIK, MONICA"
,REPUBLICAN CONFERENCE,2013Q4,SUPPLIES AND MATERIALS,10-31,"JIRIK, MONICA",05/22/13,05/22/13,FOOD & BEVERAGE,32.98,2013,AP,Accounts payable,00696160,"JIRIK, MONICA"
,REPUBLICAN CONFERENCE,2013Q4,SUPPLIES AND MATERIALS,11-21,CITI PCARD-QDOBA MEXICAN GRIL,09/29/13,09/30/13,FOOD & BEVERAGE,"2,557.45",2013,AP,Accounts payable,00700548,CITI PCARD-QDOBA MEXICAN GRIL
,OFFICE OF THE SPEAKER,2013Q4,PERSONNEL BENEFITS,10-31,HON JOHN A BOEHNER,10/01/13,10/31/13,OFFICIAL EXPENSES FOR LEADERS,"2,083.33",2013,AP,Accounts payable,00695884,HON JOHN A BOEHNER
,OFFICE OF THE SPEAKER,2013Q4,PERSONNEL BENEFITS,11-19,HON JOHN A BOEHNER,11/01/13,11/30/13,OFFICIAL EXPENSES FOR LEADERS,"2,083.33",2013,AP,Accounts payable,00700502,HON JOHN A BOEHNER
,OFFICE OF THE SPEAKER,2013Q4,PERSONNEL BENEFITS,12-16,HON JOHN A BOEHNER,12/01/13,12/31/13,OFFICIAL EXPENSES FOR LEADERS,"2,083.33",2013,AP,Accounts payable,00702978,HON JOHN A BOEHNER
,OFFICE OF THE SPEAKER,2013Q4,PERSONNEL COMPENSATION,"","ANDREWS,THOMAS S",10/01/13,11/30/13,SENIOR STAFF ASSISTANT,"7,000.00",2013,"","","","ANDREWS,THOMAS S"
,OFFICE OF THE SPEAKER,2013Q4,PERSONNEL COMPENSATION,"","ANDREWS,THOMAS S",12/01/13,12/31/13,SPECIAL ASST TO THE SPEAKER,"4,583.33",2013,"","","","ANDREWS,THOMAS S"
,OFFICE OF THE SPEAKER,2013Q4,PERSONNEL COMPENSATION,"","ANDREWS,THOMAS S",09/01/13,11/30/13,SENIOR STAFF ASSISTANT (OVERTIME),"3,513.42",2013,"","","","ANDREWS,THOMAS S"
,OFFICE OF THE SPEAKER,2013Q4,PERSONNEL COMPENSATION,"","BAILEY,BRADLEY",10/01/13,12/31/13,ASSIST TO SPEAKER FOR POLICY,"30,000.00",2013,"","","","BAILEY,BRADLEY"
,OFFICE OF THE SPEAKER,2013Q4,PERSONNEL COMPENSATION,"","BECKER,ALEXANDER M",10/01/13,11/11/13,STAFF ASSISTANT,"3,644.45",2013,"","","","BECKER,ALEXANDER M"
,OFFICE OF THE SPEAKER,2013Q4,PERSONNEL COMPENSATION,"","BECKER,ALEXANDER M",11/12/13,12/31/13,FLOOR ASSISTANT,"5,444.44",2013,"","","","BECKER,ALEXANDER M"
,OFFICE OF THE SPEAKER,2013Q4,PERSONNEL COMPENSATION,"","BECKER,ALEXANDER M",09/01/13,10/31/13,STAFF ASSISTANT (OVERTIME),917.30,2013,"","","","BECKER,ALEXANDER M"
,OFFICE OF THE SPEAKER,2013Q4,PERSONNEL COMPENSATION,"","BENJAMIN, WILLIAM C",10/01/13,12/31/13,DIR OF INFORMATION TECHNOLOGY,"23,250.00",2013,"","","","BENJAMIN, WILLIAM C"
,OFFICE OF THE SPEAKER,2013Q4,PERSONNEL COMPENSATION,"","BLAKE,KRISTENE",10/01/13,12/31/13,DIRECTOR OF SCHDLNG/EXEC ASST,"24,999.99",2013,"","","","BLAKE,KRISTENE"
,OFFICE OF THE SPEAKER,2013Q4,PERSONNEL COMPENSATION,"","BORDEN III, R C",10/01/13,12/31/13,SHARED EMPLOYEE,"42,000.00",2013,"","","","BORDEN III, R C"
,OFFICE OF THE SPEAKER,2013Q4,PERSONNEL COMPENSATION,"","BOYD,KATHRYN E",10/01/13,12/31/13,ASST COMMUNICATIONS DIRECTOR,"21,249.99",2013,"","","","BOYD,KATHRYN E"
,OFFICE OF THE SPEAKER,2013Q4,PERSONNEL COMPENSATION,"","BOZA-HOLMAN, SOFIA M",10/01/13,12/31/13,COMMUNICATIONS ADVISOR,"9,999.99",2013,"","","","BOZA-HOLMAN, SOFIA M"
,OFFICE OF THE SPEAKER,2013Q4,PERSONNEL COMPENSATION,"","BROWN,MARYAM S",10/01/13,12/31/13,ASST TO SPEAKER FOR POLICY,"42,000.00",2013,"","","","BROWN,MARYAM S"
,OFFICE OF THE SPEAKER,2013Q4,PERSONNEL COMPENSATION,"","BUCK, BRENDAN K",10/01/13,12/31/13,PRESS SECRETARY,"34,500.00",2013,"","","","BUCK, BRENDAN K"
,OFFICE OF THE SPEAKER,2013Q4,PERSONNEL COMPENSATION,"","BUNKER,ANDREW R",10/01/13,11/11/13,FLOOR ASSISTANT,"4,555.55",2013,"","","","BUNKER,ANDREW R"
,OFFICE OF THE SPEAKER,2013Q4,PERSONNEL COMPENSATION,"","CASSIDY, ED",10/01/13,12/31/13,DIRECTOR OF HOUSE OPERATIONS,"42,999.99",2013,"","","","CASSIDY, ED"
,OFFICE OF THE SPEAKER,2013Q4,PERSONNEL COMPENSATION,"","EASBY-SMITH,ANNE S",10/01/13,12/31/13,SPECIAL EVENTS ASSISTANT,"9,249.99",2013,"","","","EASBY-SMITH,ANNE S"
,OFFICE OF THE SPEAKER,2013Q4,PERSONNEL COMPENSATION,"","ECKARD,NASTASHA",10/01/13,12/31/13,ASSIST TO SPEAKER FOR POLICY,"22,125.00",2013,"","","","ECKARD,NASTASHA"
,OFFICE OF THE SPEAKER,2013Q4,PERSONNEL COMPENSATION,"","EICHHORN, JARED D",10/01/13,12/31/13,FLOOR ASSISTANT,"15,000.00",2013,"","","","EICHHORN, JARED D"
,OFFICE OF THE SPEAKER,2013Q4,PERSONNEL COMPENSATION,"","EMBLER, ELIZABETH G",10/01/13,12/31/13,DIRECTOR OF MEDIA AFFAIRS,"22,500.00",2013,"","","","EMBLER, ELIZABETH G"
,OFFICE OF THE SPEAKER,2013Q4,PERSONNEL COMPENSATION,"","FINNEGAN,PATRICK",10/01/13,12/01/13,SPECIAL ASSISTANT TO THE SPEAK,"7,286.10",2013,"","","","FINNEGAN,PATRICK"
,OFFICE OF THE SPEAKER,2013Q4,PERSONNEL COMPENSATION,"","FINNEGAN,PATRICK",12/01/13,12/01/13,SPECIAL ASSISTANT TO THE SPEAK (OTHER COMPENSATION),"3,463.89",2013,"","","","FINNEGAN,PATRICK"
,OFFICE OF THE SPEAKER,2013Q4,PERSONNEL COMPENSATION,"","FRANKS,JESSICA L",10/01/13,12/31/13,STAFF ASSISTANT,"7,500.00",2013,"","","","FRANKS,JESSICA L"
,OFFICE OF THE SPEAKER,2013Q4,PERSONNEL COMPENSATION,"","FRANKS,JESSICA L",09/01/13,11/30/13,STAFF ASSISTANT (OVERTIME),173.07,2013,"","","","FRANKS,JESSICA L"
,OFFICE OF THE SPEAKER,2013Q4,PERSONNEL COMPENSATION,"","GILLESPIE,MAURA M",10/01/13,12/31/13,DEPUTY SCHEDULER,"9,999.99",2013,"","","","GILLESPIE,MAURA M"
,OFFICE OF THE SPEAKER,2013Q4,PERSONNEL COMPENSATION,"","GREEN, JO-MARIE S",10/01/13,12/31/13,GEN COUNSEL/CHIEF OF LEG OPS,"43,125.00",2013,"","","","GREEN, JO-MARIE S"
,OFFICE OF THE SPEAKER,2013Q4,PERSONNEL COMPENSATION,"","GREENE,WILLIAM P",10/01/13,12/31/13,DIRECTOR-OUTREACH,"35,000.01",2013,"","","","GREENE,WILLIAM P"
,OFFICE OF THE SPEAKER,2013Q4,PERSONNEL COMPENSATION,"","HALEY, KATHERINE C",10/01/13,12/31/13,ASST TO SPEAKER FOR POLICY,"24,999.99",2013,"","","","HALEY, KATHERINE C"
,OFFICE OF THE SPEAKER,2013Q4,PERSONNEL COMPENSATION,"","HARROUN, TIMOTHY J",10/01/13,12/31/13,MANAGER REPUBLICAN CLOAKROOM,"33,287.49",2013,"","","","HARROUN, TIMOTHY J"
,OFFICE OF THE SPEAKER,2013Q4,PERSONNEL COMPENSATION,"","HENRIQUEZ,RAUL E",10/01/13,12/31/13,STAFF ASSISTANT,"7,500.00",2013,"","","","HENRIQUEZ,RAUL E"
,OFFICE OF THE SPEAKER,2013Q4,PERSONNEL COMPENSATION,"","HENRIQUEZ,RAUL E",09/01/13,11/30/13,STAFF ASSISTANT (OVERTIME),827.52,2013,"","","","HENRIQUEZ,RAUL E"
,OFFICE OF THE SPEAKER,2013Q4,PERSONNEL COMPENSATION,"","HERRLE, CYNTHIA A",09/01/13,12/31/13,ASST TO THE SPEAKER FOR POLICY,"42,750.00",2013,"","","","HERRLE, CYNTHIA A"
,OFFICE OF THE SPEAKER,2013Q4,PERSONNEL COMPENSATION,"","IVANCIC,CHARLOTTE S",10/01/13,12/31/13,ASSIST TO SPEAKER FOR POLICY,"36,249.99",2013,"","","","IVANCIC,CHARLOTTE S"
,OFFICE OF THE SPEAKER,2013Q4,PERSONNEL COMPENSATION,"","KOLEGO, TREVOR W",10/01/13,12/31/13,DIR OF MEMBER SERVICES,"41,250.00",2013,"","","","KOLEGO, TREVOR W"
,OFFICE OF THE SPEAKER,2013Q4,PERSONNEL COMPENSATION,"","LAMPERT,JUSTIN",10/01/13,12/31/13,RESEARCH ASSISTANT,"11,250.00",2013,"","","","LAMPERT,JUSTIN"
,OFFICE OF THE SPEAKER,2013Q4,PERSONNEL COMPENSATION,"","LEOPOLD,PATRICK R",10/01/13,12/31/13,SHARED EMPLOYEE,"20,000.01",2013,"","","","LEOPOLD,PATRICK R"
,OFFICE OF THE SPEAKER,2013Q4,PERSONNEL COMPENSATION,"","LOHMEYER,SONJA M",10/01/13,12/31/13,DIRECTOR OF PUBLIC LIAISON,"32,499.99",2013,"","","","LOHMEYER,SONJA M"
,OFFICE OF THE SPEAKER,2013Q4,PERSONNEL COMPENSATION,"","LOZUPONE, AMY S",10/01/13,12/31/13,DIRECTOR OF ADMIN OPERATIONS,"42,000.00",2013,"","","","LOZUPONE, AMY S"
,OFFICE OF THE SPEAKER,2013Q4,PERSONNEL COMPENSATION,"","LUKEMAN,KATHERINE A",10/01/13,11/30/13,ASSIST TO THE SPEAKER F/POLICY,"11,062.50",2013,"","","","LUKEMAN,KATHERINE A"
,OFFICE OF THE SPEAKER,2013Q4,PERSONNEL COMPENSATION,"","LUKEMAN,KATHERINE A",11/01/13,11/30/13,ASSIST TO THE SPEAKER F/POLICY (OTHER COMPENSATION),"3,687.50",2013,"","","","LUKEMAN,KATHERINE A"
,OFFICE OF THE SPEAKER,2013Q4,PERSONNEL COMPENSATION,"","MACDONALD, BRIAN C",10/01/13,12/31/13,SHARED EMPLOYEE,"20,000.01",2013,"","","","MACDONALD, BRIAN C"
,OFFICE OF THE SPEAKER,2013Q4,PERSONNEL COMPENSATION,"","MALKERSON,COLTON H",10/01/13,12/31/13,STAFF ASSISTANT,"7,500.00",2013,"","","","MALKERSON,COLTON H"
,OFFICE OF THE SPEAKER,2013Q4,PERSONNEL COMPENSATION,"","MALKERSON,COLTON H",09/01/13,11/30/13,STAFF ASSISTANT (OVERTIME),849.15,2013,"","","","MALKERSON,COLTON H"
,OFFICE OF THE SPEAKER,2013Q4,PERSONNEL COMPENSATION,"","MILLER,WILLIAM",10/01/13,11/30/13,STAFF ASSISTANT,"5,333.34",2013,"","","","MILLER,WILLIAM"
,OFFICE OF THE SPEAKER,2013Q4,PERSONNEL COMPENSATION,"","MILLER,WILLIAM",12/01/13,12/31/13,SENIOR STAFF ASSISTANT,"3,166.67",2013,"","","","MILLER,WILLIAM"
,OFFICE OF THE SPEAKER,2013Q4,PERSONNEL COMPENSATION,"","MILLER,WILLIAM",09/01/13,11/30/13,STAFF ASSISTANT (OVERTIME),"1,401.90",2013,"","","","MILLER,WILLIAM"
,OFFICE OF THE SPEAKER,2013Q4,PERSONNEL COMPENSATION,"","MINKLER,ANN W",10/01/13,12/31/13,FLOOR ASSISTANT,"10,749.99",2013,"","","","MINKLER,ANN W"
,OFFICE OF THE SPEAKER,2013Q4,PERSONNEL COMPENSATION,"","PALISI,ANNIE",10/01/13,12/31/13,DEPUTY DIRECTOR OF MEMBER SVCS,"37,500.00",2013,"","","","PALISI,ANNIE"
,OFFICE OF THE SPEAKER,2013Q4,PERSONNEL COMPENSATION,"","PALMER, ASHLEY M",10/01/13,12/31/13,SHARED EMPLOYEE,"5,000.01",2013,"","","","PALMER, ASHLEY M"
,OFFICE OF THE SPEAKER,2013Q4,PERSONNEL COMPENSATION,"","PROPP,ELIZABETH R",10/01/13,12/31/13,DIR OF ADVANCE & MEDIA EVENTS,"16,749.99",2013,"","","","PROPP,ELIZABETH R"
,OFFICE OF THE SPEAKER,2013Q4,PERSONNEL COMPENSATION,"","RATCLIFFE,RAMSEY E",10/01/13,12/31/13,SPECIAL EVENTS ASSISTANT,"9,249.99",2013,"","","","RATCLIFFE,RAMSEY E"
,OFFICE OF THE SPEAKER,2013Q4,PERSONNEL COMPENSATION,"","REED, HEATHER E",10/01/13,12/31/13,ASSISTANT PRESS SECRETARY,"12,500.01",2013,"","","","REED, HEATHER E"
,OFFICE OF THE SPEAKER,2013Q4,PERSONNEL COMPENSATION,"","RENZ, BRANDON",10/01/13,12/31/13,SHARED EMPLOYEE,"20,000.01",2013,"","","","RENZ, BRANDON"
,OFFICE OF THE SPEAKER,2013Q4,PERSONNEL COMPENSATION,"","RICCI,MICHAEL",10/01/13,11/30/13,DIRECTOR OF SPEECHWRITING,"23,333.34",2013,"","","","RICCI,MICHAEL"
,OFFICE OF THE SPEAKER,2013Q4,PERSONNEL COMPENSATION,"","RICCI,MICHAEL",12/01/13,12/31/13,DEPUTY COMMUNICATIONS DIRECTOR,"12,083.33",2013,"","","","RICCI,MICHAEL"
,OFFICE OF THE SPEAKER,2013Q4,PERSONNEL COMPENSATION,"","ROBINSON,GREGORY J",10/01/13,11/30/13,PROFESSIONAL STAFF,"8,666.66",2013,"","","","ROBINSON,GREGORY J"
,OFFICE OF THE SPEAKER,2013Q4,PERSONNEL COMPENSATION,"","ROBINSON,GREGORY J",12/01/13,12/31/13,ASSOCIATE COUNSEL,"4,333.33",2013,"","","","ROBINSON,GREGORY J"
,OFFICE OF THE SPEAKER,2013Q4,PERSONNEL COMPENSATION,"","SAGER,MICHAEL J",10/01/13,12/31/13,SYSTEMS ADMINISTRATOR,"20,000.01",2013,"","","","SAGER,MICHAEL J"
,OFFICE OF THE SPEAKER,2013Q4,PERSONNEL COMPENSATION,"","SCHNITTGER, DAVID M",10/01/13,12/31/13,DEPUTY CHIEF OF STAFF,"43,125.00",2013,"","","","SCHNITTGER, DAVID M"
,OFFICE OF THE SPEAKER,2013Q4,PERSONNEL COMPENSATION,"","SEYMOUR JR, DONALD P",10/01/13,12/01/13,DEPUTY COMM DIRECTOR,"24,738.90",2013,"","","","SEYMOUR JR, DONALD P"
,OFFICE OF THE SPEAKER,2013Q4,PERSONNEL COMPENSATION,"","SEYMOUR JR, DONALD P",12/01/13,12/01/13,DEPUTY COMM DIRECTOR (OTHER COMPENSATION),"11,761.11",2013,"","","","SEYMOUR JR, DONALD P"
,OFFICE OF THE SPEAKER,2013Q4,PERSONNEL COMPENSATION,"","SMITH, CALEB J",10/01/13,12/31/13,DIGITAL COMMUNICATIONS DIRECTO,"22,500.00",2013,"","","","SMITH, CALEB J"
,OFFICE OF THE SPEAKER,2013Q4,PERSONNEL COMPENSATION,"","SMITH, KEVIN",10/01/13,12/31/13,DIRECTOR OF COMMUNICATIONS,"41,250.00",2013,"","","","SMITH, KEVIN"
,OFFICE OF THE SPEAKER,2013Q4,PERSONNEL COMPENSATION,"","SOMMERS, MICHAEL J",10/01/13,12/31/13,CHIEF OF STAFF,"43,125.00",2013,"","","","SOMMERS, MICHAEL J"
,OFFICE OF THE SPEAKER,2013Q4,PERSONNEL COMPENSATION,"","STEEL, MICHAEL",10/01/13,12/31/13,PRESS SECRETARY,"37,500.00",2013,"","","","STEEL, MICHAEL"
,OFFICE OF THE SPEAKER,2013Q4,PERSONNEL COMPENSATION,"","STEWART, DAVID B",10/01/13,12/31/13,POLICY DIRECTOR (STAT),"43,125.00",2013,"","","","STEWART, DAVID B"
,OFFICE OF THE SPEAKER,2013Q4,PERSONNEL COMPENSATION,"","STEWART, JENNIFER M",10/01/13,12/31/13,ASST TO SPEAKER FOR POLICY,"27,500.01",2013,"","","","STEWART, JENNIFER M"
,OFFICE OF THE SPEAKER,2013Q4,PERSONNEL COMPENSATION,"","STRUNK, LYDIA",10/01/13,12/31/13,DEPUTY FLOOR DIRECTOR,"18,055.55",2013,"","","","STRUNK, LYDIA"
,OFFICE OF THE SPEAKER,2013Q4,PERSONNEL COMPENSATION,"","SWANSON,RANDY A",10/01/13,12/31/13,SHARED EMPLOYEE,"20,000.01",2013,"","","","SWANSON,RANDY A"
,OFFICE OF THE SPEAKER,2013Q4,PERSONNEL COMPENSATION,"","TALLENT,REBECCA A",12/04/13,12/31/13,ASST TO SPEAKER FOR POLICY,"12,600.00",2013,"","","","TALLENT,REBECCA A"
,OFFICE OF THE SPEAKER,2013Q4,PERSONNEL COMPENSATION,"","THORSEN, ANNE B",10/01/13,12/31/13,FLOOR DIRECTOR,"41,250.00",2013,"","","","THORSEN, ANNE B"
,OFFICE OF THE SPEAKER,2013Q4,PERSONNEL COMPENSATION,"","WORTH,BRIAN A",10/01/13,12/31/13,SHARED EMPLOYEE,"24,999.99",2013,"","","","WORTH,BRIAN A"
,OFFICE OF THE SPEAKER,2013Q4,TRAVEL,11-14,"SMITH, CALEB",10/24/13,10/25/13,COMMERCIAL TRANSPORTATION,629.80,2013,AP,Accounts payable,E0083716,"SMITH, CALEB"
,OFFICE OF THE SPEAKER,2013Q4,TRAVEL,11-14,"SMITH, CALEB",10/25/13,10/25/13,GASOLINE,11.83,2013,AP,Accounts payable,E0083723,"SMITH, CALEB"
,OFFICE OF THE SPEAKER,2013Q4,TRAVEL,11-14,"SMITH, CALEB",10/24/13,10/25/13,CAR RENTAL,23.54,2013,AP,Accounts payable,E0083728,"SMITH, CALEB"
,OFFICE OF THE SPEAKER,2013Q4,TRAVEL,11-14,"SMITH, CALEB",10/25/13,10/25/13,MEALS,12.98,2013,AP,Accounts payable,E0083859,"SMITH, CALEB"
,OFFICE OF THE SPEAKER,2013Q4,TRAVEL,11-15,"SMITH, CALEB",10/24/13,10/25/13,LODGING,138.66,2013,AP,Accounts payable,E0083729,"SMITH, CALEB"
,OFFICE OF THE SPEAKER,2013Q4,TRAVEL,12-04,ANDRES ELIZABETH G,11/24/13,11/26/13,LODGING,296.93,2013,AP,Accounts payable,E0091255,ANDRES ELIZABETH G
,OFFICE OF THE SPEAKER,2013Q4,TRAVEL,12-05,"SMITH, CALEB",11/24/13,11/26/13,MEALS,36.31,2013,AP,Accounts payable,E0091252,"SMITH, CALEB"
,OFFICE OF THE SPEAKER,2013Q4,TRAVEL,12-05,ANDRES ELIZABETH G,11/24/13,11/26/13,COMMERCIAL TRANSPORTATION,673.80,2013,AP,Accounts payable,E0091260,ANDRES ELIZABETH G
,OFFICE OF THE SPEAKER,2013Q4,TRAVEL,12-05,"SMITH, CALEB",11/23/13,11/26/13,COMMERCIAL TRANSPORTATION,793.80,2013,AP,Accounts payable,E0091263,"SMITH, CALEB"
,OFFICE OF THE SPEAKER,2013Q4,TRAVEL,12-09,ANDRES ELIZABETH G,11/24/13,11/26/13,CAR RENTAL,471.89,2013,AP,Accounts payable,E0091262,ANDRES ELIZABETH G
,OFFICE OF THE SPEAKER,2013Q4,TRAVEL,12-09,"SMITH, CALEB",11/24/13,11/26/13,LODGING,207.00,2013,AP,Accounts payable,E0091296,"SMITH, CALEB"
,OFFICE OF THE SPEAKER,2013Q4,PRINTING AND REPRODUCTION,10-28,"",10/01/13,10/31/13,PHOTOGRAPHIC (TRANSFER),42.30,2013,GL,General ledger,PIX0033710,""
,OFFICE OF THE SPEAKER,2013Q4,PRINTING AND REPRODUCTION,11-22,"",11/01/13,11/30/13,PHOTOGRAPHIC (TRANSFER),384.00,2013,GL,General ledger,PIX0034499,""
,OFFICE OF THE SPEAKER,2013Q4,PRINTING AND REPRODUCTION,12-20,"",12/01/13,12/31/13,PHOTOGRAPHIC (TRANSFER),484.80,2013,GL,General ledger,PIX0035150,""
,OFFICE OF THE SPEAKER,2013Q4,SUPPLIES AND MATERIALS,10-21,"LOHMEYER, SONJA M",10/02/13,10/02/13,FOOD & BEVERAGE,44.35,2013,AP,Accounts payable,E0072140,"LOHMEYER, SONJA M"
,OFFICE OF THE SPEAKER,2013Q4,SUPPLIES AND MATERIALS,10-24,HAGUE QUALITY WATER OF MD INC,10/04/13,11/03/13,WATER,315.00,2013,AP,Accounts payable,E0070947,HAGUE QUALITY WATER OF MD INC
,OFFICE OF THE SPEAKER,2013Q4,SUPPLIES AND MATERIALS,11-01,COCA-COLA REFRESHMENTS,10/22/13,10/22/13,FOOD & BEVERAGE,136.08,2013,AP,Accounts payable,E0079770,COCA-COLA REFRESHMENTS
,OFFICE OF THE SPEAKER,2013Q4,SUPPLIES AND MATERIALS,11-04,COCA-COLA REFRESHMENTS,10/29/13,10/29/13,FOOD & BEVERAGE,210.24,2013,AP,Accounts payable,E0080358,COCA-COLA REFRESHMENTS
,OFFICE OF THE SPEAKER,2013Q4,SUPPLIES AND MATERIALS,11-06,AMARYLLIS INC,10/30/13,10/30/13,HABITATION EXPENSE,315.00,2013,AP,Accounts payable,E0080362,AMARYLLIS INC
,OFFICE OF THE SPEAKER,2013Q4,SUPPLIES AND MATERIALS,11-13,HAGUE QUALITY WATER OF MD INC,11/01/13,11/30/13,WATER,315.00,2013,AP,Accounts payable,E0083701,HAGUE QUALITY WATER OF MD INC
,OFFICE OF THE SPEAKER,2013Q4,SUPPLIES AND MATERIALS,11-13,DESIGN CUISINE,10/30/13,10/30/13,FOOD & BEVERAGE,"13,645.00",2013,AP,Accounts payable,E0083707,DESIGN CUISINE
,OFFICE OF THE SPEAKER,2013Q4,SUPPLIES AND MATERIALS,11-20,"GILLESPIE, MAURA M",11/06/13,11/06/13,HABITATION EXPENSE,187.12,2013,AP,Accounts payable,E0086661,"GILLESPIE, MAURA M"
,OFFICE OF THE SPEAKER,2013Q4,SUPPLIES AND MATERIALS,11-20,DAIOHS FIRST CHOICE COFFEE SERVICES,10/04/13,10/04/13,FOOD & BEVERAGE,786.58,2013,AP,Accounts payable,E0086662,DAIOHS FIRST CHOICE COFFEE SERVICES
,OFFICE OF THE SPEAKER,2013Q4,SUPPLIES AND MATERIALS,11-20,DAIOHS FIRST CHOICE COFFEE SERVICES,10/16/13,10/16/13,FOOD & BEVERAGE,393.00,2013,AP,Accounts payable,E0086663,DAIOHS FIRST CHOICE COFFEE SERVICES
,OFFICE OF THE SPEAKER,2013Q4,SUPPLIES AND MATERIALS,11-20,DAIOHS FIRST CHOICE COFFEE SERVICES,10/04/13,10/04/13,FOOD & BEVERAGE,31.90,2013,AP,Accounts payable,E0086664,DAIOHS FIRST CHOICE COFFEE SERVICES
,OFFICE OF THE SPEAKER,2013Q4,SUPPLIES AND MATERIALS,11-20,COCA-COLA REFRESHMENTS,11/19/13,11/19/13,FOOD & BEVERAGE,167.04,2013,AP,Accounts payable,E0086666,COCA-COLA REFRESHMENTS
,OFFICE OF THE SPEAKER,2013Q4,SUPPLIES AND MATERIALS,11-20,DAIOHS FIRST CHOICE COFFEE SERVICES,10/23/13,10/23/13,FOOD & BEVERAGE,263.99,2013,AP,Accounts payable,E0086667,DAIOHS FIRST CHOICE COFFEE SERVICES
,OFFICE OF THE SPEAKER,2013Q4,SUPPLIES AND MATERIALS,11-20,DAIOHS FIRST CHOICE COFFEE SERVICES,10/10/13,10/10/13,FOOD & BEVERAGE,50.00,2013,AP,Accounts payable,E0086668,DAIOHS FIRST CHOICE COFFEE SERVICES
,OFFICE OF THE SPEAKER,2013Q4,SUPPLIES AND MATERIALS,11-20,DAIOHS FIRST CHOICE COFFEE SERVICES,10/09/13,10/09/13,FOOD & BEVERAGE,908.28,2013,AP,Accounts payable,E0086669,DAIOHS FIRST CHOICE COFFEE SERVICES
,OFFICE OF THE SPEAKER,2013Q4,SUPPLIES AND MATERIALS,11-20,DAIOHS FIRST CHOICE COFFEE SERVICES,10/30/13,10/30/13,FOOD & BEVERAGE,574.32,2013,AP,Accounts payable,E0086670,DAIOHS FIRST CHOICE COFFEE SERVICES
,OFFICE OF THE SPEAKER,2013Q4,SUPPLIES AND MATERIALS,11-20,DAIOHS FIRST CHOICE COFFEE SERVICES,10/11/13,10/11/13,FOOD & BEVERAGE,15.00,2013,AP,Accounts payable,E0086671,DAIOHS FIRST CHOICE COFFEE SERVICES
,OFFICE OF THE SPEAKER,2013Q4,SUPPLIES AND MATERIALS,11-21,CITI PCARD-CAFE RIO MEXICAN GRILL,10/01/13,10/28/13,FOOD & BEVERAGE,248.33,2013,AP,Accounts payable,00700548,CITI PCARD-CAFE RIO MEXICAN GRILL
,OFFICE OF THE SPEAKER,2013Q4,SUPPLIES AND MATERIALS,11-21,CITI PCARD-CAPITOL HOST (RIDGEWEL,10/01/13,10/28/13,FOOD & BEVERAGE,"3,284.70",2013,AP,Accounts payable,00700548,CITI PCARD-CAPITOL HOST (RIDGEWEL
,OFFICE OF THE SPEAKER,2013Q4,SUPPLIES AND MATERIALS,11-21,CITI PCARD-CORNER BAKERY,10/01/13,10/28/13,FOOD & BEVERAGE,"1,396.10",2013,AP,Accounts payable,00700548,CITI PCARD-CORNER BAKERY
,OFFICE OF THE SPEAKER,2013Q4,SUPPLIES AND MATERIALS,11-21,CITI PCARD-DISTRICT TACO,10/01/13,10/28/13,FOOD & BEVERAGE,433.50,2013,AP,Accounts payable,00700548,CITI PCARD-DISTRICT TACO
,OFFICE OF THE SPEAKER,2013Q4,SUPPLIES AND MATERIALS,11-21,CITI PCARD-FIREHOOK - CAPITOL HIL,10/01/13,10/28/13,FOOD & BEVERAGE,104.45,2013,AP,Accounts payable,00700548,CITI PCARD-FIREHOOK - CAPITOL HIL
,OFFICE OF THE SPEAKER,2013Q4,SUPPLIES AND MATERIALS,11-21,CITI PCARD-FTD SEMINOLE GARDEN FL,10/01/13,10/28/13,HABITATION EXPENSE,258.50,2013,AP,Accounts payable,00700548,CITI PCARD-FTD SEMINOLE GARDEN FL
,OFFICE OF THE SPEAKER,2013Q4,SUPPLIES AND MATERIALS,11-21,CITI PCARD-HILL COUNTRY BARBECUE,10/01/13,10/28/13,FOOD & BEVERAGE,475.50,2013,AP,Accounts payable,00700548,CITI PCARD-HILL COUNTRY BARBECUE
,OFFICE OF THE SPEAKER,2013Q4,SUPPLIES AND MATERIALS,11-21,CITI PCARD-HUNAN DYNASTY,10/01/13,10/28/13,FOOD & BEVERAGE,346.55,2013,AP,Accounts payable,00700548,CITI PCARD-HUNAN DYNASTY
,OFFICE OF THE SPEAKER,2013Q4,SUPPLIES AND MATERIALS,11-21,CITI PCARD-MATCHBOX CAPITOL HILL,10/01/13,10/28/13,FOOD & BEVERAGE,276.20,2013,AP,Accounts payable,00700548,CITI PCARD-MATCHBOX CAPITOL HILL
,OFFICE OF THE SPEAKER,2013Q4,SUPPLIES AND MATERIALS,11-21,CITI PCARD-TAYLOR GOURMET,10/01/13,10/28/13,FOOD & BEVERAGE,514.00,2013,AP,Accounts payable,00700548,CITI PCARD-TAYLOR GOURMET
,OFFICE OF THE SPEAKER,2013Q4,SUPPLIES AND MATERIALS,11-21,CITI PCARD-THE GREEN BOOK,10/01/13,10/28/13,PUBLICATIONS/REFERENCE MAT'L,120.00,2013,AP,Accounts payable,00700548,CITI PCARD-THE GREEN BOOK
,OFFICE OF THE SPEAKER,2013Q4,SUPPLIES AND MATERIALS,12-05,DAIOHS FIRST CHOICE COFFEE SERVICES,11/20/13,11/20/13,FOOD & BEVERAGE,748.45,2013,AP,Accounts payable,E0091256,DAIOHS FIRST CHOICE COFFEE SERVICES
,OFFICE OF THE SPEAKER,2013Q4,SUPPLIES AND MATERIALS,12-05,DAIOHS FIRST CHOICE COFFEE SERVICES,11/13/13,11/13/13,FOOD & BEVERAGE,325.00,2013,AP,Accounts payable,E0091259,DAIOHS FIRST CHOICE COFFEE SERVICES
,OFFICE OF THE SPEAKER,2013Q4,SUPPLIES AND MATERIALS,12-09,DAIOHS FIRST CHOICE COFFEE SERVICES,11/06/13,11/06/13,FOOD & BEVERAGE,484.02,2013,AP,Accounts payable,E0091294,DAIOHS FIRST CHOICE COFFEE SERVICES
,OFFICE OF THE SPEAKER,2013Q4,SUPPLIES AND MATERIALS,12-10,"EASBY-SMITH, ANNE S",11/27/13,11/27/13,FOOD & BEVERAGE,85.80,2013,AP,Accounts payable,E0091261,"EASBY-SMITH, ANNE S"
,OFFICE OF THE SPEAKER,2013Q4,SUPPLIES AND MATERIALS,12-10,HAGUE QUALITY WATER OF MD INC,12/04/13,01/03/14,WATER,315.00,2013,AP,Accounts payable,E0092034,HAGUE QUALITY WATER OF MD INC
,OFFICE OF THE SPEAKER,2013Q4,SUPPLIES AND MATERIALS,12-17,"GILLESPIE, MAURA M",12/03/13,12/03/13,HABITATION EXPENSE,54.97,2013,AP,Accounts payable,E0095037,"GILLESPIE, MAURA M"
,OFFICE OF THE SPEAKER,2013Q4,SUPPLIES AND MATERIALS,12-20,CITI PCARD-ARTISTIC FRAMING,10/29/13,11/28/13,HABITATION EXPENSE,422.08,2013,AP,Accounts payable,00705465,CITI PCARD-ARTISTIC FRAMING
,OFFICE OF THE SPEAKER,2013Q4,SUPPLIES AND MATERIALS,12-20,CITI PCARD-CAPITOL HOST (RIDGEWEL,10/29/13,11/28/13,FOOD & BEVERAGE,105.00,2013,AP,Accounts payable,00705465,CITI PCARD-CAPITOL HOST (RIDGEWEL
,OFFICE OF THE SPEAKER,2013Q4,SUPPLIES AND MATERIALS,12-20,CITI PCARD-DUNKIN,10/29/13,11/28/13,FOOD & BEVERAGE,23.97,2013,AP,Accounts payable,00705465,CITI PCARD-DUNKIN
,OFFICE OF THE SPEAKER,2013Q4,SUPPLIES AND MATERIALS,12-20,CITI PCARD-HILL COUNTRY BARBECUE,10/29/13,11/28/13,FOOD & BEVERAGE,445.00,2013,AP,Accounts payable,00705465,CITI PCARD-HILL COUNTRY BARBECUE
,OFFICE OF THE SPEAKER,2013Q4,SUPPLIES AND MATERIALS,12-20,CITI PCARD-PORT OF PIRAEUS III,10/29/13,11/28/13,FOOD & BEVERAGE,251.64,2013,AP,Accounts payable,00705465,CITI PCARD-PORT OF PIRAEUS III
,OFFICE OF THE SPEAKER,2013Q4,SUPPLIES AND MATERIALS,12-20,CITI PCARD-TAYLOR GOURMET,10/29/13,11/28/13,FOOD & BEVERAGE,789.00,2013,AP,Accounts payable,00705465,CITI PCARD-TAYLOR GOURMET
,OFFICE OF THE SPEAKER,2013Q4,SUPPLIES AND MATERIALS,12-20,CITI PCARD-WHOLEFDS PST,10/29/13,11/28/13,FOOD & BEVERAGE,"1,269.41",2013,AP,Accounts payable,00705465,CITI PCARD-WHOLEFDS PST
,OFFICE OF THE MAJORITY LEADER,2013Q4,PERSONNEL COMPENSATION,"","BARRERA,AMY D",10/01/13,12/31/13,DIRECTOR OF ADMINISTRATION,"15,375.00",2013,"","","","BARRERA,AMY D"
,OFFICE OF THE MAJORITY LEADER,2013Q4,PERSONNEL COMPENSATION,"","BORDEN III, R C",10/01/13,12/31/13,SHARED EMPLOYEE,300.00,2013,"","","","BORDEN III, R C"
,OFFICE OF THE MAJORITY LEADER,2013Q4,PERSONNEL COMPENSATION,"","BRADLEY, NEIL L",10/01/13,12/31/13,DEPUTY CHEIF OF STAFF,"43,125.00",2013,"","","","BRADLEY, NEIL L"
,OFFICE OF THE MAJORITY LEADER,2013Q4,PERSONNEL COMPENSATION,"","CHRISTENSEN, AUTUMN",10/01/13,12/31/13,SHARED EMPLOYEE,"3,000.00",2013,"","","","CHRISTENSEN, AUTUMN"
,OFFICE OF THE MAJORITY LEADER,2013Q4,PERSONNEL COMPENSATION,"","COOPER,RORY S",10/01/13,12/31/13,DIRECTOR OF COMMUNICATIONS,"36,249.99",2013,"","","","COOPER,RORY S"
,OFFICE OF THE MAJORITY LEADER,2013Q4,PERSONNEL COMPENSATION,"","CUTLER,AARON",10/01/13,12/31/13,SR. ADV FOR POLICY & OUTREACH,"32,000.01",2013,"","","","CUTLER,AARON"
,OFFICE OF THE MAJORITY LEADER,2013Q4,PERSONNEL COMPENSATION,"","EDWARDS,SPENCER M",10/01/13,12/31/13,STAFF ASSISTANT,"6,000.00",2013,"","","","EDWARDS,SPENCER M"
,OFFICE OF THE MAJORITY LEADER,2013Q4,PERSONNEL COMPENSATION,"","GUSTAFSON,NICOLE M",10/01/13,12/31/13,POLICY ADVISOR/COUNSEL,"13,749.99",2013,"","","","GUSTAFSON,NICOLE M"
,OFFICE OF THE MAJORITY LEADER,2013Q4,PERSONNEL COMPENSATION,"","HEYE,DOUGLAS R",10/01/13,12/31/13,DEPUTY CHIEF OF STAFF-COMMUNIC,"42,000.00",2013,"","","","HEYE,DOUGLAS R"
,OFFICE OF THE MAJORITY LEADER,2013Q4,PERSONNEL COMPENSATION,"","JAEGER, CHERYL L",10/01/13,12/31/13,SENIOR POLICY ADVISOR,"22,149.99",2013,"","","","JAEGER, CHERYL L"
,OFFICE OF THE MAJORITY LEADER,2013Q4,PERSONNEL COMPENSATION,"","JAMERSON,ALLEN J",10/01/13,12/31/13,SPECIAL ASSISTANT,"6,249.99",2013,"","","","JAMERSON,ALLEN J"
,OFFICE OF THE MAJORITY LEADER,2013Q4,PERSONNEL COMPENSATION,"","JOSEPH,COURTNEY E",10/01/13,12/31/13,CONGRESSIONAL STAFF,"4,749.99",2013,"","","","JOSEPH,COURTNEY E"
,OFFICE OF THE MAJORITY LEADER,2013Q4,PERSONNEL COMPENSATION,"","KAREM,ROBERT S",10/01/13,12/31/13,SENIOR POLICY ADVISOR,"32,000.01",2013,"","","","KAREM,ROBERT S"
,OFFICE OF THE MAJORITY LEADER,2013Q4,PERSONNEL COMPENSATION,"","KEECH,EMILY H",10/01/13,12/31/13,DEPUTY DIRECTOR OF MEMBER SVCS,"7,749.99",2013,"","","","KEECH,EMILY H"
,OFFICE OF THE MAJORITY LEADER,2013Q4,PERSONNEL COMPENSATION,"","KISH,SARAH M",10/01/13,12/31/13,FLOOR ASSISTANT,"13,749.99",2013,"","","","KISH,SARAH M"
,OFFICE OF THE MAJORITY LEADER,2013Q4,PERSONNEL COMPENSATION,"","KLUTTZ,LAWSON T",10/01/13,12/31/13,STAFF ASSISTANT,"6,000.00",2013,"","","","KLUTTZ,LAWSON T"
,OFFICE OF THE MAJORITY LEADER,2013Q4,PERSONNEL COMPENSATION,"","MAHAN,ROGER A",10/01/13,12/31/13,POLICY ADVISOR,"17,499.99",2013,"","","","MAHAN,ROGER A"
,OFFICE OF THE MAJORITY LEADER,2013Q4,PERSONNEL COMPENSATION,"","MARCELLI,NICHOLAS G",10/01/13,12/31/13,DEPUTY DIR DIGITAL MEDIA,"12,000.00",2013,"","","","MARCELLI,NICHOLAS G"
,OFFICE OF THE MAJORITY LEADER,2013Q4,PERSONNEL COMPENSATION,"","PATAKI,TIMOTHY A",10/01/13,12/31/13,FLOOR ASSISTANT,"11,250.00",2013,"","","","PATAKI,TIMOTHY A"
,OFFICE OF THE MAJORITY LEADER,2013Q4,PERSONNEL COMPENSATION,"","PATRU, KATHRYN M",10/01/13,12/31/13,DIR OF MEMBER SERVICES,"37,500.00",2013,"","","","PATRU, KATHRYN M"
,OFFICE OF THE MAJORITY LEADER,2013Q4,PERSONNEL COMPENSATION,"","STAPLETON,JOHN O",10/01/13,12/31/13,SPEECH WRITER,"13,749.99",2013,"","","","STAPLETON,JOHN O"
,OFFICE OF THE MAJORITY LEADER,2013Q4,PERSONNEL COMPENSATION,"","STEWART,WYATT A",10/01/13,12/31/13,POLICY ADVISOR,"15,000.00",2013,"","","","STEWART,WYATT A"
,OFFICE OF THE MAJORITY LEADER,2013Q4,PERSONNEL COMPENSATION,"","STOMBRES, STEVEN C",10/01/13,12/31/13,CHIEF OF STAFF,"43,125.00",2013,"","","","STOMBRES, STEVEN C"
,OFFICE OF THE MAJORITY LEADER,2013Q4,PERSONNEL COMPENSATION,"","VIESON, CHRISTOPHER W",10/01/13,12/31/13,DIRECTOR OF FLOOR OPERATIONS,"35,000.01",2013,"","","","VIESON, CHRISTOPHER W"
,OFFICE OF THE MAJORITY LEADER,2013Q4,PERSONNEL COMPENSATION,"","VILLARI,GENEVIEVE C",10/01/13,12/31/13,DEPUTY PRESS SECRETARY,"16,250.01",2013,"","","","VILLARI,GENEVIEVE C"
,OFFICE OF THE MAJORITY LEADER,2013Q4,PERSONNEL COMPENSATION,"","WALSH,WILLIAM C",10/01/13,12/31/13,DIRECTOR DIGITAL MEDIA,"13,500.00",2013,"","","","WALSH,WILLIAM C"
,OFFICE OF THE MAJORITY LEADER,2013Q4,PERSONNEL COMPENSATION,"","WILLIAMS, KELLY K",10/01/13,12/31/13,DIR OF PROTOCOL & OPERATIONS,"9,500.01",2013,"","","","WILLIAMS, KELLY K"
,OFFICE OF THE MAJORITY LEADER,2013Q4,TRAVEL,12-31,"VILLARI, GENEVIEVE",11/15/13,11/15/13,PRIVATE AUTO MILEAGE,125.43,2013,AP,Accounts payable,E0101562,"VILLARI, GENEVIEVE"
,OFFICE OF THE MAJORITY LEADER,2013Q4,PRINTING AND REPRODUCTION,12-20,CITI PCARD-YAHOO FLICKR PRO US,10/29/13,11/28/13,PRINTING & REPRODUCTION,24.95,2013,AP,Accounts payable,00705465,CITI PCARD-YAHOO FLICKR PRO US
,OFFICE OF THE MAJORITY LEADER,2013Q4,PRINTING AND REPRODUCTION,12-20,"",12/01/13,12/31/13,PHOTOGRAPHIC (TRANSFER),18.20,2013,GL,General ledger,PIX0035150,""
,OFFICE OF THE MAJORITY LEADER,2013Q4,SUPPLIES AND MATERIALS,11-04,DAIOHS FIRST CHOICE COFFEE SERVICES,10/09/13,10/09/13,FOOD & BEVERAGE,685.30,2013,AP,Accounts payable,E0080399,DAIOHS FIRST CHOICE COFFEE SERVICES
,OFFICE OF THE MAJORITY LEADER,2013Q4,SUPPLIES AND MATERIALS,11-04,DAIOHS FIRST CHOICE COFFEE SERVICES,10/29/13,10/29/13,FOOD & BEVERAGE,283.85,2013,AP,Accounts payable,E0080401,DAIOHS FIRST CHOICE COFFEE SERVICES
,OFFICE OF THE MAJORITY LEADER,2013Q4,SUPPLIES AND MATERIALS,11-21,CITI PCARD-D J WALL-ST-JOURNAL,10/01/13,10/28/13,PUBLICATIONS/REFERENCE MAT'L,3.83,2013,AP,Accounts payable,00700548,CITI PCARD-D J WALL-ST-JOURNAL
,OFFICE OF THE MAJORITY LEADER,2013Q4,SUPPLIES AND MATERIALS,11-21,CITI PCARD-SAFEWAY STORE,10/01/13,10/28/13,FOOD & BEVERAGE,264.94,2013,AP,Accounts payable,00700548,CITI PCARD-SAFEWAY STORE
,OFFICE OF THE MAJORITY LEADER,2013Q4,SUPPLIES AND MATERIALS,12-10,DAIOHS FIRST CHOICE COFFEE SERVICES,11/13/13,12/12/13,FOOD & BEVERAGE,465.15,2013,AP,Accounts payable,E0091929,DAIOHS FIRST CHOICE COFFEE SERVICES
,OFFICE OF THE MAJORITY LEADER,2013Q4,SUPPLIES AND MATERIALS,12-20,CITI PCARD-SAFEWAY STORE,10/29/13,11/28/13,FOOD & BEVERAGE,578.50,2013,AP,Accounts payable,00705465,CITI PCARD-SAFEWAY STORE
,OFFICE OF THE MAJORITY LEADER,2013Q4,SUPPLIES AND MATERIALS,12-31,DAIOHS FIRST CHOICE COFFEE SERVICES,12/02/13,12/02/13,FOOD & BEVERAGE,316.55,2013,AP,Accounts payable,E0101561,DAIOHS FIRST CHOICE COFFEE SERVICES
,OFFICE OF THE MAJORITY LEADER,2013Q4,SUPPLIES AND MATERIALS,12-31,LEXIS-NEXIS,10/01/13,10/31/13,PUBLICATIONS/REFERENCE MAT'L,625.00,2013,AP,Accounts payable,E0101563,LEXIS-NEXIS
,OFFICE OF THE MAJORITY LEADER,2013Q4,SUPPLIES AND MATERIALS,12-31,DEER PARK WATER,10/27/13,11/26/13,FOOD & BEVERAGE,640.01,2013,AP,Accounts payable,E0101565,DEER PARK WATER
,OFFICE OF THE MINORITY LEADER,2013Q4,PERSONNEL COMPENSATION,"","ABOUCHAR, KEITH S",10/01/13,12/31/13,SENIOR POLICY ADVISOR,"32,700.00",2013,"","","","ABOUCHAR, KEITH S"
,OFFICE OF THE MINORITY LEADER,2013Q4,PERSONNEL COMPENSATION,"","ADRIANCE,EDWIN A",10/22/13,12/31/13,PRESS ASSISTANT,"5,750.00",2013,"","","","ADRIANCE,EDWIN A"
,OFFICE OF THE MINORITY LEADER,2013Q4,PERSONNEL COMPENSATION,"","ADRIANCE,EDWIN A",10/22/13,11/30/13,PRESS ASSISTANT (OVERTIME),"1,687.48",2013,"","","","ADRIANCE,EDWIN A"
,OFFICE OF THE MINORITY LEADER,2013Q4,PERSONNEL COMPENSATION,"","AGUILAR,JORGE A",10/01/13,12/31/13,PRESS ASSISTANT,"7,666.67",2013,"","","","AGUILAR,JORGE A"
,OFFICE OF THE MINORITY LEADER,2013Q4,PERSONNEL COMPENSATION,"","AGUILAR,JORGE A",09/01/13,11/30/13,PRESS ASSISTANT (OVERTIME),"9,451.34",2013,"","","","AGUILAR,JORGE A"
,OFFICE OF THE MINORITY LEADER,2013Q4,PERSONNEL COMPENSATION,"","BARRY,MARY K",10/01/13,12/31/13,DEPUTY DIRECTOR OF ADVANCE,"18,750.00",2013,"","","","BARRY,MARY K"
,OFFICE OF THE MINORITY LEADER,2013Q4,PERSONNEL COMPENSATION,"","BERRET,EMILY C",10/01/13,12/31/13,SPECIAL ASST TO THE LEADER,"13,250.01",2013,"","","","BERRET,EMILY C"
,OFFICE OF THE MINORITY LEADER,2013Q4,PERSONNEL COMPENSATION,"","BLOOM, MICHAEL T",10/01/13,12/31/13,DEPUTY POLICY DIRECTOR,"24,999.99",2013,"","","","BLOOM, MICHAEL T"
,OFFICE OF THE MINORITY LEADER,2013Q4,PERSONNEL COMPENSATION,"","CAPRON, MARGARET W",10/01/13,12/31/13,SENIOR ADV POLICY & COMM,"31,924.26",2013,"","","","CAPRON, MARGARET W"
,OFFICE OF THE MINORITY LEADER,2013Q4,PERSONNEL COMPENSATION,"","CHERRY,STEPHANIE",10/01/13,12/31/13,PRESS ADVISOR,"17,962.26",2013,"","","","CHERRY,STEPHANIE"
,OFFICE OF THE MINORITY LEADER,2013Q4,PERSONNEL COMPENSATION,"","CONNELLY,HENRY V",10/01/13,10/25/13,SPEECHWRITER,"1,000.00",2013,"","","","CONNELLY,HENRY V"
,OFFICE OF THE MINORITY LEADER,2013Q4,PERSONNEL COMPENSATION,"","CONNELLY,HENRY V",11/01/13,12/31/13,DEPUTY DIR OF SPEECHWRITING,"10,000.00",2013,"","","","CONNELLY,HENRY V"
,OFFICE OF THE MINORITY LEADER,2013Q4,PERSONNEL COMPENSATION,"","COVEY-BRANDT, ALEXIS",10/01/13,12/31/13,CHIEF OF STAFF,"42,825.00",2013,"","","","COVEY-BRANDT, ALEXIS"
,OFFICE OF THE MINORITY LEADER,2013Q4,PERSONNEL COMPENSATION,"","DAY,TAMIKA K",10/01/13,12/31/13,SR STAFF ASST SYS ADMIN,"12,500.01",2013,"","","","DAY,TAMIKA K"
,OFFICE OF THE MINORITY LEADER,2013Q4,PERSONNEL COMPENSATION,"","DEGRAFF, KENNETH B",10/01/13,12/31/13,SENIOR POLICY ADVISOR,"28,749.99",2013,"","","","DEGRAFF, KENNETH B"
,OFFICE OF THE MINORITY LEADER,2013Q4,PERSONNEL COMPENSATION,"","DEVLIN, PATRICK J",10/01/13,12/31/13,COMMUNICATIONS DIRECTOR,"31,250.01",2013,"","","","DEVLIN, PATRICK J"
,OFFICE OF THE MINORITY LEADER,2013Q4,PERSONNEL COMPENSATION,"","DEWHIRST, DIANE",10/01/13,12/31/13,SENIOR ADVISOR,"29,499.99",2013,"","","","DEWHIRST, DIANE"
,OFFICE OF THE MINORITY LEADER,2013Q4,PERSONNEL COMPENSATION,"","EDMONSON, ROBERT D",10/01/13,12/31/13,CHIEF OF STAFF,"17,499.99",2013,"","","","EDMONSON, ROBERT D"
,OFFICE OF THE MINORITY LEADER,2013Q4,PERSONNEL COMPENSATION,"","ELLISON,MATTHEW B",10/01/13,12/31/13,RESEARCH ASSISTANT,"7,500.00",2013,"","","","ELLISON,MATTHEW B"
,OFFICE OF THE MINORITY LEADER,2013Q4,PERSONNEL COMPENSATION,"","ELSHAMI,NADEEM",10/01/13,12/31/13,CHIEF OF STAFF,"43,125.00",2013,"","","","ELSHAMI,NADEEM"
,OFFICE OF THE MINORITY LEADER,2013Q4,PERSONNEL COMPENSATION,"","ETIENNE,ASHLEY D",10/01/13,12/31/13,DEPUTY COMM DIRECTOR,"32,499.99",2013,"","","","ETIENNE,ASHLEY D"
,OFFICE OF THE MINORITY LEADER,2013Q4,PERSONNEL COMPENSATION,"","FISCHER JR, ROBERT V",10/01/13,12/31/13,ASST FLOOR CHIEF,"33,289.50",2013,"","","","FISCHER JR, ROBERT V"
,OFFICE OF THE MINORITY LEADER,2013Q4,PERSONNEL COMPENSATION,"","GEORGE,EVANGELINE M",10/01/13,12/31/13,PRESS SECRETARY,"15,541.66",2013,"","","","GEORGE,EVANGELINE M"
,OFFICE OF THE MINORITY LEADER,2013Q4,PERSONNEL COMPENSATION,"","GREENER, APRIL L",10/01/13,12/31/13,RESEARCH DIRECTOR,"21,249.99",2013,"","","","GREENER, APRIL L"
,OFFICE OF THE MINORITY LEADER,2013Q4,PERSONNEL COMPENSATION,"","HAMMILL, ANDREW T",10/01/13,12/31/13,COMM DIR/SENIOR ADVISOR,"43,125.00",2013,"","","","HAMMILL, ANDREW T"
,OFFICE OF THE MINORITY LEADER,2013Q4,PERSONNEL COMPENSATION,"","HARTZ, JERRY",10/01/13,12/31/13,DIRECTOR OF FLOOR OPERATIONS,"43,125.00",2013,"","","","HARTZ, JERRY"
,OFFICE OF THE MINORITY LEADER,2013Q4,PERSONNEL COMPENSATION,"","HAYNES JR, WILFRED J",10/01/13,12/31/13,IT DIRECTOR,"24,530.49",2013,"","","","HAYNES JR, WILFRED J"
,OFFICE OF THE MINORITY LEADER,2013Q4,PERSONNEL COMPENSATION,"","IVESTER, WREN",10/01/13,12/31/13,ASST FLOOR CHIEF,"29,974.50",2013,"","","","IVESTER, WREN"
,OFFICE OF THE MINORITY LEADER,2013Q4,PERSONNEL COMPENSATION,"","JUDGE, KRISTINE A",10/01/13,12/31/13,SENIOR ADVISOR/POLICY COMM,"31,924.26",2013,"","","","JUDGE, KRISTINE A"
,OFFICE OF THE MINORITY LEADER,2013Q4,PERSONNEL COMPENSATION,"","KAPLAN,EMMA L",10/01/13,12/31/13,ASST TO THE EXECUTIVE OFFICE,"8,250.00",2013,"","","","KAPLAN,EMMA L"
,OFFICE OF THE MINORITY LEADER,2013Q4,PERSONNEL COMPENSATION,"","KAPLAN,EMMA L",09/01/13,11/30/13,ASST TO THE EXECUTIVE OFFICE (OVERTIME),"6,387.88",2013,"","","","KAPLAN,EMMA L"
,OFFICE OF THE MINORITY LEADER,2013Q4,PERSONNEL COMPENSATION,"","KEITA,KAMILAH Z",10/01/13,12/31/13,DEPUTY INFOMATION TECH. DIRECT,"22,283.01",2013,"","","","KEITA,KAMILAH Z"
,OFFICE OF THE MINORITY LEADER,2013Q4,PERSONNEL COMPENSATION,"","KING,RYAN M",10/01/13,10/14/13,PRESS ADVISOR,"1,283.33",2013,"","","","KING,RYAN M"
,OFFICE OF THE MINORITY LEADER,2013Q4,PERSONNEL COMPENSATION,"","KING,RYAN M",09/01/13,10/14/13,PRESS ADVISOR (OVERTIME),"6,436.23",2013,"","","","KING,RYAN M"
,OFFICE OF THE MINORITY LEADER,2013Q4,PERSONNEL COMPENSATION,"","KING,RYAN M",09/01/13,11/26/13,PRESS ADVISOR (OTHER COMPENSATION),"2,200.00",2013,"","","","KING,RYAN M"
,OFFICE OF THE MINORITY LEADER,2013Q4,PERSONNEL COMPENSATION,"","KRETMAN,MATTHEW A",10/01/13,12/31/13,DIRECTOR OF OUTREACH,"9,999.99",2013,"","","","KRETMAN,MATTHEW A"
,OFFICE OF THE MINORITY LEADER,2013Q4,PERSONNEL COMPENSATION,"","KUNDANIS, GEORGE",10/01/13,12/31/13,DEPUTY CHIEF OF STAFF,"43,125.00",2013,"","","","KUNDANIS, GEORGE"
,OFFICE OF THE MINORITY LEADER,2013Q4,PERSONNEL COMPENSATION,"","LIZARRAGA, JAIME E",10/01/13,12/31/13,SR ADV & DIR OF MEMBER SVC,"39,905.49",2013,"","","","LIZARRAGA, JAIME E"
,OFFICE OF THE MINORITY LEADER,2013Q4,PERSONNEL COMPENSATION,"","LONG,MICHAEL G",10/01/13,12/31/13,DEPUTY DIRECTOR OF MEMBER SVCS,"18,750.00",2013,"","","","LONG,MICHAEL G"
,OFFICE OF THE MINORITY LEADER,2013Q4,PERSONNEL COMPENSATION,"","MAHR,THOMAS",10/01/13,12/31/13,POLICY DIRECTOR,"29,700.00",2013,"","","","MAHR,THOMAS"
,OFFICE OF THE MINORITY LEADER,2013Q4,PERSONNEL COMPENSATION,"","MANGRUM, PEARL J",10/01/13,12/31/13,FINANCIAL ADMINISTRATOR,"12,875.01",2013,"","","","MANGRUM, PEARL J"
,OFFICE OF THE MINORITY LEADER,2013Q4,PERSONNEL COMPENSATION,"","MCCLELLAND,ETHAN L",10/01/13,12/31/13,SPECIAL ASSISTANT,"12,500.01",2013,"","","","MCCLELLAND,ETHAN L"
,OFFICE OF THE MINORITY LEADER,2013Q4,PERSONNEL COMPENSATION,"","MEDLIN,MELINDA L",10/01/13,12/31/13,DIRECTOR OF SCHEDULING,"35,847.00",2013,"","","","MEDLIN,MELINDA L"
,OFFICE OF THE MINORITY LEADER,2013Q4,PERSONNEL COMPENSATION,"","MELTZER,RICHARD",10/01/13,12/31/13,POLICY DIRECTOR,"43,125.00",2013,"","","","MELTZER,RICHARD"
,OFFICE OF THE MINORITY LEADER,2013Q4,PERSONNEL COMPENSATION,"","MILLER,AMY M",10/01/13,12/31/13,SENIOR ADVISOR,"24,999.99",2013,"","","","MILLER,AMY M"
,OFFICE OF THE MINORITY LEADER,2013Q4,PERSONNEL COMPENSATION,"","MINOR,JAIME N",10/01/13,12/31/13,DISTRICT SCHEDULER/EXEC ASSIST,"3,000.00",2013,"","","","MINOR,JAIME N"
,OFFICE OF THE MINORITY LEADER,2013Q4,PERSONNEL COMPENSATION,"","MONGE,KATHERINE S",10/01/13,12/31/13,TAX POLICY ADVISOR,"30,000.00",2013,"","","","MONGE,KATHERINE S"
,OFFICE OF THE MINORITY LEADER,2013Q4,PERSONNEL COMPENSATION,"","MURRAY, ELIZABETH M",10/01/13,12/31/13,SENIOR POLICY ADVISOR,"32,199.99",2013,"","","","MURRAY, ELIZABETH M"
,OFFICE OF THE MINORITY LEADER,2013Q4,PERSONNEL COMPENSATION,"","PARDUE, LAURA E",10/01/13,12/31/13,DEPUTY DIR. - FLOOR OPERATIONS,"31,250.01",2013,"","","","PARDUE, LAURA E"
,OFFICE OF THE MINORITY LEADER,2013Q4,PERSONNEL COMPENSATION,"","PARKER, WYNDEE R",10/01/13,12/31/13,SENIOR POLICY ADVISOR,"43,125.00",2013,"","","","PARKER, WYNDEE R"
,OFFICE OF THE MINORITY LEADER,2013Q4,PERSONNEL COMPENSATION,"","POWELL,JONATHAN M",10/01/13,12/31/13,DIRECTOR OF SPEECHWRITING,"20,000.01",2013,"","","","POWELL,JONATHAN M"
,OFFICE OF THE MINORITY LEADER,2013Q4,PERSONNEL COMPENSATION,"","PRICE, REVA B",10/01/13,12/31/13,OUTREACH DIRECTOR & ADVISOR,"31,924.26",2013,"","","","PRICE, REVA B"
,OFFICE OF THE MINORITY LEADER,2013Q4,PERSONNEL COMPENSATION,"","PRIMUS, WENDELL E",10/01/13,12/31/13,SENIOR POLICY ADVISOR,"43,125.00",2013,"","","","PRIMUS, WENDELL E"
,OFFICE OF THE MINORITY LEADER,2013Q4,PERSONNEL COMPENSATION,"","QUEEN,CORNELIUS W",10/01/13,12/31/13,STAFF ASSISTANT,"6,999.99",2013,"","","","QUEEN,CORNELIUS W"
,OFFICE OF THE MINORITY LEADER,2013Q4,PERSONNEL COMPENSATION,"","REPKO,MARY F",10/01/13,12/31/13,SENIOR POLICY ADVISOR,"32,949.99",2013,"","","","REPKO,MARY F"
,OFFICE OF THE MINORITY LEADER,2013Q4,PERSONNEL COMPENSATION,"","RICCIO,ANDREA M",10/01/13,12/31/13,DIR OF MEMBER SERVICES,"20,000.01",2013,"","","","RICCIO,ANDREA M"
,OFFICE OF THE MINORITY LEADER,2013Q4,PERSONNEL COMPENSATION,"","ROMICK, BRIAN",10/01/13,12/31/13,MEMBER SERVICES DIRECTOR,"35,949.99",2013,"","","","ROMICK, BRIAN"
,OFFICE OF THE MINORITY LEADER,2013Q4,PERSONNEL COMPENSATION,"","SINGLETARY, BARVETTA",10/01/13,12/31/13,POLICY DIRECTOR,"33,249.99",2013,"","","","SINGLETARY, BARVETTA"
,OFFICE OF THE MINORITY LEADER,2013Q4,PERSONNEL COMPENSATION,"","SMITH,KELSEY L",10/01/13,12/31/13,DEPUTY DIRECTOR OF SCHEDULING,"11,375.01",2013,"","","","SMITH,KELSEY L"
,OFFICE OF THE MINORITY LEADER,2013Q4,PERSONNEL COMPENSATION,"","SMITH,KELSEY L",09/01/13,11/30/13,DEPUTY DIRECTOR OF SCHEDULING (OVERTIME),"11,063.10",2013,"","","","SMITH,KELSEY L"
,OFFICE OF THE MINORITY LEADER,2013Q4,PERSONNEL COMPENSATION,"","SOMANADER,TANYA",10/01/13,12/31/13,DIR OF NEW MEDIA/SPEECHWRITER,"20,000.01",2013,"","","","SOMANADER,TANYA"
,OFFICE OF THE MINORITY LEADER,2013Q4,PERSONNEL COMPENSATION,"","STIVERS, JONATHAN",10/01/13,12/31/13,SENIOR ADVISOR,"35,000.01",2013,"","","","STIVERS, JONATHAN"
,OFFICE OF THE MINORITY LEADER,2013Q4,PERSONNEL COMPENSATION,"","SULLIVAN, BARRY K",10/01/13,12/01/13,CHIEF FLOOR SERVICE (MIN),"29,229.17",2013,"","","","SULLIVAN, BARRY K"
,OFFICE OF THE MINORITY LEADER,2013Q4,PERSONNEL COMPENSATION,"","SULLIVAN, BARRY K",12/01/13,12/01/13,CHIEF FLOOR SERVICE (MIN) (OTHER COMPENSATION),"13,895.83",2013,"","","","SULLIVAN, BARRY K"
,OFFICE OF THE MINORITY LEADER,2013Q4,PERSONNEL COMPENSATION,"","SURGEON,BINA G",10/01/13,12/31/13,SPECIAL ASST TO THE LEADER,"23,750.01",2013,"","","","SURGEON,BINA G"
,OFFICE OF THE MINORITY LEADER,2013Q4,PERSONNEL COMPENSATION,"","TECKLENBURG, MICHAEL H",10/01/13,12/31/13,COUNSEL,"32,499.99",2013,"","","","TECKLENBURG, MICHAEL H"
,OFFICE OF THE MINORITY LEADER,2013Q4,PERSONNEL COMPENSATION,"","WATKINS, YELBERTON R",10/01/13,12/31/13,CHIEF OF STAFF,"41,250.00",2013,"","","","WATKINS, YELBERTON R"
,OFFICE OF THE MINORITY LEADER,2013Q4,PERSONNEL COMPENSATION,"","WEST,JULIUS L",10/01/13,12/31/13,DEPUTY DIRECTOR OF MEMBER SVCS,"12,500.01",2013,"","","","WEST,JULIUS L"
,OFFICE OF THE MINORITY LEADER,2013Q4,PERSONNEL COMPENSATION,"","WOLTERS, KATE",10/01/13,12/31/13,PERSONAL ASSISTANT,"34,646.49",2013,"","","","WOLTERS, KATE"
,OFFICE OF THE MINORITY LEADER,2013Q4,TRAVEL,10-21,CITIBANK GOV CARD SERVICE,10/10/13,10/10/13,COMMERCIAL TRANSPORTATION,557.60,2013,AP,Accounts payable,E0075588,CITIBANK GOV CARD SERVICE
,OFFICE OF THE MINORITY LEADER,2013Q4,TRAVEL,10-21,CITIBANK GOV CARD SERVICE,10/11/13,10/13/13,COMMERCIAL TRANSPORTATION,943.70,2013,AP,Accounts payable,E0075589,CITIBANK GOV CARD SERVICE
,OFFICE OF THE MINORITY LEADER,2013Q4,TRAVEL,10-22,"PRICE, REVA B",10/03/13,10/13/13,TRAVEL SUBSISTENCE,744.28,2013,AP,Accounts payable,E0076124,"PRICE, REVA B"
,OFFICE OF THE MINORITY LEADER,2013Q4,TRAVEL,10-22,"KING, RYAN M",10/01/13,10/01/13,TAXI/PARKING/TOLLS,29.85,2013,AP,Accounts payable,E0076131,"KING, RYAN M"
,OFFICE OF THE MINORITY LEADER,2013Q4,TRAVEL,10-22,"BLOOM, MICHAEL",10/01/13,10/01/13,TAXI/PARKING/TOLLS,23.00,2013,AP,Accounts payable,E0076132,"BLOOM, MICHAEL"
,OFFICE OF THE MINORITY LEADER,2013Q4,TRAVEL,10-22,"LIZARRAGA, JAIME E",10/02/13,10/08/13,TAXI/PARKING/TOLLS,32.26,2013,AP,Accounts payable,E0076134,"LIZARRAGA, JAIME E"
,OFFICE OF THE MINORITY LEADER,2013Q4,TRAVEL,10-22,"EDMONSON, ROBERT D",10/12/13,10/13/13,TRAVEL SUBSISTENCE,36.50,2013,AP,Accounts payable,E0076136,"EDMONSON, ROBERT D"
,OFFICE OF THE MINORITY LEADER,2013Q4,TRAVEL,10-23,"KAPLAN, EMMA L",10/11/13,10/13/13,TRAVEL SUBSISTENCE,48.89,2013,AP,Accounts payable,E0076651,"KAPLAN, EMMA L"
,OFFICE OF THE MINORITY LEADER,2013Q4,TRAVEL,10-23,"WOLTERS, KATE",10/03/13,10/04/13,TRAVEL SUBSISTENCE,503.77,2013,AP,Accounts payable,E0076660,"WOLTERS, KATE"
,OFFICE OF THE MINORITY LEADER,2013Q4,TRAVEL,10-23,"WOLTERS, KATE",10/10/13,10/13/13,TRAVEL SUBSISTENCE,526.06,2013,AP,Accounts payable,E0076660,"WOLTERS, KATE"
,OFFICE OF THE MINORITY LEADER,2013Q4,TRAVEL,11-06,"SMITH, KELSEY L",10/26/13,10/26/13,TAXI/PARKING/TOLLS,20.00,2013,AP,Accounts payable,E0081247,"SMITH, KELSEY L"
,OFFICE OF THE MINORITY LEADER,2013Q4,TRAVEL,11-06,"MCCLELLAND, ETHAN L",10/09/13,10/24/13,TAXI/PARKING/TOLLS,22.16,2013,AP,Accounts payable,E0081248,"MCCLELLAND, ETHAN L"
,OFFICE OF THE MINORITY LEADER,2013Q4,TRAVEL,11-06,"PARKER, WYNDEE R",10/24/13,10/24/13,TAXI/PARKING/TOLLS,23.00,2013,AP,Accounts payable,E0081257,"PARKER, WYNDEE R"
,OFFICE OF THE MINORITY LEADER,2013Q4,TRAVEL,11-06,CITIBANK GOV CARD SERVICE,10/11/13,10/13/13,TRAVEL SUBSISTENCE,319.07,2013,AP,Accounts payable,E0081264,CITIBANK GOV CARD SERVICE
,OFFICE OF THE MINORITY LEADER,2013Q4,TRAVEL,11-06,"PRIMUS, WENDELL E",10/25/13,10/25/13,TAXI/PARKING/TOLLS,86.03,2013,AP,Accounts payable,E0081265,"PRIMUS, WENDELL E"
,OFFICE OF THE MINORITY LEADER,2013Q4,TRAVEL,11-06,"MINOR, JAIME N",10/18/13,10/18/13,MEALS,18.41,2013,AP,Accounts payable,E0081349,"MINOR, JAIME N"
,OFFICE OF THE MINORITY LEADER,2013Q4,TRAVEL,11-06,"MINOR, JAIME N",10/18/13,10/18/13,TAXI/PARKING/TOLLS,39.22,2013,AP,Accounts payable,E0081349,"MINOR, JAIME N"
,OFFICE OF THE MINORITY LEADER,2013Q4,TRAVEL,11-12,"LIZARRAGA, JAIME E",10/25/13,10/25/13,TRAVEL SUBSISTENCE,37.88,2013,AP,Accounts payable,E0081262,"LIZARRAGA, JAIME E"
,OFFICE OF THE MINORITY LEADER,2013Q4,TRAVEL,11-14,"DWYER, STEPHEN",11/07/13,11/07/13,TAXI/PARKING/TOLLS,10.00,2013,AP,Accounts payable,E0084111,"DWYER, STEPHEN"
,OFFICE OF THE MINORITY LEADER,2013Q4,TRAVEL,11-18,CITIBANK GOV CARD SERVICE,10/03/13,10/26/13,TRAVEL SUBSISTENCE,"3,498.71",2013,AP,Accounts payable,00698147,CITIBANK GOV CARD SERVICE
,OFFICE OF THE MINORITY LEADER,2013Q4,TRAVEL,11-19,CITIBANK GOV CARD SERVICE,10/11/13,10/26/13,TRAVEL SUBSISTENCE,"1,375.48",2013,AP,Accounts payable,00700513,CITIBANK GOV CARD SERVICE
,OFFICE OF THE MINORITY LEADER,2013Q4,TRAVEL,11-19,"BARRY, MARY-KATE",10/08/13,10/28/13,TAXI/PARKING/TOLLS,38.90,2013,AP,Accounts payable,E0085854,"BARRY, MARY-KATE"
,OFFICE OF THE MINORITY LEADER,2013Q4,TRAVEL,11-19,"HAMMILL, ANDREW T",11/02/13,11/05/13,TRAVEL SUBSISTENCE,"2,555.78",2013,AP,Accounts payable,E0085858,"HAMMILL, ANDREW T"
,OFFICE OF THE MINORITY LEADER,2013Q4,TRAVEL,11-19,CITIBANK GOV CARD SERVICE,10/04/13,10/19/13,TRAVEL SUBSISTENCE,"3,033.97",2013,AP,Accounts payable,E0085859,CITIBANK GOV CARD SERVICE
,OFFICE OF THE MINORITY LEADER,2013Q4,TRAVEL,11-19,"SMITH, KELSEY L",11/03/13,11/04/13,TRAVEL SUBSISTENCE,22.53,2013,AP,Accounts payable,E0085860,"SMITH, KELSEY L"
,OFFICE OF THE MINORITY LEADER,2013Q4,TRAVEL,11-19,CITIBANK GOV CARD SERVICE,10/03/13,11/01/13,TRAVEL SUBSISTENCE,"4,602.34",2013,AP,Accounts payable,E0085861,CITIBANK GOV CARD SERVICE
,OFFICE OF THE MINORITY LEADER,2013Q4,TRAVEL,11-21,"WOLTERS, KATE",10/23/13,10/24/13,TRAVEL SUBSISTENCE,231.17,2013,AP,Accounts payable,E0087145,"WOLTERS, KATE"
,OFFICE OF THE MINORITY LEADER,2013Q4,TRAVEL,11-21,"WOLTERS, KATE",10/30/13,11/05/13,TRAVEL SUBSISTENCE,"4,018.85",2013,AP,Accounts payable,E0087145,"WOLTERS, KATE"
,OFFICE OF THE MINORITY LEADER,2013Q4,TRAVEL,11-22,"MINOR, JAIME N",10/11/13,11/13/13,TRAVEL SUBSISTENCE,259.80,2013,AP,Accounts payable,E0087149,"MINOR, JAIME N"
,OFFICE OF THE MINORITY LEADER,2013Q4,TRAVEL,12-11,"SMITH, KELSEY L",11/14/13,11/20/13,TAXI/PARKING/TOLLS,28.45,2013,AP,Accounts payable,E0093215,"SMITH, KELSEY L"
,OFFICE OF THE MINORITY LEADER,2013Q4,TRAVEL,12-11,"SMITH, KELSEY L",10/31/13,11/25/13,TRAVEL SUBSISTENCE,148.08,2013,AP,Accounts payable,E0093215,"SMITH, KELSEY L"
,OFFICE OF THE MINORITY LEADER,2013Q4,TRAVEL,12-11,"MINOR, JAIME N",11/20/13,11/20/13,MEALS,6.00,2013,AP,Accounts payable,E0093219,"MINOR, JAIME N"
,OFFICE OF THE MINORITY LEADER,2013Q4,TRAVEL,12-11,CITIBANK GOV CARD SERVICE,11/02/13,11/18/13,TRAVEL SUBSISTENCE,408.10,2013,AP,Accounts payable,E0093221,CITIBANK GOV CARD SERVICE
,OFFICE OF THE MINORITY LEADER,2013Q4,TRAVEL,12-11,CITIBANK GOV CARD SERVICE,10/30/13,11/25/13,TRAVEL SUBSISTENCE,"1,772.91",2013,AP,Accounts payable,E0093222,CITIBANK GOV CARD SERVICE
,OFFICE OF THE MINORITY LEADER,2013Q4,TRAVEL,12-11,CITIBANK GOV CARD SERVICE,10/28/13,11/24/13,TRAVEL SUBSISTENCE,"3,816.14",2013,AP,Accounts payable,E0093226,CITIBANK GOV CARD SERVICE
,OFFICE OF THE MINORITY LEADER,2013Q4,TRAVEL,12-11,CITIBANK GOV CARD SERVICE,11/14/13,11/25/13,TRAVEL SUBSISTENCE,"1,258.29",2013,AP,Accounts payable,E0093227,CITIBANK GOV CARD SERVICE
,OFFICE OF THE MINORITY LEADER,2013Q4,TRAVEL,12-12,"MCCLELLAND, ETHAN L",11/14/13,11/14/13,TAXI/PARKING/TOLLS,12.75,2013,AP,Accounts payable,E0093250,"MCCLELLAND, ETHAN L"
,OFFICE OF THE MINORITY LEADER,2013Q4,TRAVEL,12-16,CITIBANK GOV CARD SERVICE,10/31/13,11/26/13,TRAVEL SUBSISTENCE,"2,105.08",2013,AP,Accounts payable,E0094265,CITIBANK GOV CARD SERVICE
,OFFICE OF THE MINORITY LEADER,2013Q4,TRAVEL,12-30,"PRICE, REVA B",11/18/13,12/04/13,TAXI/PARKING/TOLLS,89.00,2013,AP,Accounts payable,E0100857,"PRICE, REVA B"
,OFFICE OF THE MINORITY LEADER,2013Q4,TRAVEL,12-30,"PRICE, REVA B",11/24/13,11/25/13,TRAVEL SUBSISTENCE,66.00,2013,AP,Accounts payable,E0100857,"PRICE, REVA B"
,OFFICE OF THE MINORITY LEADER,2013Q4,TRAVEL,12-30,"MINOR, JAIME N",11/07/13,11/22/13,TRAVEL SUBSISTENCE,82.70,2013,AP,Accounts payable,E0100865,"MINOR, JAIME N"
,OFFICE OF THE MINORITY LEADER,2013Q4,TRAVEL,12-30,"BARRY, MARY-KATE",12/04/13,12/10/13,TAXI/PARKING/TOLLS,81.35,2013,AP,Accounts payable,E0100880,"BARRY, MARY-KATE"
,OFFICE OF THE MINORITY LEADER,2013Q4,TRAVEL,12-30,"SMITH, KELSEY L",12/07/13,12/08/13,TAXI/PARKING/TOLLS,48.00,2013,AP,Accounts payable,E0100906,"SMITH, KELSEY L"
,OFFICE OF THE MINORITY LEADER,2013Q4,"RENT, COMMUNICATION, UTILITIES",11-21,CITI PCARD-TIV TIVO SERVICE,10/01/13,10/28/13,RECORDING (OUTSIDE),27.38,2013,AP,Accounts payable,00700548,CITI PCARD-TIV TIVO SERVICE
,OFFICE OF THE MINORITY LEADER,2013Q4,"RENT, COMMUNICATION, UTILITIES",11-21,FEDEX,11/01/13,11/01/13,POSTAGE / COURIER / BOX RENTAL,41.22,2013,AP,Accounts payable,E0087148,FEDEX
,OFFICE OF THE MINORITY LEADER,2013Q4,"RENT, COMMUNICATION, UTILITIES",11-21,FEDEX,10/30/13,11/01/13,POSTAGE / COURIER / BOX RENTAL,160.56,2013,AP,Accounts payable,E0087150,FEDEX
,OFFICE OF THE MINORITY LEADER,2013Q4,"RENT, COMMUNICATION, UTILITIES",12-12,FEDEX,11/04/13,11/04/13,POSTAGE / COURIER / BOX RENTAL,9.27,2013,AP,Accounts payable,E0093224,FEDEX
,OFFICE OF THE MINORITY LEADER,2013Q4,"RENT, COMMUNICATION, UTILITIES",12-20,CITI PCARD-TIV TIVO SERVICE,10/29/13,11/28/13,RECORDING (OUTSIDE),27.38,2013,AP,Accounts payable,00705465,CITI PCARD-TIV TIVO SERVICE
,OFFICE OF THE MINORITY LEADER,2013Q4,"RENT, COMMUNICATION, UTILITIES",12-26,FEDERAL EXPRESS CORP,10/30/13,11/01/13,POSTAGE / COURIER / BOX RENTAL,-22.34,2013,AR,Accounts receivable,AC-08878,FEDERAL EXPRESS CORP
,OFFICE OF THE MINORITY LEADER,2013Q4,PRINTING AND REPRODUCTION,10-28,"",10/01/13,10/31/13,PHOTOGRAPHIC (TRANSFER),370.65,2013,GL,General ledger,PIX0033710,""
,OFFICE OF THE MINORITY LEADER,2013Q4,PRINTING AND REPRODUCTION,11-19,"BARRY, MARY-KATE",10/11/13,10/11/13,PRINTING & REPRODUCTION,37.66,2013,AP,Accounts payable,E0085854,"BARRY, MARY-KATE"
,OFFICE OF THE MINORITY LEADER,2013Q4,PRINTING AND REPRODUCTION,11-19,"GEORGE, EVANGELINE M",10/18/13,10/18/13,PRINTING & REPRODUCTION,31.11,2013,AP,Accounts payable,E0085857,"GEORGE, EVANGELINE M"
,OFFICE OF THE MINORITY LEADER,2013Q4,PRINTING AND REPRODUCTION,11-22,"",11/01/13,11/30/13,PHOTOGRAPHIC (TRANSFER),207.30,2013,GL,General ledger,PIX0034499,""
,OFFICE OF THE MINORITY LEADER,2013Q4,PRINTING AND REPRODUCTION,12-11,"MINOR, JAIME N",11/24/13,11/24/13,PRINTING & REPRODUCTION,85.00,2013,AP,Accounts payable,E0093219,"MINOR, JAIME N"
,OFFICE OF THE MINORITY LEADER,2013Q4,PRINTING AND REPRODUCTION,12-16,"GEORGE, EVANGELINE M",11/22/13,11/22/13,PRINTING & REPRODUCTION,111.01,2013,AP,Accounts payable,E0094261,"GEORGE, EVANGELINE M"
,OFFICE OF THE MINORITY LEADER,2013Q4,PRINTING AND REPRODUCTION,12-20,"",12/01/13,12/31/13,PHOTOGRAPHIC (TRANSFER),752.10,2013,GL,General ledger,PIX0035150,""
,OFFICE OF THE MINORITY LEADER,2013Q4,OTHER SERVICES,10-23,CAPITOLHOST,10/02/13,10/02/13,MISCELLANEOUS OTHER SERVICES,75.00,2013,AP,Accounts payable,E0076654,CAPITOLHOST
,OFFICE OF THE MINORITY LEADER,2013Q4,OTHER SERVICES,11-04,BERNARD RAIMO,10/01/13,10/31/13,CONSULTANT CONTRACT SERVICE,"7,628.00",2013,AP,Accounts payable,E0080219,BERNARD RAIMO
,OFFICE OF THE MINORITY LEADER,2013Q4,OTHER SERVICES,11-20,BRONTO SOFTWARE,10/17/13,11/17/13,"WEB DEV HST,EMAIL & RLTD SERV",601.65,2013,AP,Accounts payable,E0087017,BRONTO SOFTWARE
,OFFICE OF THE MINORITY LEADER,2013Q4,OTHER SERVICES,12-05,BERNARD RAIMO,11/01/13,11/30/13,CONSULTANT CONTRACT SERVICE,"7,628.00",2013,AP,Accounts payable,00701033,BERNARD RAIMO
,OFFICE OF THE MINORITY LEADER,2013Q4,OTHER SERVICES,12-12,NEAL R GROSS & COMPANY INC,12/05/13,12/05/13,STENOGRAPHIC REPORTING,"1,500.00",2013,AP,Accounts payable,E0093225,NEAL R GROSS & COMPANY INC
,OFFICE OF THE MINORITY LEADER,2013Q4,OTHER SERVICES,12-30,BERNARD RAIMO,11/01/13,11/30/13,CONSULTANT CONTRACT SERVICE,"7,628.00",2013,AP,Accounts payable,E0100867,BERNARD RAIMO
,OFFICE OF THE MINORITY LEADER,2013Q4,SUPPLIES AND MATERIALS,10-22,HAGUE QUALITY WATER OF MD INC,10/01/13,10/31/13,WATER,378.00,2013,AP,Accounts payable,E0076137,HAGUE QUALITY WATER OF MD INC
,OFFICE OF THE MINORITY LEADER,2013Q4,SUPPLIES AND MATERIALS,10-22,CAPITOLHOST,10/02/13,10/02/13,FOOD & BEVERAGE,33.00,2013,AP,Accounts payable,E0076139,CAPITOLHOST
,OFFICE OF THE MINORITY LEADER,2013Q4,SUPPLIES AND MATERIALS,10-23,"KAPLAN, EMMA L",10/16/13,10/16/13,FOOD & BEVERAGE,23.98,2013,AP,Accounts payable,E0076651,"KAPLAN, EMMA L"
,OFFICE OF THE MINORITY LEADER,2013Q4,SUPPLIES AND MATERIALS,11-06,CAPITOLHOST,10/22/13,10/22/13,FOOD & BEVERAGE,66.00,2013,AP,Accounts payable,E0081250,CAPITOLHOST
,OFFICE OF THE MINORITY LEADER,2013Q4,SUPPLIES AND MATERIALS,11-06,CAPITOLHOST,10/22/13,10/22/13,FOOD & BEVERAGE,33.00,2013,AP,Accounts payable,E0081252,CAPITOLHOST
,OFFICE OF THE MINORITY LEADER,2013Q4,SUPPLIES AND MATERIALS,11-06,CAPITOLHOST,10/28/13,10/28/13,FOOD & BEVERAGE,66.00,2013,AP,Accounts payable,E0081259,CAPITOLHOST
,OFFICE OF THE MINORITY LEADER,2013Q4,SUPPLIES AND MATERIALS,11-06,CAPITOLHOST,10/16/13,10/16/13,FOOD & BEVERAGE,33.00,2013,AP,Accounts payable,E0081260,CAPITOLHOST
,OFFICE OF THE MINORITY LEADER,2013Q4,SUPPLIES AND MATERIALS,11-06,CAPITOLHOST,10/30/13,10/30/13,FOOD & BEVERAGE,33.00,2013,AP,Accounts payable,E0081263,CAPITOLHOST
,OFFICE OF THE MINORITY LEADER,2013Q4,SUPPLIES AND MATERIALS,11-06,CAPITOLHOST,10/23/13,10/23/13,FOOD & BEVERAGE,33.00,2013,AP,Accounts payable,E0081267,CAPITOLHOST
,OFFICE OF THE MINORITY LEADER,2013Q4,SUPPLIES AND MATERIALS,11-06,"MINOR, JAIME N",10/01/13,10/17/13,PUBLICATIONS/REFERENCE MAT'L,5.18,2013,AP,Accounts payable,E0081349,"MINOR, JAIME N"
,OFFICE OF THE MINORITY LEADER,2013Q4,SUPPLIES AND MATERIALS,11-21,CITI PCARD-CARMINE S,10/01/13,10/28/13,FOOD & BEVERAGE,430.65,2013,AP,Accounts payable,00700548,CITI PCARD-CARMINE S
,OFFICE OF THE MINORITY LEADER,2013Q4,SUPPLIES AND MATERIALS,11-21,CITI PCARD-COSI,10/01/13,10/28/13,FOOD & BEVERAGE,286.23,2013,AP,Accounts payable,00700548,CITI PCARD-COSI
,OFFICE OF THE MINORITY LEADER,2013Q4,SUPPLIES AND MATERIALS,11-21,CITI PCARD-DUNKIN,10/01/13,10/28/13,FOOD & BEVERAGE,47.03,2013,AP,Accounts payable,00700548,CITI PCARD-DUNKIN
,OFFICE OF THE MINORITY LEADER,2013Q4,SUPPLIES AND MATERIALS,11-21,CITI PCARD-TARGET,10/01/13,10/28/13,FOOD & BEVERAGE,85.71,2013,AP,Accounts payable,00700548,CITI PCARD-TARGET
,OFFICE OF THE MINORITY LEADER,2013Q4,SUPPLIES AND MATERIALS,11-21,HELEN OLIVIA FLOWERS,10/07/13,10/07/13,HABITATION EXPENSE,249.00,2013,AP,Accounts payable,E0087144,HELEN OLIVIA FLOWERS
,OFFICE OF THE MINORITY LEADER,2013Q4,SUPPLIES AND MATERIALS,11-21,"KAPLAN, EMMA L",11/13/13,11/13/13,FOOD & BEVERAGE,20.64,2013,AP,Accounts payable,E0087146,"KAPLAN, EMMA L"
,OFFICE OF THE MINORITY LEADER,2013Q4,SUPPLIES AND MATERIALS,11-21,HAGUE QUALITY WATER OF MD INC,11/01/13,11/30/13,WATER,378.00,2013,AP,Accounts payable,E0087147,HAGUE QUALITY WATER OF MD INC
,OFFICE OF THE MINORITY LEADER,2013Q4,SUPPLIES AND MATERIALS,12-11,CAPITOLHOST,11/12/13,11/12/13,FOOD & BEVERAGE,66.00,2013,AP,Accounts payable,E0093209,CAPITOLHOST
,OFFICE OF THE MINORITY LEADER,2013Q4,SUPPLIES AND MATERIALS,12-11,HELEN OLIVIA FLOWERS,10/15/13,10/15/13,HABITATION EXPENSE,249.00,2013,AP,Accounts payable,E0093211,HELEN OLIVIA FLOWERS
,OFFICE OF THE MINORITY LEADER,2013Q4,SUPPLIES AND MATERIALS,12-11,HELEN OLIVIA FLOWERS,11/11/13,11/11/13,HABITATION EXPENSE,249.00,2013,AP,Accounts payable,E0093212,HELEN OLIVIA FLOWERS
,OFFICE OF THE MINORITY LEADER,2013Q4,SUPPLIES AND MATERIALS,12-11,HELEN OLIVIA FLOWERS,11/18/13,11/18/13,HABITATION EXPENSE,249.00,2013,AP,Accounts payable,E0093214,HELEN OLIVIA FLOWERS
,OFFICE OF THE MINORITY LEADER,2013Q4,SUPPLIES AND MATERIALS,12-11,"MINOR, JAIME N",11/27/13,11/27/13,PUBLICATIONS/REFERENCE MAT'L,2.17,2013,AP,Accounts payable,E0093219,"MINOR, JAIME N"
,OFFICE OF THE MINORITY LEADER,2013Q4,SUPPLIES AND MATERIALS,12-11,HELEN OLIVIA FLOWERS,10/28/13,10/28/13,HABITATION EXPENSE,249.00,2013,AP,Accounts payable,E0093220,HELEN OLIVIA FLOWERS
,OFFICE OF THE MINORITY LEADER,2013Q4,SUPPLIES AND MATERIALS,12-11,HELEN OLIVIA FLOWERS,10/21/13,10/21/13,HABITATION EXPENSE,249.00,2013,AP,Accounts payable,E0093223,HELEN OLIVIA FLOWERS
,OFFICE OF THE MINORITY LEADER,2013Q4,SUPPLIES AND MATERIALS,12-12,CAPITOLHOST,11/13/13,11/13/13,FOOD & BEVERAGE,33.00,2013,AP,Accounts payable,E0093216,CAPITOLHOST
,OFFICE OF THE MINORITY LEADER,2013Q4,SUPPLIES AND MATERIALS,12-12,CRYSTAL SPRINGS,11/01/13,11/30/13,FOOD & BEVERAGE,27.50,2013,AP,Accounts payable,E0093218,CRYSTAL SPRINGS
,OFFICE OF THE MINORITY LEADER,2013Q4,SUPPLIES AND MATERIALS,12-20,CITI PCARD-CVS PHARMACY,10/29/13,11/28/13,FOOD & BEVERAGE,32.62,2013,AP,Accounts payable,00705465,CITI PCARD-CVS PHARMACY
,OFFICE OF THE MINORITY LEADER,2013Q4,SUPPLIES AND MATERIALS,12-20,CITI PCARD-DUNKIN,10/29/13,11/28/13,FOOD & BEVERAGE,17.69,2013,AP,Accounts payable,00705465,CITI PCARD-DUNKIN
,OFFICE OF THE MINORITY LEADER,2013Q4,SUPPLIES AND MATERIALS,12-20,CITI PCARD-HARRIS TEETER,10/29/13,11/28/13,FOOD & BEVERAGE,327.37,2013,AP,Accounts payable,00705465,CITI PCARD-HARRIS TEETER
,OFFICE OF THE MINORITY LEADER,2013Q4,SUPPLIES AND MATERIALS,12-20,CITI PCARD-TARGET,10/29/13,11/28/13,FOOD & BEVERAGE,592.39,2013,AP,Accounts payable,00705465,CITI PCARD-TARGET
,OFFICE OF THE MINORITY LEADER,2013Q4,SUPPLIES AND MATERIALS,12-24,OCCASIONS CATERERS,12/12/13,12/12/13,FOOD & BEVERAGE,"2,400.00",2013,AP,Accounts payable,E0100823,OCCASIONS CATERERS
,OFFICE OF THE MINORITY LEADER,2013Q4,SUPPLIES AND MATERIALS,12-24,OCCASIONS CATERERS,12/12/13,12/12/13,FOOD & BEVERAGE,"6,570.00",2013,AP,Accounts payable,E0100824,OCCASIONS CATERERS
,OFFICE OF THE MINORITY LEADER,2013Q4,SUPPLIES AND MATERIALS,12-30,HAGUE QUALITY WATER OF MD INC,12/02/13,12/31/13,WATER,378.00,2013,AP,Accounts payable,E0100861,HAGUE QUALITY WATER OF MD INC
,OFFICE OF THE MINORITY LEADER,2013Q4,SUPPLIES AND MATERIALS,12-30,CAPITOLHOST,11/18/13,11/18/13,FOOD & BEVERAGE,66.00,2013,AP,Accounts payable,E0100871,CAPITOLHOST
,OFFICE OF THE MINORITY LEADER,2013Q4,SUPPLIES AND MATERIALS,12-30,CAPITOLHOST,12/02/13,12/02/13,FOOD & BEVERAGE,66.00,2013,AP,Accounts payable,E0100872,CAPITOLHOST
,OFFICE OF THE MINORITY LEADER,2013Q4,SUPPLIES AND MATERIALS,12-30,CAPITOLHOST,11/20/13,11/20/13,FOOD & BEVERAGE,33.00,2013,AP,Accounts payable,E0100879,CAPITOLHOST
,OFFICE OF THE MAJORITY WHIP,2013Q4,PERSONNEL COMPENSATION,"","BERRY,TIMOTHY J",10/01/13,12/31/13,CHIEF OF STAFF,"43,125.00",2013,"","","","BERRY,TIMOTHY J"
,OFFICE OF THE MAJORITY WHIP,2013Q4,PERSONNEL COMPENSATION,"","BILMAN,JEFFREY R",10/01/13,12/31/13,SPEC ASST TO CHIEF DEPUTY WHIP,"6,000.00",2013,"","","","BILMAN,JEFFREY R"
,OFFICE OF THE MAJORITY WHIP,2013Q4,PERSONNEL COMPENSATION,"","BUCHANAN,NATALIE L",10/01/13,12/31/13,DIR OF MEMBER SERVICES,"22,500.00",2013,"","","","BUCHANAN,NATALIE L"
,OFFICE OF THE MAJORITY WHIP,2013Q4,PERSONNEL COMPENSATION,"","CAREY,BRITTANY M",10/01/13,12/31/13,COALITIONS ASST/ASST. TO COS,"10,500.00",2013,"","","","CAREY,BRITTANY M"
,OFFICE OF THE MAJORITY WHIP,2013Q4,PERSONNEL COMPENSATION,"","DIXON, KELLY A",10/01/13,12/31/13,DEPUTY DIRECTOR OF FLOOR OPERA,"25,500.00",2013,"","","","DIXON, KELLY A"
,OFFICE OF THE MAJORITY WHIP,2013Q4,PERSONNEL COMPENSATION,"","ELLIOTT,ERICA L",10/01/13,12/31/13,DIRECTOR OF COMMUNICATIONS,"32,250.00",2013,"","","","ELLIOTT,ERICA L"
,OFFICE OF THE MAJORITY WHIP,2013Q4,PERSONNEL COMPENSATION,"","FRANC,MICHAEL G",10/01/13,12/31/13,POLICY DIRECTOR AND COUNSEL,"41,250.00",2013,"","","","FRANC,MICHAEL G"
,OFFICE OF THE MAJORITY WHIP,2013Q4,PERSONNEL COMPENSATION,"","HENEHAN, EMILY A",10/01/13,12/31/13,POLICY ADVISOR,"22,500.00",2013,"","","","HENEHAN, EMILY A"
,OFFICE OF THE MAJORITY WHIP,2013Q4,PERSONNEL COMPENSATION,"","HOWARD,BENJAMIN R",10/01/13,12/31/13,FLOOR ASSISTANT,"15,000.00",2013,"","","","HOWARD,BENJAMIN R"
,OFFICE OF THE MAJORITY WHIP,2013Q4,PERSONNEL COMPENSATION,"","LEGANSKI,JOHN G",10/01/13,12/31/13,FLOOR ASSISTANT,"9,250.00",2013,"","","","LEGANSKI,JOHN G"
,OFFICE OF THE MAJORITY WHIP,2013Q4,PERSONNEL COMPENSATION,"","LOMBARDI, KYLE",10/01/13,12/31/13,SHARED EMPLOYEE,"12,000.00",2013,"","","","LOMBARDI, KYLE"
,OFFICE OF THE MAJORITY WHIP,2013Q4,PERSONNEL COMPENSATION,"","LONG,MICHAEL P",10/01/13,12/31/13,PRESS SECRETARY,"17,250.00",2013,"","","","LONG,MICHAEL P"
,OFFICE OF THE MAJORITY WHIP,2013Q4,PERSONNEL COMPENSATION,"","MCCLELLAND, WESLEY R",10/01/13,12/31/13,POLICY ADVISOR,"22,500.00",2013,"","","","MCCLELLAND, WESLEY R"
,OFFICE OF THE MAJORITY WHIP,2013Q4,PERSONNEL COMPENSATION,"","MIN, JAMES B",10/01/13,12/31/13,DEPUTY CHIEF OF STAFF,"37,500.00",2013,"","","","MIN, JAMES B"
,OFFICE OF THE MAJORITY WHIP,2013Q4,PERSONNEL COMPENSATION,"","MORK,DAVID I",10/01/13,12/31/13,CH OF STAFF TO CHIEF DEP WHIP,"16,500.00",2013,"","","","MORK,DAVID I"
,OFFICE OF THE MAJORITY WHIP,2013Q4,PERSONNEL COMPENSATION,"","SPARKS, MATTHEW E",10/01/13,12/31/13,DEPUTY PRESS SECRETARY,"13,500.00",2013,"","","","SPARKS, MATTHEW E"
,OFFICE OF THE MAJORITY WHIP,2013Q4,PERSONNEL COMPENSATION,"","STIPICEVIC, JOHN A",10/01/13,12/31/13,DIRECTOR OF FLOOR OPERATIONS,"36,000.00",2013,"","","","STIPICEVIC, JOHN A"
,OFFICE OF THE MAJORITY WHIP,2013Q4,PERSONNEL COMPENSATION,"","THIELE,AARON J",10/01/13,12/31/13,SENIOR STAFF ASSISTANT,"9,000.00",2013,"","","","THIELE,AARON J"
,OFFICE OF THE MAJORITY WHIP,2013Q4,PERSONNEL COMPENSATION,"","THOMSON, KRISTIN",10/01/13,12/31/13,EXECUTIVE ASSISTANT,"19,500.00",2013,"","","","THOMSON, KRISTIN"
,OFFICE OF THE MAJORITY WHIP,2013Q4,PERSONNEL COMPENSATION,"","WORTH,BRIAN A",10/01/13,12/31/13,DIRECTOR OF COALITIONS,"9,000.00",2013,"","","","WORTH,BRIAN A"
,OFFICE OF THE MAJORITY WHIP,2013Q4,"RENT, COMMUNICATION, UTILITIES",11-12,CRAFT MEDIA DIGITAL LLC,11/04/13,11/04/13,RECORDING (OUTSIDE),650.00,2013,AP,Accounts payable,E0082468,CRAFT MEDIA DIGITAL LLC
,OFFICE OF THE MAJORITY WHIP,2013Q4,SUPPLIES AND MATERIALS,11-21,CITI PCARD-D J WALL-ST-JOURNAL,10/01/13,10/28/13,PUBLICATIONS/REFERENCE MAT'L,24.31,2013,AP,Accounts payable,00700548,CITI PCARD-D J WALL-ST-JOURNAL
,OFFICE OF THE MAJORITY WHIP,2013Q4,SUPPLIES AND MATERIALS,11-21,CITI PCARD-DEWAR'S CANDY SHOP,10/01/13,10/28/13,FOOD & BEVERAGE,84.81,2013,AP,Accounts payable,00700548,CITI PCARD-DEWAR'S CANDY SHOP
,OFFICE OF THE MAJORITY WHIP,2013Q4,SUPPLIES AND MATERIALS,11-21,CITI PCARD-NEW YORK TIMES DIGITAL,10/01/13,10/28/13,PUBLICATIONS/REFERENCE MAT'L,37.10,2013,AP,Accounts payable,00700548,CITI PCARD-NEW YORK TIMES DIGITAL
,OFFICE OF THE MAJORITY WHIP,2013Q4,SUPPLIES AND MATERIALS,12-11,"MIN, JAMES B",12/09/13,12/09/13,FOOD & BEVERAGE,423.17,2013,AP,Accounts payable,E0093452,"MIN, JAMES B"
,OFFICE OF THE MAJORITY WHIP,2013Q4,SUPPLIES AND MATERIALS,12-12,"MIN, JAMES B",12/02/13,12/02/13,FOOD & BEVERAGE,490.35,2013,AP,Accounts payable,E0093313,"MIN, JAMES B"
,OFFICE OF THE MAJORITY WHIP,2013Q4,SUPPLIES AND MATERIALS,12-16,DEER PARK WATER,10/27/13,11/26/13,WATER,150.22,2013,AP,Accounts payable,E0095138,DEER PARK WATER
,OFFICE OF THE MAJORITY WHIP,2013Q4,SUPPLIES AND MATERIALS,12-20,CITI PCARD-CORNER BAKERY,10/29/13,11/28/13,FOOD & BEVERAGE,279.40,2013,AP,Accounts payable,00705465,CITI PCARD-CORNER BAKERY
,OFFICE OF THE MAJORITY WHIP,2013Q4,SUPPLIES AND MATERIALS,12-20,CITI PCARD-D J WALL-ST-JOURNAL,10/29/13,11/28/13,PUBLICATIONS/REFERENCE MAT'L,24.31,2013,AP,Accounts payable,00705465,CITI PCARD-D J WALL-ST-JOURNAL
,OFFICE OF THE MAJORITY WHIP,2013Q4,SUPPLIES AND MATERIALS,12-20,CITI PCARD-DEWAR'S CANDY SHOP,10/01/13,10/28/13,FOOD & BEVERAGE,-84.81,2013,AP,Accounts payable,00705465,CITI PCARD-DEWAR'S CANDY SHOP
,OFFICE OF THE MAJORITY WHIP,2013Q4,SUPPLIES AND MATERIALS,12-20,CITI PCARD-FIRST CHOICE - JOE RAG,10/29/13,11/28/13,FOOD & BEVERAGE,470.36,2013,AP,Accounts payable,00705465,CITI PCARD-FIRST CHOICE - JOE RAG
,OFFICE OF THE MAJORITY WHIP,2013Q4,SUPPLIES AND MATERIALS,12-20,CITI PCARD-FIRST CHOICE JOE RAGAN,10/29/13,11/28/13,FOOD & BEVERAGE,"2,109.52",2013,AP,Accounts payable,00705465,CITI PCARD-FIRST CHOICE JOE RAGAN
,OFFICE OF THE MAJORITY WHIP,2013Q4,SUPPLIES AND MATERIALS,12-20,CITI PCARD-LA TIMES SUBSCRIPTION,10/29/13,11/28/13,PUBLICATIONS/REFERENCE MAT'L,15.96,2013,AP,Accounts payable,00705465,CITI PCARD-LA TIMES SUBSCRIPTION
,OFFICE OF THE MAJORITY WHIP,2013Q4,SUPPLIES AND MATERIALS,12-20,CITI PCARD-NEW YORK TIMES DIGITAL,10/29/13,11/28/13,PUBLICATIONS/REFERENCE MAT'L,37.10,2013,AP,Accounts payable,00705465,CITI PCARD-NEW YORK TIMES DIGITAL
,OFFICE OF THE MINORITY WHIP,2013Q4,PERSONNEL COMPENSATION,"","ABOUCHAR, KEITH S",10/01/13,12/31/13,SENIOR POLICY ADVISOR,"3,233.33",2013,"","","","ABOUCHAR, KEITH S"
,OFFICE OF THE MINORITY WHIP,2013Q4,PERSONNEL COMPENSATION,"","AVILES,DANIELLE R",10/01/13,11/30/13,EXECUTIVE ASST OFFICE MANAGER,"7,333.34",2013,"","","","AVILES,DANIELLE R"
,OFFICE OF THE MINORITY WHIP,2013Q4,PERSONNEL COMPENSATION,"","AVILES,DANIELLE R",10/01/13,12/31/13,FLOOR ASSISTANT,"7,666.66",2013,"","","","AVILES,DANIELLE R"
,OFFICE OF THE MINORITY WHIP,2013Q4,PERSONNEL COMPENSATION,"","BOHANAN JR, JOHN L",10/01/13,12/31/13,CONSTITUENT LIAISON,"1,500.00",2013,"","","","BOHANAN JR, JOHN L"
,OFFICE OF THE MINORITY WHIP,2013Q4,PERSONNEL COMPENSATION,"","COBIA, LINDSEY G",10/01/13,11/30/13,STAFF ASSISTANT,"4,999.99",2013,"","","","COBIA, LINDSEY G"
,OFFICE OF THE MINORITY WHIP,2013Q4,PERSONNEL COMPENSATION,"","COBIA, LINDSEY G",10/01/13,12/31/13,EXECUTIVE ASST OFFICE MANAGER,"3,750.00",2013,"","","","COBIA, LINDSEY G"
,OFFICE OF THE MINORITY WHIP,2013Q4,PERSONNEL COMPENSATION,"","COBIA, LINDSEY G",10/01/13,10/31/13,STAFF ASSISTANT (OVERTIME),"4,218.70",2013,"","","","COBIA, LINDSEY G"
,OFFICE OF THE MINORITY WHIP,2013Q4,PERSONNEL COMPENSATION,"","COLLINS, MICHAEL E",10/01/13,12/31/13,CHIEF DEPUTY WHIP,"10,625.01",2013,"","","","COLLINS, MICHAEL E"
,OFFICE OF THE MINORITY WHIP,2013Q4,PERSONNEL COMPENSATION,"","COVEY-BRANDT, ALEXIS",10/01/13,12/31/13,CHIEF OF STAFF,300.00,2013,"","","","COVEY-BRANDT, ALEXIS"
,OFFICE OF THE MINORITY WHIP,2013Q4,PERSONNEL COMPENSATION,"","DWYER, STEPHEN",10/01/13,12/31/13,DIGITAL DIR & POLICY ADV,"11,000.01",2013,"","","","DWYER, STEPHEN"
,OFFICE OF THE MINORITY WHIP,2013Q4,PERSONNEL COMPENSATION,"","FRY,COURTNEY",10/01/13,12/31/13,DEP OUTREACH DIR & MEM SER ADV,"22,500.00",2013,"","","","FRY,COURTNEY"
,OFFICE OF THE MINORITY WHIP,2013Q4,PERSONNEL COMPENSATION,"","GENSEMER,ELLIOT J",10/01/13,12/31/13,SPECIAL ASSIST & PROJECT COORD,"9,999.99",2013,"","","","GENSEMER,ELLIOT J"
,OFFICE OF THE MINORITY WHIP,2013Q4,PERSONNEL COMPENSATION,"","GOFF,SHUWANZA R",10/01/13,12/31/13,FLOOR DIRECTOR,"22,500.00",2013,"","","","GOFF,SHUWANZA R"
,OFFICE OF THE MINORITY WHIP,2013Q4,PERSONNEL COMPENSATION,"","GRANT,KATHRYN L",10/01/13,12/31/13,COMMUNICATIONS DIRECTOR,"27,500.01",2013,"","","","GRANT,KATHRYN L"
,OFFICE OF THE MINORITY WHIP,2013Q4,PERSONNEL COMPENSATION,"","GRANT,KATHRYN L",11/01/13,11/01/13,COMMUNICATIONS DIRECTOR (OTHER COMPENSATION),"5,000.00",2013,"","","","GRANT,KATHRYN L"
,OFFICE OF THE MINORITY WHIP,2013Q4,PERSONNEL COMPENSATION,"","LEUSCHEN, JAMES P",10/01/13,12/31/13,SENIOR POLICY ADVISOR,"33,249.99",2013,"","","","LEUSCHEN, JAMES P"
,OFFICE OF THE MINORITY WHIP,2013Q4,PERSONNEL COMPENSATION,"","MAHR,THOMAS",10/01/13,12/31/13,POLICY DIRECTOR,"10,299.99",2013,"","","","MAHR,THOMAS"
,OFFICE OF THE MINORITY WHIP,2013Q4,PERSONNEL COMPENSATION,"","MARTINEZ, JAVIER D",10/01/13,12/31/13,DEP DIR OF MBR SERV & OUTR ADV,"18,750.00",2013,"","","","MARTINEZ, JAVIER D"
,OFFICE OF THE MINORITY WHIP,2013Q4,PERSONNEL COMPENSATION,"","MITTLER,MICHELLE",12/02/13,12/31/13,DIR OF SCHEDLNG & SPEC EVENTS,"5,236.11",2013,"","","","MITTLER,MICHELLE"
,OFFICE OF THE MINORITY WHIP,2013Q4,PERSONNEL COMPENSATION,"","MURRAY, ELIZABETH M",10/01/13,12/31/13,SENIOR POLICY ADVISOR,"4,050.00",2013,"","","","MURRAY, ELIZABETH M"
,OFFICE OF THE MINORITY WHIP,2013Q4,PERSONNEL COMPENSATION,"","OTT,AMANDA M",10/01/13,12/31/13,PRESS AND RESEARCH ASSISTANT,"9,999.99",2013,"","","","OTT,AMANDA M"
,OFFICE OF THE MINORITY WHIP,2013Q4,PERSONNEL COMPENSATION,"","REPKO,MARY F",10/01/13,12/31/13,SENIOR POLICY ADVISOR,"7,299.99",2013,"","","","REPKO,MARY F"
,OFFICE OF THE MINORITY WHIP,2013Q4,PERSONNEL COMPENSATION,"","RODRIGUEZ,FEDERICO J",10/01/13,12/31/13,STAFF ASSISTANT,"6,249.99",2013,"","","","RODRIGUEZ,FEDERICO J"
,OFFICE OF THE MINORITY WHIP,2013Q4,PERSONNEL COMPENSATION,"","RODRIGUEZ,FEDERICO J",10/01/13,10/31/13,STAFF ASSISTANT (OVERTIME),"1,730.75",2013,"","","","RODRIGUEZ,FEDERICO J"
,OFFICE OF THE MINORITY WHIP,2013Q4,PERSONNEL COMPENSATION,"","RODRIGUEZ,FEDERICO J",12/01/13,12/31/13,STAFF ASSISTANT (OTHER COMPENSATION),"2,000.00",2013,"","","","RODRIGUEZ,FEDERICO J"
,OFFICE OF THE MINORITY WHIP,2013Q4,PERSONNEL COMPENSATION,"","ROMICK, BRIAN",10/01/13,12/31/13,WHIP DIR AND SENIOR ADVISOR,"4,050.00",2013,"","","","ROMICK, BRIAN"
,OFFICE OF THE MINORITY WHIP,2013Q4,PERSONNEL COMPENSATION,"","ROMICK, BRIAN",10/01/13,10/01/13,WHIP DIR AND SENIOR ADVISOR (OTHER COMPENSATION),"1,500.00",2013,"","","","ROMICK, BRIAN"
,OFFICE OF THE MINORITY WHIP,2013Q4,PERSONNEL COMPENSATION,"","SAEZ,MARIEL S",10/01/13,12/31/13,DEPUTY PRESS SECRETARY,"9,750.00",2013,"","","","SAEZ,MARIEL S"
,OFFICE OF THE MINORITY WHIP,2013Q4,PERSONNEL COMPENSATION,"","SHOTT,DANIEL",10/01/13,11/30/13,FLOOR ASSISTANT,"8,333.34",2013,"","","","SHOTT,DANIEL"
,OFFICE OF THE MINORITY WHIP,2013Q4,PERSONNEL COMPENSATION,"","SHOTT,DANIEL",10/01/13,12/31/13,SENIOR FLOOR ASSISTANT,"9,166.67",2013,"","","","SHOTT,DANIEL"
,OFFICE OF THE MINORITY WHIP,2013Q4,PERSONNEL COMPENSATION,"","SIXKILLER, MARIAH S",10/01/13,12/31/13,SENIOR POLICY ADVISOR,"14,499.99",2013,"","","","SIXKILLER, MARIAH S"
,OFFICE OF THE MINORITY WHIP,2013Q4,PERSONNEL COMPENSATION,"","WEISSMANN, ADAM",10/01/13,12/31/13,SPEECHWRITER,"13,749.99",2013,"","","","WEISSMANN, ADAM"
,OFFICE OF THE MINORITY WHIP,2013Q4,PERSONNEL COMPENSATION,"","WEISSMANN, ADAM",12/01/13,12/31/13,SPEECHWRITER (OTHER COMPENSATION),"1,500.00",2013,"","","","WEISSMANN, ADAM"
,OFFICE OF THE MINORITY WHIP,2013Q4,PERSONNEL COMPENSATION,"","YOUNG, STEPHANIE L",12/01/13,12/31/13,PRESS SECRETARY,"3,000.00",2013,"","","","YOUNG, STEPHANIE L"
,OFFICE OF THE MINORITY WHIP,2013Q4,PERSONNEL COMPENSATION,"","YOUNG, STEPHANIE L",12/01/13,12/31/13,PRESS SECRETARY (OTHER COMPENSATION),"3,000.00",2013,"","","","YOUNG, STEPHANIE L"
,OFFICE OF THE MINORITY WHIP,2013Q4,TRAVEL,10-21,"AVILES,DANIELLE R",10/05/13,10/05/13,TAXI/PARKING/TOLLS,15.27,2013,AP,Accounts payable,E0075641,"AVILES,DANIELLE R"
,OFFICE OF THE MINORITY WHIP,2013Q4,TRAVEL,10-21,"GENSEMER, ELLIOT J",10/02/13,10/02/13,TAXI/PARKING/TOLLS,10.00,2013,AP,Accounts payable,E0075643,"GENSEMER, ELLIOT J"
,OFFICE OF THE MINORITY WHIP,2013Q4,TRAVEL,10-21,"GENSEMER, ELLIOT J",10/11/13,10/11/13,TAXI/PARKING/TOLLS,18.00,2013,AP,Accounts payable,E0075645,"GENSEMER, ELLIOT J"
,OFFICE OF THE MINORITY WHIP,2013Q4,TRAVEL,10-21,"COBIA, LINDSEY G",10/10/13,10/10/13,TAXI/PARKING/TOLLS,11.06,2013,AP,Accounts payable,E0075646,"COBIA, LINDSEY G"
,OFFICE OF THE MINORITY WHIP,2013Q4,TRAVEL,10-21,"AVILES,DANIELLE R",10/16/13,10/16/13,TAXI/PARKING/TOLLS,28.00,2013,AP,Accounts payable,E0075647,"AVILES,DANIELLE R"
,OFFICE OF THE MINORITY WHIP,2013Q4,TRAVEL,10-21,"AVILES,DANIELLE R",10/03/13,10/03/13,TAXI/PARKING/TOLLS,23.00,2013,AP,Accounts payable,E0075651,"AVILES,DANIELLE R"
,OFFICE OF THE MINORITY WHIP,2013Q4,TRAVEL,10-21,"COBIA, LINDSEY G",10/17/13,10/17/13,TAXI/PARKING/TOLLS,12.00,2013,AP,Accounts payable,E0075653,"COBIA, LINDSEY G"
,OFFICE OF THE MINORITY WHIP,2013Q4,TRAVEL,10-21,"GENSEMER, ELLIOT J",10/17/13,10/17/13,TAXI/PARKING/TOLLS,17.00,2013,AP,Accounts payable,E0075655,"GENSEMER, ELLIOT J"
,OFFICE OF THE MINORITY WHIP,2013Q4,TRAVEL,10-21,"AVILES,DANIELLE R",10/05/13,10/05/13,TAXI/PARKING/TOLLS,26.00,2013,AP,Accounts payable,E0075657,"AVILES,DANIELLE R"
,OFFICE OF THE MINORITY WHIP,2013Q4,TRAVEL,10-21,"AVILES,DANIELLE R",10/01/13,10/01/13,TAXI/PARKING/TOLLS,27.00,2013,AP,Accounts payable,E0075658,"AVILES,DANIELLE R"
,OFFICE OF THE MINORITY WHIP,2013Q4,TRAVEL,10-21,"GENSEMER, ELLIOT J",10/01/13,10/01/13,TAXI/PARKING/TOLLS,18.00,2013,AP,Accounts payable,E0075659,"GENSEMER, ELLIOT J"
,OFFICE OF THE MINORITY WHIP,2013Q4,TRAVEL,10-21,"AVILES,DANIELLE R",10/01/13,10/01/13,TAXI/PARKING/TOLLS,23.00,2013,AP,Accounts payable,E0075661,"AVILES,DANIELLE R"
,OFFICE OF THE MINORITY WHIP,2013Q4,TRAVEL,10-21,"COBIA, LINDSEY G",10/03/13,10/03/13,TAXI/PARKING/TOLLS,12.00,2013,AP,Accounts payable,E0075662,"COBIA, LINDSEY G"
,OFFICE OF THE MINORITY WHIP,2013Q4,TRAVEL,11-20,"AVILES,DANIELLE R",10/28/13,10/28/13,TAXI/PARKING/TOLLS,19.16,2013,AP,Accounts payable,E0086939,"AVILES,DANIELLE R"
,OFFICE OF THE MINORITY WHIP,2013Q4,TRAVEL,11-21,"COBIA, LINDSEY G",10/31/13,10/31/13,TAXI/PARKING/TOLLS,14.00,2013,AP,Accounts payable,E0086934,"COBIA, LINDSEY G"
,OFFICE OF THE MINORITY WHIP,2013Q4,TRAVEL,11-21,"MAHR, THOMAS",10/23/13,10/23/13,TAXI/PARKING/TOLLS,17.00,2013,AP,Accounts payable,E0086937,"MAHR, THOMAS"
,OFFICE OF THE MINORITY WHIP,2013Q4,TRAVEL,11-21,"COBIA, LINDSEY G",11/14/13,11/14/13,TAXI/PARKING/TOLLS,12.00,2013,AP,Accounts payable,E0086940,"COBIA, LINDSEY G"
,OFFICE OF THE MINORITY WHIP,2013Q4,TRAVEL,11-21,"AVILES,DANIELLE R",11/14/13,11/14/13,TAXI/PARKING/TOLLS,14.00,2013,AP,Accounts payable,E0086945,"AVILES,DANIELLE R"
,OFFICE OF THE MINORITY WHIP,2013Q4,TRAVEL,11-22,"COBIA, LINDSEY G",10/30/13,10/30/13,TAXI/PARKING/TOLLS,13.00,2013,AP,Accounts payable,E0086943,"COBIA, LINDSEY G"
,OFFICE OF THE MINORITY WHIP,2013Q4,TRAVEL,11-22,"COBIA, LINDSEY G",10/30/13,10/30/13,TAXI/PARKING/TOLLS,18.00,2013,AP,Accounts payable,E0086944,"COBIA, LINDSEY G"
,OFFICE OF THE MINORITY WHIP,2013Q4,TRAVEL,12-20,"AVILES,DANIELLE R",11/21/13,11/21/13,TAXI/PARKING/TOLLS,29.00,2013,AP,Accounts payable,E0098226,"AVILES,DANIELLE R"
,OFFICE OF THE MINORITY WHIP,2013Q4,TRAVEL,12-20,"COBIA, LINDSEY G",12/12/13,12/12/13,TAXI/PARKING/TOLLS,12.00,2013,AP,Accounts payable,E0098230,"COBIA, LINDSEY G"
,OFFICE OF THE MINORITY WHIP,2013Q4,TRAVEL,12-20,"AVILES,DANIELLE R",12/10/13,12/10/13,TAXI/PARKING/TOLLS,13.00,2013,AP,Accounts payable,E0098232,"AVILES,DANIELLE R"
,OFFICE OF THE MINORITY WHIP,2013Q4,TRAVEL,12-20,"COBIA, LINDSEY G",12/10/13,12/10/13,TAXI/PARKING/TOLLS,6.00,2013,AP,Accounts payable,E0098234,"COBIA, LINDSEY G"
,OFFICE OF THE MINORITY WHIP,2013Q4,TRAVEL,12-20,"COBIA, LINDSEY G",12/11/13,12/11/13,TAXI/PARKING/TOLLS,12.00,2013,AP,Accounts payable,E0098235,"COBIA, LINDSEY G"
,OFFICE OF THE MINORITY WHIP,2013Q4,TRAVEL,12-20,"AVILES,DANIELLE R",12/12/13,12/12/13,TAXI/PARKING/TOLLS,19.48,2013,AP,Accounts payable,E0098238,"AVILES,DANIELLE R"
,OFFICE OF THE MINORITY WHIP,2013Q4,TRAVEL,12-31,"COBIA, LINDSEY G",12/17/13,12/17/13,TAXI/PARKING/TOLLS,33.00,2013,AP,Accounts payable,E0098237,"COBIA, LINDSEY G"
,OFFICE OF THE MINORITY WHIP,2013Q4,TRAVEL,12-31,"COBIA, LINDSEY G",12/17/13,12/17/13,TAXI/PARKING/TOLLS,25.00,2013,AP,Accounts payable,E0098239,"COBIA, LINDSEY G"
,OFFICE OF THE MINORITY WHIP,2013Q4,"RENT, COMMUNICATION, UTILITIES",11-21,CITI PCARD-METROCAST MARYLAND VIR,10/01/13,10/28/13,UTILITIES,48.95,2013,AP,Accounts payable,00700548,CITI PCARD-METROCAST MARYLAND VIR
,OFFICE OF THE MINORITY WHIP,2013Q4,OTHER SERVICES,12-20,CITI PCARD-WWW.1AND1.COM,10/29/13,11/28/13,"WEB DEV HST,EMAIL & RLTD SERV",49.00,2013,AP,Accounts payable,00705465,CITI PCARD-WWW.1AND1.COM
,OFFICE OF THE MINORITY WHIP,2013Q4,SUPPLIES AND MATERIALS,11-21,CITI PCARD-NEW YORK TIMES DIGITAL,10/01/13,10/28/13,PUBLICATIONS/REFERENCE MAT'L,37.10,2013,AP,Accounts payable,00700548,CITI PCARD-NEW YORK TIMES DIGITAL
,OFFICE OF THE MINORITY WHIP,2013Q4,SUPPLIES AND MATERIALS,11-21,CITI PCARD-NYT NY TIMES SUBS,10/01/13,10/28/13,PUBLICATIONS/REFERENCE MAT'L,"2,925.60",2013,AP,Accounts payable,00700548,CITI PCARD-NYT NY TIMES SUBS
,OFFICE OF THE MINORITY WHIP,2013Q4,SUPPLIES AND MATERIALS,11-21,CITI PCARD-RA CAPITAL M,10/01/13,10/28/13,FOOD & BEVERAGE,47.60,2013,AP,Accounts payable,00700548,CITI PCARD-RA CAPITAL M
,DEMOCRATIC CAUCUS,2013Q4,PERSONNEL COMPENSATION,"","ALVI,HINA R",10/01/13,12/31/13,SHARED EMPLOYEE,"7,500.00",2013,"","","","ALVI,HINA R"
,DEMOCRATIC CAUCUS,2013Q4,PERSONNEL COMPENSATION,"","ATTAPIT,SIRAT",09/01/13,12/31/13,SENIOR POLICY COUNSEL,"16,418.99",2013,"","","","ATTAPIT,SIRAT"
,DEMOCRATIC CAUCUS,2013Q4,PERSONNEL COMPENSATION,"","AVERY,SAMUEL R",09/01/13,12/31/13,PRESS ASSISTANT,"10,429.01",2013,"","","","AVERY,SAMUEL R"
,DEMOCRATIC CAUCUS,2013Q4,PERSONNEL COMPENSATION,"","BACKEMEYER,COURTNEY G",10/01/13,12/31/13,COMMUNICTNS DIR TO VICE CHRMN,"8,025.00",2013,"","","","BACKEMEYER,COURTNEY G"
,DEMOCRATIC CAUCUS,2013Q4,PERSONNEL COMPENSATION,"","CASEY, KEVIN",10/01/13,12/31/13,POLICY DIRECTOR / VICE CHAIR,"22,250.01",2013,"","","","CASEY, KEVIN"
,DEMOCRATIC CAUCUS,2013Q4,PERSONNEL COMPENSATION,"","DAVALOS,LETICIA M",09/01/13,12/31/13,STAFF ASSISTANT,"7,429.01",2013,"","","","DAVALOS,LETICIA M"
,DEMOCRATIC CAUCUS,2013Q4,PERSONNEL COMPENSATION,"","DAVALOS,LETICIA M",09/01/13,11/01/13,STAFF ASSISTANT (OVERTIME),981.78,2013,"","","","DAVALOS,LETICIA M"
,DEMOCRATIC CAUCUS,2013Q4,PERSONNEL COMPENSATION,"","DELANEY, ERIC L",09/01/13,12/31/13,SR MBR OUTREACH ASST,"13,786.01",2013,"","","","DELANEY, ERIC L"
,DEMOCRATIC CAUCUS,2013Q4,PERSONNEL COMPENSATION,"","DIXON, DEBRA A",11/01/13,12/31/13,CHIEF OF STAFF,"2,000.00",2013,"","","","DIXON, DEBRA A"
,DEMOCRATIC CAUCUS,2013Q4,PERSONNEL COMPENSATION,"","ESTRADA,ANDREW M",09/01/13,12/31/13,STAFF ASSISTANT,"7,238.01",2013,"","","","ESTRADA,ANDREW M"
,DEMOCRATIC CAUCUS,2013Q4,PERSONNEL COMPENSATION,"","ESTRADA,ANDREW M",09/01/13,11/01/13,STAFF ASSISTANT (OVERTIME),944.73,2013,"","","","ESTRADA,ANDREW M"
,DEMOCRATIC CAUCUS,2013Q4,PERSONNEL COMPENSATION,"","GLEESON,JAMES M",09/01/13,12/31/13,COMMUNICATIONS DIRECTOR,"16,619.34",2013,"","","","GLEESON,JAMES M"
,DEMOCRATIC CAUCUS,2013Q4,PERSONNEL COMPENSATION,"","HERRERA,DANIEL",09/01/13,12/31/13,PRESS SECRETARY,"18,476.01",2013,"","","","HERRERA,DANIEL"
,DEMOCRATIC CAUCUS,2013Q4,PERSONNEL COMPENSATION,"","JONES II,MERVYN L",10/01/13,10/01/13,"SPECIAL ASSISTANT,VICE CHAIR",121.67,2013,"","","","JONES II,MERVYN L"
,DEMOCRATIC CAUCUS,2013Q4,PERSONNEL COMPENSATION,"","MCCLUSKIE,SEAN E",10/01/13,12/31/13,POLICY DIRECTOR,"26,666.66",2013,"","","","MCCLUSKIE,SEAN E"
,DEMOCRATIC CAUCUS,2013Q4,PERSONNEL COMPENSATION,"","PEREZ-SANCHEZ,NOEL",09/01/13,12/31/13,MEMBER OUTREACH ASSISTANT,"12,543.00",2013,"","","","PEREZ-SANCHEZ,NOEL"
,DEMOCRATIC CAUCUS,2013Q4,PERSONNEL COMPENSATION,"","RODRIGUEZ-CIAMPOLI,FABIOLA",09/01/13,12/31/13,EXECUTIVE DIRECTOR,"37,380.99",2013,"","","","RODRIGUEZ-CIAMPOLI,FABIOLA"
,DEMOCRATIC CAUCUS,2013Q4,PERSONNEL COMPENSATION,"","SACHSE,ANDREW M",10/01/13,12/31/13,STAFF ASSISTANT,"9,000.00",2013,"","","","SACHSE,ANDREW M"
,DEMOCRATIC CAUCUS,2013Q4,PERSONNEL COMPENSATION,"","SALDANA,AMANDA M",09/01/13,12/31/13,MEMBER OUTREACH ASSISTANT,"12,036.00",2013,"","","","SALDANA,AMANDA M"
,DEMOCRATIC CAUCUS,2013Q4,PERSONNEL COMPENSATION,"","SHARMA,MOH R",09/01/13,12/31/13,POLICY ADVISOR,"12,036.00",2013,"","","","SHARMA,MOH R"
,DEMOCRATIC CAUCUS,2013Q4,PERSONNEL COMPENSATION,"","SKILES, KATHLEE",09/01/13,12/31/13,PRESS SEC& DIR OF ONLINE STRAT,"18,726.00",2013,"","","","SKILES, KATHLEE"
,DEMOCRATIC CAUCUS,2013Q4,PERSONNEL COMPENSATION,"","VENEGAS,STEPHANIE A",09/01/13,12/31/13,DEPUTY DIR OF OPERATIONS,"16,840.01",2013,"","","","VENEGAS,STEPHANIE A"
,DEMOCRATIC CAUCUS,2013Q4,PERSONNEL COMPENSATION,"","WINKLER, KATHERINE E",10/01/13,12/31/13,SHARED EMPLOYEE,"16,699.99",2013,"","","","WINKLER, KATHERINE E"
,DEMOCRATIC CAUCUS,2013Q4,PERSONNEL COMPENSATION,"","WOODRUM,JEREMY S",10/01/13,12/31/13,"LEGISLATIVE DIR., VICE CHAIR","10,950.00",2013,"","","","WOODRUM,JEREMY S"
,DEMOCRATIC CAUCUS,2013Q4,"RENT, COMMUNICATION, UTILITIES",11-21,CITI PCARD-USPS,10/01/13,10/28/13,POSTAGE / COURIER / BOX RENTAL,9.20,2013,AP,Accounts payable,00700548,CITI PCARD-USPS
,DEMOCRATIC CAUCUS,2013Q4,"RENT, COMMUNICATION, UTILITIES",12-20,CITI PCARD-USTREAM TV,10/29/13,11/28/13,TELECOMSRV/EQ/TOLL CHARGE,99.00,2013,AP,Accounts payable,00705465,CITI PCARD-USTREAM TV
,DEMOCRATIC CAUCUS,2013Q4,PRINTING AND REPRODUCTION,12-20,CITI PCARD-THE ASSOCIATED PRESS,10/29/13,11/28/13,PRINTING & REPRODUCTION,95.00,2013,AP,Accounts payable,00705465,CITI PCARD-THE ASSOCIATED PRESS
,DEMOCRATIC CAUCUS,2013Q4,OTHER SERVICES,11-21,CITI PCARD-CLASSICLEANERS-LONGWOR,10/01/13,10/28/13,LAUNDRY SERVICES,57.25,2013,AP,Accounts payable,00700548,CITI PCARD-CLASSICLEANERS-LONGWOR
,DEMOCRATIC CAUCUS,2013Q4,SUPPLIES AND MATERIALS,11-12,SULLY FRAMING AND ART,10/31/13,10/31/13,HABITATION EXPENSE,255.14,2013,AP,Accounts payable,E0082800,SULLY FRAMING AND ART
,DEMOCRATIC CAUCUS,2013Q4,SUPPLIES AND MATERIALS,11-21,CITI PCARD-COSI,10/01/13,10/28/13,FOOD & BEVERAGE,325.50,2013,AP,Accounts payable,00700548,CITI PCARD-COSI
,DEMOCRATIC CAUCUS,2013Q4,SUPPLIES AND MATERIALS,11-21,CITI PCARD-D J WALL-ST-JOURNAL,10/01/13,10/28/13,PUBLICATIONS/REFERENCE MAT'L,270.21,2013,AP,Accounts payable,00700548,CITI PCARD-D J WALL-ST-JOURNAL
,DEMOCRATIC CAUCUS,2013Q4,SUPPLIES AND MATERIALS,11-21,CITI PCARD-FIREHOOK - FARRAGUT SQ,09/29/13,09/30/13,FOOD & BEVERAGE,491.25,2013,AP,Accounts payable,00700548,CITI PCARD-FIREHOOK - FARRAGUT SQ
,DEMOCRATIC CAUCUS,2013Q4,SUPPLIES AND MATERIALS,11-21,CITI PCARD-HARRIS TEETER,09/29/13,09/30/13,FOOD & BEVERAGE,654.58,2013,AP,Accounts payable,00700548,CITI PCARD-HARRIS TEETER
,DEMOCRATIC CAUCUS,2013Q4,SUPPLIES AND MATERIALS,11-21,CITI PCARD-HARRIS TEETER,10/01/13,10/28/13,FOOD & BEVERAGE,"1,840.49",2013,AP,Accounts payable,00700548,CITI PCARD-HARRIS TEETER
,DEMOCRATIC CAUCUS,2013Q4,SUPPLIES AND MATERIALS,11-21,CITI PCARD-LA TIMES SUBSCRIPTION,10/01/13,10/28/13,PUBLICATIONS/REFERENCE MAT'L,11.96,2013,AP,Accounts payable,00700548,CITI PCARD-LA TIMES SUBSCRIPTION
,DEMOCRATIC CAUCUS,2013Q4,SUPPLIES AND MATERIALS,11-21,CITI PCARD-LOS ANGELES TIMES,09/29/13,09/30/13,PUBLICATIONS/REFERENCE MAT'L,11.96,2013,AP,Accounts payable,00700548,CITI PCARD-LOS ANGELES TIMES
,DEMOCRATIC CAUCUS,2013Q4,SUPPLIES AND MATERIALS,11-21,CITI PCARD-SAFEWAY STORE,09/29/13,09/30/13,FOOD & BEVERAGE,44.42,2013,AP,Accounts payable,00700548,CITI PCARD-SAFEWAY STORE
,DEMOCRATIC CAUCUS,2013Q4,SUPPLIES AND MATERIALS,11-21,CITI PCARD-SAINT GERMAIN CATERING,10/01/13,10/28/13,FOOD & BEVERAGE,"5,530.48",2013,AP,Accounts payable,00700548,CITI PCARD-SAINT GERMAIN CATERING
,DEMOCRATIC CAUCUS,2013Q4,SUPPLIES AND MATERIALS,11-21,CITI PCARD-TALAY THAI RESTAURANT,09/29/13,09/30/13,FOOD & BEVERAGE,"1,320.00",2013,AP,Accounts payable,00700548,CITI PCARD-TALAY THAI RESTAURANT
,DEMOCRATIC CAUCUS,2013Q4,SUPPLIES AND MATERIALS,11-21,CITI PCARD-TAYLOR GOURMET 1750 PE,09/29/13,09/30/13,FOOD & BEVERAGE,"1,813.45",2013,AP,Accounts payable,00700548,CITI PCARD-TAYLOR GOURMET 1750 PE
,DEMOCRATIC CAUCUS,2013Q4,SUPPLIES AND MATERIALS,11-21,CITI PCARD-THEECONOMIST NEWSPAPER,09/29/13,09/30/13,PUBLICATIONS/REFERENCE MAT'L,169.60,2013,AP,Accounts payable,00700548,CITI PCARD-THEECONOMIST NEWSPAPER
,DEMOCRATIC CAUCUS,2013Q4,SUPPLIES AND MATERIALS,12-20,CITI PCARD-CATERING BY AVALON,10/29/13,11/28/13,FOOD & BEVERAGE,"4,169.98",2013,AP,Accounts payable,00705465,CITI PCARD-CATERING BY AVALON
,DEMOCRATIC CAUCUS,2013Q4,SUPPLIES AND MATERIALS,12-20,CITI PCARD-COSI,10/29/13,11/28/13,FOOD & BEVERAGE,162.85,2013,AP,Accounts payable,00705465,CITI PCARD-COSI
,DEMOCRATIC CAUCUS,2013Q4,SUPPLIES AND MATERIALS,12-20,CITI PCARD-FINANCIAL TIMES LT,10/29/13,11/28/13,PUBLICATIONS/REFERENCE MAT'L,325.00,2013,AP,Accounts payable,00705465,CITI PCARD-FINANCIAL TIMES LT
,DEMOCRATIC CAUCUS,2013Q4,SUPPLIES AND MATERIALS,12-20,CITI PCARD-HARRIS TEETER,10/29/13,11/28/13,FOOD & BEVERAGE,764.71,2013,AP,Accounts payable,00705465,CITI PCARD-HARRIS TEETER
,DEMOCRATIC CAUCUS,2013Q4,SUPPLIES AND MATERIALS,12-20,CITI PCARD-LA TIMES SUBSCRIPTION,10/29/13,11/28/13,PUBLICATIONS/REFERENCE MAT'L,11.96,2013,AP,Accounts payable,00705465,CITI PCARD-LA TIMES SUBSCRIPTION
,DEMOCRATIC CAUCUS,2013Q4,SUPPLIES AND MATERIALS,12-20,CITI PCARD-SAINT GERMAIN CATERING,10/29/13,11/28/13,FOOD & BEVERAGE,"1,834.93",2013,AP,Accounts payable,00705465,CITI PCARD-SAINT GERMAIN CATERING
,DEMOCRATIC CAUCUS,2013Q4,SUPPLIES AND MATERIALS,12-20,CITI PCARD-WASHPOS SUBSCRIPTION,10/29/13,11/28/13,PUBLICATIONS/REFERENCE MAT'L,13.77,2013,AP,Accounts payable,00705465,CITI PCARD-WASHPOS SUBSCRIPTION
,REPUBLICAN CONFERENCE,2013Q4,PERSONNEL COMPENSATION,"","ALGER,ABIGAIL S",11/18/13,12/31/13,DIGITAL DIRECTOR,"8,361.11",2013,"","","","ALGER,ABIGAIL S"
,REPUBLICAN CONFERENCE,2013Q4,PERSONNEL COMPENSATION,"","BETZ, KIMBERLY S",10/01/13,12/31/13,POLICY DIRECTOR,"37,500.00",2013,"","","","BETZ, KIMBERLY S"
,REPUBLICAN CONFERENCE,2013Q4,PERSONNEL COMPENSATION,"","CAMERON,TIMOTHY M",10/01/13,11/30/13,DIRECTOR OF DIGITAL MEDIA,"8,655.55",2013,"","","","CAMERON,TIMOTHY M"
,REPUBLICAN CONFERENCE,2013Q4,PERSONNEL COMPENSATION,"","COLLIGAN,DYLAN H",10/01/13,12/31/13,DEPUTY PRESS SECRETARY,"9,999.99",2013,"","","","COLLIGAN,DYLAN H"
,REPUBLICAN CONFERENCE,2013Q4,PERSONNEL COMPENSATION,"","CONNELL, MARJORIE F",10/01/13,12/31/13,DIRECTOR OF OPERATIONS,"20,000.01",2013,"","","","CONNELL, MARJORIE F"
,REPUBLICAN CONFERENCE,2013Q4,PERSONNEL COMPENSATION,"","DEUTSCH,JEREMY",10/01/13,12/31/13,CHIEF OF STAFF,"27,000.00",2013,"","","","DEUTSCH,JEREMY"
,REPUBLICAN CONFERENCE,2013Q4,PERSONNEL COMPENSATION,"","GAITAN,WADI",10/01/13,12/31/13,DEP PRESS SECY HISPANIC MEDIA,"12,000.00",2013,"","","","GAITAN,WADI"
,REPUBLICAN CONFERENCE,2013Q4,PERSONNEL COMPENSATION,"","GRAVES,JOEL D",10/01/13,12/31/13,STAFF ASSISTANT,"8,000.01",2013,"","","","GRAVES,JOEL D"
,REPUBLICAN CONFERENCE,2013Q4,PERSONNEL COMPENSATION,"","HODSON,NATHAN M",10/01/13,12/31/13,DIRECTOR OF COMMUNICATIONS,"28,749.99",2013,"","","","HODSON,NATHAN M"
,REPUBLICAN CONFERENCE,2013Q4,PERSONNEL COMPENSATION,"","LEVINER,EMILY E",10/01/13,12/31/13,POLICY ADVISOR,"12,500.01",2013,"","","","LEVINER,EMILY E"
,REPUBLICAN CONFERENCE,2013Q4,PERSONNEL COMPENSATION,"","LITMAN,RIVA",10/01/13,12/31/13,PRESS SECRETARY,"16,749.99",2013,"","","","LITMAN,RIVA"
,REPUBLICAN CONFERENCE,2013Q4,PERSONNEL COMPENSATION,"","MURPHY,SHAUGHNESSY P",10/01/13,12/31/13,DIRECTOR OF MEMBER SERVICES,"30,500.01",2013,"","","","MURPHY,SHAUGHNESSY P"
,REPUBLICAN CONFERENCE,2013Q4,PERSONNEL COMPENSATION,"","MUZIN,NICOLAS D",10/01/13,12/31/13,DIRECTOR OF OUTREACH,"33,750.00",2013,"","","","MUZIN,NICOLAS D"
,REPUBLICAN CONFERENCE,2013Q4,PERSONNEL COMPENSATION,"","PINEGAR,PHILLIP",10/01/13,12/31/13,STAFF ASSISTANT,"8,750.01",2013,"","","","PINEGAR,PHILLIP"
,REPUBLICAN CONFERENCE,2013Q4,PERSONNEL COMPENSATION,"","REAGAN,AMANDA M",10/01/13,12/31/13,STAFF ASSISTANT,"7,500.00",2013,"","","","REAGAN,AMANDA M"
,REPUBLICAN CONFERENCE,2013Q4,PERSONNEL COMPENSATION,"","RUHLEN, MARY E",10/01/13,12/31/13,FINANCIAL ADMINISTRATOR,"4,050.00",2013,"","","","RUHLEN, MARY E"
,REPUBLICAN CONFERENCE,2013Q4,PERSONNEL COMPENSATION,"","SMENTEK,DAVID",10/01/13,12/31/13,POLICY COORDINATOR,"6,999.99",2013,"","","","SMENTEK,DAVID"
,REPUBLICAN CONFERENCE,2013Q4,PERSONNEL COMPENSATION,"","STEVENS,PAMELA R",10/01/13,12/31/13,DIRECTOR OF MEDIA AFFAIRS,"31,250.01",2013,"","","","STEVENS,PAMELA R"
,REPUBLICAN CONFERENCE,2013Q4,PERSONNEL COMPENSATION,"","WITTMAN,JOHN L",10/01/13,12/31/13,RAPID RESPONSE COORDINATOR,"11,250.00",2013,"","","","WITTMAN,JOHN L"
,REPUBLICAN CONFERENCE,2013Q4,TRAVEL,10-24,"GRAVES, JOEL D",10/12/13,10/12/13,TAXI/PARKING/TOLLS,26.00,2013,AP,Accounts payable,E0074079,"GRAVES, JOEL D"
,REPUBLICAN CONFERENCE,2013Q4,TRAVEL,10-28,"CAMERON, TIMOTHY M",10/01/13,10/01/13,TAXI/PARKING/TOLLS,26.94,2013,AP,Accounts payable,E0078053,"CAMERON, TIMOTHY M"
,REPUBLICAN CONFERENCE,2013Q4,"RENT, COMMUNICATION, UTILITIES",12-24,SCHEFFTECH PRODUCTIONS LLC,12/20/13,12/20/13,RECORDING (OUTSIDE),"1,000.00",2013,AP,Accounts payable,E0099272,SCHEFFTECH PRODUCTIONS LLC
,REPUBLICAN CONFERENCE,2013Q4,PRINTING AND REPRODUCTION,11-21,CITI PCARD-FEDEXOFFICE,10/01/13,10/28/13,PRINTING & REPRODUCTION,30.90,2013,AP,Accounts payable,00700548,CITI PCARD-FEDEXOFFICE
,REPUBLICAN CONFERENCE,2013Q4,PRINTING AND REPRODUCTION,11-21,CITI PCARD-ISTOCK INTERNATIONAL,10/01/13,10/28/13,PRINTING & REPRODUCTION,230.99,2013,AP,Accounts payable,00700548,CITI PCARD-ISTOCK INTERNATIONAL
,REPUBLICAN CONFERENCE,2013Q4,OTHER SERVICES,11-04,O'DONNELL & ASSOC LTD,10/01/13,10/31/13,NON-TECHNOLOGY SERVICE CONTR,"2,500.00",2013,AP,Accounts payable,E0080271,O'DONNELL & ASSOC LTD
,REPUBLICAN CONFERENCE,2013Q4,OTHER SERVICES,11-21,"CITI PCARD-ADOBE SYSTEMS, INC",10/01/13,10/28/13,TECHNOLOGY SERVICE CONTRACTS,84.58,2013,AP,Accounts payable,00700548,"CITI PCARD-ADOBE SYSTEMS, INC"
,REPUBLICAN CONFERENCE,2013Q4,OTHER SERVICES,11-21,CITI PCARD-ECSUITE.COM PREMIERE,10/01/13,10/28/13,TECHNOLOGY SERVICE CONTRACTS,5.95,2013,AP,Accounts payable,00700548,CITI PCARD-ECSUITE.COM PREMIERE
,REPUBLICAN CONFERENCE,2013Q4,OTHER SERVICES,11-21,CITI PCARD-HTTP://WEBEX.COM,10/01/13,10/28/13,TECHNOLOGY SERVICE CONTRACTS,-17.80,2013,AP,Accounts payable,00700548,CITI PCARD-HTTP://WEBEX.COM
,REPUBLICAN CONFERENCE,2013Q4,OTHER SERVICES,12-04,O'DONNELL & ASSOC LTD,11/01/13,11/30/13,TRAINING,"2,800.00",2013,AP,Accounts payable,E0091099,O'DONNELL & ASSOC LTD
,REPUBLICAN CONFERENCE,2013Q4,OTHER SERVICES,12-20,"CITI PCARD-ADOBE SYSTEMS, INC",10/29/13,11/28/13,TECHNOLOGY SERVICE CONTRACTS,84.58,2013,AP,Accounts payable,00705465,"CITI PCARD-ADOBE SYSTEMS, INC"
,REPUBLICAN CONFERENCE,2013Q4,OTHER SERVICES,12-20,CITI PCARD-ECSUITE.COM PREMIERE,10/29/13,11/28/13,TECHNOLOGY SERVICE CONTRACTS,5.95,2013,AP,Accounts payable,00705465,CITI PCARD-ECSUITE.COM PREMIERE
,REPUBLICAN CONFERENCE,2013Q4,SUPPLIES AND MATERIALS,10-21,"MURPHY, SHAUGHNESSY",10/01/13,10/01/13,FOOD & BEVERAGE,398.96,2013,AP,Accounts payable,E0071924,"MURPHY, SHAUGHNESSY"
,REPUBLICAN CONFERENCE,2013Q4,SUPPLIES AND MATERIALS,10-21,"MURPHY, SHAUGHNESSY",10/04/13,10/04/13,FOOD & BEVERAGE,24.03,2013,AP,Accounts payable,E0071990,"MURPHY, SHAUGHNESSY"
,REPUBLICAN CONFERENCE,2013Q4,SUPPLIES AND MATERIALS,10-21,"GRAVES, JOEL D",10/07/13,10/07/13,FOOD & BEVERAGE,47.62,2013,AP,Accounts payable,E0072203,"GRAVES, JOEL D"
,REPUBLICAN CONFERENCE,2013Q4,SUPPLIES AND MATERIALS,10-21,"HODSON, NATHAN",10/11/13,10/11/13,FOOD & BEVERAGE,331.76,2013,AP,Accounts payable,E0074080,"HODSON, NATHAN"
,REPUBLICAN CONFERENCE,2013Q4,SUPPLIES AND MATERIALS,10-21,"GRAVES, JOEL D",10/15/13,10/15/13,FOOD & BEVERAGE,120.95,2013,AP,Accounts payable,E0074262,"GRAVES, JOEL D"
,REPUBLICAN CONFERENCE,2013Q4,SUPPLIES AND MATERIALS,10-25,"MURPHY, SHAUGHNESSY",10/22/13,10/22/13,FOOD & BEVERAGE,427.28,2013,AP,Accounts payable,E0078054,"MURPHY, SHAUGHNESSY"
,REPUBLICAN CONFERENCE,2013Q4,SUPPLIES AND MATERIALS,10-28,"HODSON, NATHAN",10/25/13,10/25/13,FOOD & BEVERAGE,339.68,2013,AP,Accounts payable,E0078122,"HODSON, NATHAN"
,REPUBLICAN CONFERENCE,2013Q4,SUPPLIES AND MATERIALS,11-01,ARAMARK REFRESHMENT SERVICES,11/01/13,11/30/13,FOOD & BEVERAGE,105.75,2013,AP,Accounts payable,E0079856,ARAMARK REFRESHMENT SERVICES
,REPUBLICAN CONFERENCE,2013Q4,SUPPLIES AND MATERIALS,11-04,"HODSON, NATHAN",11/01/13,11/01/13,FOOD & BEVERAGE,271.44,2013,AP,Accounts payable,E0080430,"HODSON, NATHAN"
,REPUBLICAN CONFERENCE,2013Q4,SUPPLIES AND MATERIALS,11-06,ARAMARK REFRESHMENT SERVICES,10/30/13,10/30/13,FOOD & BEVERAGE,22.72,2013,AP,Accounts payable,E0081044,ARAMARK REFRESHMENT SERVICES
,REPUBLICAN CONFERENCE,2013Q4,SUPPLIES AND MATERIALS,11-06,HAUTE ON THE HILL,10/10/13,10/10/13,FOOD & BEVERAGE,579.00,2013,AP,Accounts payable,E0081553,HAUTE ON THE HILL
,REPUBLICAN CONFERENCE,2013Q4,SUPPLIES AND MATERIALS,11-06,ARAMARK REFRESHMENT SERVICES,10/23/13,10/23/13,FOOD & BEVERAGE,144.12,2013,AP,Accounts payable,E0081554,ARAMARK REFRESHMENT SERVICES
,REPUBLICAN CONFERENCE,2013Q4,SUPPLIES AND MATERIALS,11-06,CAPITOLHOST,10/04/13,10/04/13,FOOD & BEVERAGE,645.00,2013,AP,Accounts payable,E0081555,CAPITOLHOST
,REPUBLICAN CONFERENCE,2013Q4,SUPPLIES AND MATERIALS,11-06,CAPITOLHOST,10/08/13,10/08/13,FOOD & BEVERAGE,672.00,2013,AP,Accounts payable,E0081567,CAPITOLHOST
,REPUBLICAN CONFERENCE,2013Q4,SUPPLIES AND MATERIALS,11-14,"HODSON, NATHAN",11/07/13,11/07/13,FOOD & BEVERAGE,167.29,2013,AP,Accounts payable,E0084139,"HODSON, NATHAN"
,REPUBLICAN CONFERENCE,2013Q4,SUPPLIES AND MATERIALS,11-14,"HODSON, NATHAN",11/08/13,11/08/13,FOOD & BEVERAGE,42.95,2013,AP,Accounts payable,E0084139,"HODSON, NATHAN"
,REPUBLICAN CONFERENCE,2013Q4,SUPPLIES AND MATERIALS,11-14,"GRAVES, JOEL D",11/08/13,11/08/13,FOOD & BEVERAGE,25.99,2013,AP,Accounts payable,E0084286,"GRAVES, JOEL D"
,REPUBLICAN CONFERENCE,2013Q4,SUPPLIES AND MATERIALS,11-19,"HODSON, NATHAN",11/15/13,11/15/13,FOOD & BEVERAGE,313.65,2013,AP,Accounts payable,E0085773,"HODSON, NATHAN"
,REPUBLICAN CONFERENCE,2013Q4,SUPPLIES AND MATERIALS,11-19,ARAMARK REFRESHMENT SERVICES,12/01/13,12/31/13,FOOD & BEVERAGE,105.75,2013,AP,Accounts payable,E0086225,ARAMARK REFRESHMENT SERVICES
,REPUBLICAN CONFERENCE,2013Q4,SUPPLIES AND MATERIALS,11-21,CITI PCARD-CHICK-FIL-A,10/01/13,10/28/13,FOOD & BEVERAGE,484.89,2013,AP,Accounts payable,00700548,CITI PCARD-CHICK-FIL-A
,REPUBLICAN CONFERENCE,2013Q4,SUPPLIES AND MATERIALS,11-21,CITI PCARD-COSI,10/01/13,10/28/13,FOOD & BEVERAGE,614.34,2013,AP,Accounts payable,00700548,CITI PCARD-COSI
,REPUBLICAN CONFERENCE,2013Q4,SUPPLIES AND MATERIALS,11-21,CITI PCARD-DOMINO'S,10/01/13,10/28/13,FOOD & BEVERAGE,550.00,2013,AP,Accounts payable,00700548,CITI PCARD-DOMINO'S
,REPUBLICAN CONFERENCE,2013Q4,SUPPLIES AND MATERIALS,11-21,CITI PCARD-DUNKIN,10/01/13,10/28/13,FOOD & BEVERAGE,63.98,2013,AP,Accounts payable,00700548,CITI PCARD-DUNKIN
,REPUBLICAN CONFERENCE,2013Q4,SUPPLIES AND MATERIALS,11-21,CITI PCARD-MCDONALD'S,10/01/13,10/28/13,FOOD & BEVERAGE,607.50,2013,AP,Accounts payable,00700548,CITI PCARD-MCDONALD'S
,REPUBLICAN CONFERENCE,2013Q4,SUPPLIES AND MATERIALS,11-21,CITI PCARD-NEW YORK TIMES DIGITAL,10/01/13,10/28/13,PUBLICATIONS/REFERENCE MAT'L,15.90,2013,AP,Accounts payable,00700548,CITI PCARD-NEW YORK TIMES DIGITAL
,REPUBLICAN CONFERENCE,2013Q4,SUPPLIES AND MATERIALS,11-21,CITI PCARD-SAFEWAY STORE,10/01/13,10/28/13,FOOD & BEVERAGE,21.05,2013,AP,Accounts payable,00700548,CITI PCARD-SAFEWAY STORE
,REPUBLICAN CONFERENCE,2013Q4,SUPPLIES AND MATERIALS,11-21,CITI PCARD-SUBWAY,10/01/13,10/28/13,FOOD & BEVERAGE,385.00,2013,AP,Accounts payable,00700548,CITI PCARD-SUBWAY
,REPUBLICAN CONFERENCE,2013Q4,SUPPLIES AND MATERIALS,11-22,"MURPHY, SHAUGHNESSY",11/14/13,11/14/13,FOOD & BEVERAGE,72.00,2013,AP,Accounts payable,E0087666,"MURPHY, SHAUGHNESSY"
,REPUBLICAN CONFERENCE,2013Q4,SUPPLIES AND MATERIALS,12-10,"JIRIK, MONICA",11/13/13,11/13/13,FOOD & BEVERAGE,61.01,2013,AP,Accounts payable,E0091593,"JIRIK, MONICA"
,REPUBLICAN CONFERENCE,2013Q4,SUPPLIES AND MATERIALS,12-10,"JIRIK, MONICA",11/20/13,11/20/13,FOOD & BEVERAGE,45.27,2013,AP,Accounts payable,E0091593,"JIRIK, MONICA"
,REPUBLICAN CONFERENCE,2013Q4,SUPPLIES AND MATERIALS,12-12,"HODSON, NATHAN",12/06/13,12/06/13,FOOD & BEVERAGE,343.75,2013,AP,Accounts payable,E0093101,"HODSON, NATHAN"
,REPUBLICAN CONFERENCE,2013Q4,SUPPLIES AND MATERIALS,12-16,DORNETTE MARJORIE F,12/10/13,12/10/13,FOOD & BEVERAGE,184.11,2013,AP,Accounts payable,E0094780,DORNETTE MARJORIE F
,REPUBLICAN CONFERENCE,2013Q4,SUPPLIES AND MATERIALS,12-17,"MURPHY, SHAUGHNESSY",12/12/13,12/12/13,FOOD & BEVERAGE,642.60,2013,AP,Accounts payable,E0097023,"MURPHY, SHAUGHNESSY"
,REPUBLICAN CONFERENCE,2013Q4,SUPPLIES AND MATERIALS,12-18,ARAMARK REFRESHMENT SERVICES,11/27/13,11/27/13,FOOD & BEVERAGE,168.35,2013,AP,Accounts payable,E0097022,ARAMARK REFRESHMENT SERVICES
,REPUBLICAN CONFERENCE,2013Q4,SUPPLIES AND MATERIALS,12-18,"HODSON, NATHAN",12/13/13,12/13/13,FOOD & BEVERAGE,288.62,2013,AP,Accounts payable,E0097075,"HODSON, NATHAN"
,REPUBLICAN CONFERENCE,2013Q4,SUPPLIES AND MATERIALS,12-20,CITI PCARD-AMAZON MKTPLACE PMTS,10/29/13,11/28/13,FOOD & BEVERAGE,109.20,2013,AP,Accounts payable,00705465,CITI PCARD-AMAZON MKTPLACE PMTS
,REPUBLICAN CONFERENCE,2013Q4,SUPPLIES AND MATERIALS,12-20,CITI PCARD-AMAZON SERVICES-KINDLE,10/29/13,11/28/13,PUBLICATIONS/REFERENCE MAT'L,23.24,2013,AP,Accounts payable,00705465,CITI PCARD-AMAZON SERVICES-KINDLE
,REPUBLICAN CONFERENCE,2013Q4,SUPPLIES AND MATERIALS,12-20,CITI PCARD-COSI,10/29/13,11/28/13,FOOD & BEVERAGE,772.80,2013,AP,Accounts payable,00705465,CITI PCARD-COSI
,REPUBLICAN CONFERENCE,2013Q4,SUPPLIES AND MATERIALS,12-20,CITI PCARD-DUNKIN,10/29/13,11/28/13,FOOD & BEVERAGE,59.54,2013,AP,Accounts payable,00705465,CITI PCARD-DUNKIN
,REPUBLICAN CONFERENCE,2013Q4,SUPPLIES AND MATERIALS,12-20,CITI PCARD-HILL COUNTRY BARBECUE,10/29/13,11/28/13,FOOD & BEVERAGE,111.80,2013,AP,Accounts payable,00705465,CITI PCARD-HILL COUNTRY BARBECUE
,REPUBLICAN CONFERENCE,2013Q4,SUPPLIES AND MATERIALS,12-20,CITI PCARD-NEW YORK TIMES DIGITAL,10/29/13,11/28/13,PUBLICATIONS/REFERENCE MAT'L,15.90,2013,AP,Accounts payable,00705465,CITI PCARD-NEW YORK TIMES DIGITAL
,REPUBLICAN CONFERENCE,2013Q4,SUPPLIES AND MATERIALS,12-20,CITI PCARD-RA CAPITAL M,10/29/13,11/28/13,FOOD & BEVERAGE,2.70,2013,AP,Accounts payable,00705465,CITI PCARD-RA CAPITAL M
,REPUBLICAN CONFERENCE,2013Q4,SUPPLIES AND MATERIALS,12-20,CITI PCARD-SAFEWAY STORE,10/29/13,11/28/13,FOOD & BEVERAGE,12.41,2013,AP,Accounts payable,00705465,CITI PCARD-SAFEWAY STORE
,REPUBLICAN CONFERENCE,2013Q4,SUPPLIES AND MATERIALS,12-26,ARAMARK REFRESHMENT SERVICES,01/01/14,01/31/14,FOOD & BEVERAGE,105.75,2013,AP,Accounts payable,E0098574,ARAMARK REFRESHMENT SERVICES
,CHIEF ADMIN OFCR OF THE HOUSE,2013Q4,PERSONNEL COMPENSATION,"","ABBOTT, JESSICA A",10/01/13,12/31/13,FINANCIAL ANALYST,"31,512.51",FISCAL YEAR 2014,"","","","ABBOTT, JESSICA A"
,CHIEF ADMIN OFCR OF THE HOUSE,2013Q4,PERSONNEL COMPENSATION,"","ABEL, TIMOTHY",10/01/13,12/31/13,SR TECHNICAL SUPPORT REP (A),"23,888.25",FISCAL YEAR 2014,"","","","ABEL, TIMOTHY"
,CHIEF ADMIN OFCR OF THE HOUSE,2013Q4,PERSONNEL COMPENSATION,"","ACUESTA,JULY J",10/01/13,12/31/13,SENIOR SYSTEMS ENGINEER,"26,928.51",FISCAL YEAR 2014,"","","","ACUESTA,JULY J"
,CHIEF ADMIN OFCR OF THE HOUSE,2013Q4,PERSONNEL COMPENSATION,"","ADDISON, TRACY",10/01/13,12/31/13,LOGISTICS & DIST SPEC (A),"11,567.49",FISCAL YEAR 2014,"","","","ADDISON, TRACY"
,CHIEF ADMIN OFCR OF THE HOUSE,2013Q4,PERSONNEL COMPENSATION,"","ADDISON, TRACY",11/01/13,11/30/13,LOGISTICS & DIST SPEC (A) (OTHER COMPENSATION),500.00,FISCAL YEAR 2014,"","","","ADDISON, TRACY"
,CHIEF ADMIN OFCR OF THE HOUSE,2013Q4,PERSONNEL COMPENSATION,"","ADELAKUN, DEEN A",10/01/13,12/31/13,SR TECH SOLUTIONS ENGINEER,"22,107.00",FISCAL YEAR 2014,"","","","ADELAKUN, DEEN A"
,CHIEF ADMIN OFCR OF THE HOUSE,2013Q4,PERSONNEL COMPENSATION,"","AGEE, MATTHEW P",10/01/13,12/31/13,RESOURCE MANAGER,"30,405.24",FISCAL YEAR 2014,"","","","AGEE, MATTHEW P"
,CHIEF ADMIN OFCR OF THE HOUSE,2013Q4,PERSONNEL COMPENSATION,"","AGEE, TINA M",10/01/13,12/31/13,DIRECTOR PHOTOGRAPHY,"26,928.51",FISCAL YEAR 2014,"","","","AGEE, TINA M"
,CHIEF ADMIN OFCR OF THE HOUSE,2013Q4,PERSONNEL COMPENSATION,"","AGNEW, ROSE M",10/01/13,12/31/13,PAYROLL & BENEFITS GENERALIST,"18,329.01",FISCAL YEAR 2014,"","","","AGNEW, ROSE M"
,CHIEF ADMIN OFCR OF THE HOUSE,2013Q4,PERSONNEL COMPENSATION,"","AGNEW, ROSE M",10/01/13,10/31/13,PAYROLL & BENEFITS GENERALIST (OVERTIME),193.86,FISCAL YEAR 2014,"","","","AGNEW, ROSE M"
,CHIEF ADMIN OFCR OF THE HOUSE,2013Q4,PERSONNEL COMPENSATION,"","AKINSEGUN, PATRICIA A",10/01/13,12/31/13,TELEPHONE SYSTEMS CONSULTANT,"22,107.00",FISCAL YEAR 2014,"","","","AKINSEGUN, PATRICIA A"
,CHIEF ADMIN OFCR OF THE HOUSE,2013Q4,PERSONNEL COMPENSATION,"","ALEXANDER, GORDON",10/01/13,12/31/13,TECH SOLUTIONS ENGINEER,"17,735.76",FISCAL YEAR 2014,"","","","ALEXANDER, GORDON"
,CHIEF ADMIN OFCR OF THE HOUSE,2013Q4,PERSONNEL COMPENSATION,"","ALLISON, KEVIN M",10/01/13,12/31/13,LOGISTICS & DIST SPEC (A),"13,503.51",FISCAL YEAR 2014,"","","","ALLISON, KEVIN M"
,CHIEF ADMIN OFCR OF THE HOUSE,2013Q4,PERSONNEL COMPENSATION,"","ALLISON, KEVIN M",10/01/13,10/31/13,LOGISTICS & DIST SPEC (A) (OVERTIME),545.33,FISCAL YEAR 2014,"","","","ALLISON, KEVIN M"
,CHIEF ADMIN OFCR OF THE HOUSE,2013Q4,PERSONNEL COMPENSATION,"","ALSTON,MARK A",10/01/13,12/31/13,TECH SOLUTIONS ENGINEER,"17,344.26",FISCAL YEAR 2014,"","","","ALSTON,MARK A"
,CHIEF ADMIN OFCR OF THE HOUSE,2013Q4,PERSONNEL COMPENSATION,"","ALVEY, LISA M",10/01/13,12/31/13,FINANCIAL COUNSELOR,"20,286.24",FISCAL YEAR 2014,"","","","ALVEY, LISA M"
,CHIEF ADMIN OFCR OF THE HOUSE,2013Q4,PERSONNEL COMPENSATION,"","ANDERSEN, FREDERIC E",10/01/13,12/31/13,2ND ASST SUPERINTENDENT,"22,551.00",FISCAL YEAR 2014,"","","","ANDERSEN, FREDERIC E"
,CHIEF ADMIN OFCR OF THE HOUSE,2013Q4,PERSONNEL COMPENSATION,"","ANDERSON, DONTRELL",10/01/13,12/31/13,FINANCIAL COUNSELOR,"15,789.00",FISCAL YEAR 2014,"","","","ANDERSON, DONTRELL"
,CHIEF ADMIN OFCR OF THE HOUSE,2013Q4,PERSONNEL COMPENSATION,"","ANDERSON, DONTRELL",10/01/13,10/31/13,FINANCIAL COUNSELOR (OVERTIME),364.36,FISCAL YEAR 2014,"","","","ANDERSON, DONTRELL"
,CHIEF ADMIN OFCR OF THE HOUSE,2013Q4,PERSONNEL COMPENSATION,"","ANDREWS,THOMAS",10/01/13,12/31/13,VOICE & VIDEO BRANCH MGR (A),"33,323.25",FISCAL YEAR 2014,"","","","ANDREWS,THOMAS"
,CHIEF ADMIN OFCR OF THE HOUSE,2013Q4,PERSONNEL COMPENSATION,"","ANDREWS-MOBLEY, RACHELLE G",10/01/13,12/31/13,PRINCIPAL TECHNICAL TRAINER,"24,595.50",FISCAL YEAR 2014,"","","","ANDREWS-MOBLEY, RACHELLE G"
,CHIEF ADMIN OFCR OF THE HOUSE,2013Q4,PERSONNEL COMPENSATION,"","ARMSTRONG,JANCIERA C",10/01/13,12/31/13,"MANAGER, ACCOUNTING","25,912.74",FISCAL YEAR 2014,"","","","ARMSTRONG,JANCIERA C"
,CHIEF ADMIN OFCR OF THE HOUSE,2013Q4,PERSONNEL COMPENSATION,"","ARTHUR, CAMILLA S",10/01/13,12/31/13,ASSISTANT CAO,"39,794.25",FISCAL YEAR 2014,"","","","ARTHUR, CAMILLA S"
,CHIEF ADMIN OFCR OF THE HOUSE,2013Q4,PERSONNEL COMPENSATION,"","ATCHISON, DARRYL A",10/01/13,12/31/13,DEPUTY CHIEF ENGINEER,"30,960.24",FISCAL YEAR 2014,"","","","ATCHISON, DARRYL A"
,CHIEF ADMIN OFCR OF THE HOUSE,2013Q4,PERSONNEL COMPENSATION,"","AWAN, OMAR",10/01/13,12/31/13,SR BUSINESS PROCESS APPL SPEC,"35,160.75",FISCAL YEAR 2014,"","","","AWAN, OMAR"
,CHIEF ADMIN OFCR OF THE HOUSE,2013Q4,PERSONNEL COMPENSATION,"","BAER, PETER L",10/01/13,12/31/13,BUSINESS PROC APPLIC SPEC,"32,010.99",FISCAL YEAR 2014,"","","","BAER, PETER L"
,CHIEF ADMIN OFCR OF THE HOUSE,2013Q4,PERSONNEL COMPENSATION,"","BAHAM,TODD",10/01/13,12/31/13,BROADCAST PRODUCTION TECHNICIA,"18,719.25",FISCAL YEAR 2014,"","","","BAHAM,TODD"
,CHIEF ADMIN OFCR OF THE HOUSE,2013Q4,PERSONNEL COMPENSATION,"","BAHAM,TODD",10/01/13,11/30/13,BROADCAST PRODUCTION TECHNICIA (OVERTIME),"1,970.90",FISCAL YEAR 2014,"","","","BAHAM,TODD"
,CHIEF ADMIN OFCR OF THE HOUSE,2013Q4,PERSONNEL COMPENSATION,"","BAILEY, DAVID E",10/01/13,12/31/13,SR TECHNICAL SUPPORT REP (A),"23,888.25",FISCAL YEAR 2014,"","","","BAILEY, DAVID E"
,CHIEF ADMIN OFCR OF THE HOUSE,2013Q4,PERSONNEL COMPENSATION,"","BAKER, DARRELL F",10/01/13,12/31/13,SENIOR NETWORK TECHNICIAN,"24,595.50",FISCAL YEAR 2014,"","","","BAKER, DARRELL F"
,CHIEF ADMIN OFCR OF THE HOUSE,2013Q4,PERSONNEL COMPENSATION,"","BANFIELD,KELLI C",10/01/13,12/31/13,BROADCAST ENGINEER/PROD SPEC,"21,214.74",FISCAL YEAR 2014,"","","","BANFIELD,KELLI C"
,CHIEF ADMIN OFCR OF THE HOUSE,2013Q4,PERSONNEL COMPENSATION,"","BANKS,BIANCA N",10/01/13,12/31/13,RETAIL INVENTORY SPECIALIST,"16,569.24",FISCAL YEAR 2014,"","","","BANKS,BIANCA N"
,CHIEF ADMIN OFCR OF THE HOUSE,2013Q4,PERSONNEL COMPENSATION,"","BARBEE, GLENN",10/01/13,12/31/13,NETWORK TECHNICIAN,"21,811.00",FISCAL YEAR 2014,"","","","BARBEE, GLENN"
,CHIEF ADMIN OFCR OF THE HOUSE,2013Q4,PERSONNEL COMPENSATION,"","BARBEE,DONELL G",10/01/13,12/31/13,RETAIL INVENTORY SPECIALIST,"10,095.75",FISCAL YEAR 2014,"","","","BARBEE,DONELL G"
,CHIEF ADMIN OFCR OF THE HOUSE,2013Q4,PERSONNEL COMPENSATION,"","BARBOUR, JUNE M",10/01/13,12/31/13,BROADCAST PRODUCTION TECHNICIA,"18,719.25",FISCAL YEAR 2014,"","","","BARBOUR, JUNE M"
,CHIEF ADMIN OFCR OF THE HOUSE,2013Q4,PERSONNEL COMPENSATION,"","BARBOUR, JUNE M",10/01/13,11/30/13,BROADCAST PRODUCTION TECHNICIA (OVERTIME),989.96,FISCAL YEAR 2014,"","","","BARBOUR, JUNE M"
,CHIEF ADMIN OFCR OF THE HOUSE,2013Q4,PERSONNEL COMPENSATION,"","BARCINIAK, DANA L",10/01/13,12/31/13,SENIOR PHOTOGRAPHER,"21,069.99",FISCAL YEAR 2014,"","","","BARCINIAK, DANA L"
,CHIEF ADMIN OFCR OF THE HOUSE,2013Q4,PERSONNEL COMPENSATION,"","BAREFOOT,JEFFREY",10/01/13,12/31/13,PRODUCTION/ENGINEER SPEC (TEMP,"11,958.84",FISCAL YEAR 2014,"","","","BAREFOOT,JEFFREY"
,CHIEF ADMIN OFCR OF THE HOUSE,2013Q4,PERSONNEL COMPENSATION,"","BARNABAE, MONICA M",10/01/13,12/31/13,DIRECTOR-HOUSE CHILD CARE CNTR,"26,928.51",FISCAL YEAR 2014,"","","","BARNABAE, MONICA M"
,CHIEF ADMIN OFCR OF THE HOUSE,2013Q4,PERSONNEL COMPENSATION,"","BARRETT, ROBERT R",10/01/13,12/31/13,"MANAGER, SUPPORT SYSTEMS","34,547.25",FISCAL YEAR 2014,"","","","BARRETT, ROBERT R"
,CHIEF ADMIN OFCR OF THE HOUSE,2013Q4,PERSONNEL COMPENSATION,"","BASILIO, TYRONE A",10/01/13,12/31/13,TECHNICAL SUPPORT REP,"19,502.49",FISCAL YEAR 2014,"","","","BASILIO, TYRONE A"
,CHIEF ADMIN OFCR OF THE HOUSE,2013Q4,PERSONNEL COMPENSATION,"","BATES, DEBORAH A",10/01/13,12/31/13,PRODUCTION/ENGINEER SPEC (TEMP,"12,662.30",FISCAL YEAR 2014,"","","","BATES, DEBORAH A"
,CHIEF ADMIN OFCR OF THE HOUSE,2013Q4,PERSONNEL COMPENSATION,"","BATH,GEORGE J",10/01/13,12/31/13,SENIOR ADVISOR,"42,102.75",FISCAL YEAR 2014,"","","","BATH,GEORGE J"
,CHIEF ADMIN OFCR OF THE HOUSE,2013Q4,PERSONNEL COMPENSATION,"","BAULEY, PATRICK J",10/01/13,11/30/13,TECHNICAL DIRECTOR (A),"9,976.06",FISCAL YEAR 2014,"","","","BAULEY, PATRICK J"
,CHIEF ADMIN OFCR OF THE HOUSE,2013Q4,PERSONNEL COMPENSATION,"","BAULEY, PATRICK J",10/01/13,10/31/13,TECHNICAL DIRECTOR (A) (OVERTIME),"1,183.56",FISCAL YEAR 2014,"","","","BAULEY, PATRICK J"
,CHIEF ADMIN OFCR OF THE HOUSE,2013Q4,PERSONNEL COMPENSATION,"","BAULEY, PATRICK J",11/01/13,11/30/13,TECHNICAL DIRECTOR (A) (OTHER COMPENSATION),"9,654.25",FISCAL YEAR 2014,"","","","BAULEY, PATRICK J"
,CHIEF ADMIN OFCR OF THE HOUSE,2013Q4,PERSONNEL COMPENSATION,"","BEAUBIAN, TRACI R",10/01/13,12/31/13,CHIEF FINANCIAL OFFICER,"42,102.75",FISCAL YEAR 2014,"","","","BEAUBIAN, TRACI R"
,CHIEF ADMIN OFCR OF THE HOUSE,2013Q4,PERSONNEL COMPENSATION,"","BEIDEL, BERNARD E",10/01/13,12/31/13,"DIR, OFFICE OF EMPLOYEE ASSIST","42,102.75",FISCAL YEAR 2014,"","","","BEIDEL, BERNARD E"
,CHIEF ADMIN OFCR OF THE HOUSE,2013Q4,PERSONNEL COMPENSATION,"","BELL,FRANK E",10/01/13,12/31/13,SENIOR TECHNICAL ADVISOR,"32,508.33",FISCAL YEAR 2014,"","","","BELL,FRANK E"
,CHIEF ADMIN OFCR OF THE HOUSE,2013Q4,PERSONNEL COMPENSATION,"","BENAVIDEZ, OSCAR",10/01/13,12/31/13,LOGISTICS & DIST SPEC (A),"12,325.26",FISCAL YEAR 2014,"","","","BENAVIDEZ, OSCAR"
,CHIEF ADMIN OFCR OF THE HOUSE,2013Q4,PERSONNEL COMPENSATION,"","BENN, PHILLIP F",10/01/13,12/31/13,ELECTRONICS TECHNICIAN (A),"22,551.00",FISCAL YEAR 2014,"","","","BENN, PHILLIP F"
,CHIEF ADMIN OFCR OF THE HOUSE,2013Q4,PERSONNEL COMPENSATION,"","BERGER, DONALD W",10/01/13,12/31/13,BROADCAST PRODUCTION TECHNICIA,"20,771.49",FISCAL YEAR 2014,"","","","BERGER, DONALD W"
,CHIEF ADMIN OFCR OF THE HOUSE,2013Q4,PERSONNEL COMPENSATION,"","BERGER, DONALD W",10/01/13,10/31/13,BROADCAST PRODUCTION TECHNICIA (OVERTIME),279.61,FISCAL YEAR 2014,"","","","BERGER, DONALD W"
,CHIEF ADMIN OFCR OF THE HOUSE,2013Q4,PERSONNEL COMPENSATION,"","BERRY,JOSEPH B",10/01/13,12/31/13,SYSTEMS ENGINEER,"21,663.00",FISCAL YEAR 2014,"","","","BERRY,JOSEPH B"
,CHIEF ADMIN OFCR OF THE HOUSE,2013Q4,PERSONNEL COMPENSATION,"","BEST, CHARLENE",10/01/13,12/31/13,MANAGER,"23,256.00",FISCAL YEAR 2014,"","","","BEST, CHARLENE"
,CHIEF ADMIN OFCR OF THE HOUSE,2013Q4,PERSONNEL COMPENSATION,"","BETHEA,LASHON L",10/01/13,12/31/13,TECHNICAL TRAINER,"25,044.51",FISCAL YEAR 2014,"","","","BETHEA,LASHON L"
,CHIEF ADMIN OFCR OF THE HOUSE,2013Q4,PERSONNEL COMPENSATION,"","BILLARD, MICHAEL A",10/01/13,12/31/13,COMMUNICATIONS SPEC,"25,044.51",FISCAL YEAR 2014,"","","","BILLARD, MICHAEL A"
,CHIEF ADMIN OFCR OF THE HOUSE,2013Q4,PERSONNEL COMPENSATION,"","BILLUPS, BRIAN E",10/01/13,12/31/13,NETWORK TECHNICIAN (A),"19,110.75",FISCAL YEAR 2014,"","","","BILLUPS, BRIAN E"
,CHIEF ADMIN OFCR OF THE HOUSE,2013Q4,PERSONNEL COMPENSATION,"","BLAKNEY, HAROLD",10/01/13,12/31/13,SENIOR SYSTEMS ENGINEER,"37,001.25",FISCAL YEAR 2014,"","","","BLAKNEY, HAROLD"
,CHIEF ADMIN OFCR OF THE HOUSE,2013Q4,PERSONNEL COMPENSATION,"","BOGAN, DAVID S",10/01/13,12/31/13,"SUPERVISOR, RETAIL INVENTORY","19,371.91",FISCAL YEAR 2014,"","","","BOGAN, DAVID S"
,CHIEF ADMIN OFCR OF THE HOUSE,2013Q4,PERSONNEL COMPENSATION,"","BOGER, KELLY M",10/01/13,12/31/13,ACCOUNT MANAGEMENT COUNSELOR,"19,502.49",FISCAL YEAR 2014,"","","","BOGER, KELLY M"
,CHIEF ADMIN OFCR OF THE HOUSE,2013Q4,PERSONNEL COMPENSATION,"","BOGER, KELLY M",11/01/13,11/30/13,ACCOUNT MANAGEMENT COUNSELOR (OVERTIME),"1,125.13",FISCAL YEAR 2014,"","","","BOGER, KELLY M"
,CHIEF ADMIN OFCR OF THE HOUSE,2013Q4,PERSONNEL COMPENSATION,"","BOOKER, CARLOS",10/01/13,12/31/13,SALES SPECIALIST,"10,095.75",FISCAL YEAR 2014,"","","","BOOKER, CARLOS"
,CHIEF ADMIN OFCR OF THE HOUSE,2013Q4,PERSONNEL COMPENSATION,"","BOONE, RUSSELL",10/01/13,12/31/13,TECHNICAL SUPPORT REP,"21,854.01",FISCAL YEAR 2014,"","","","BOONE, RUSSELL"
,CHIEF ADMIN OFCR OF THE HOUSE,2013Q4,PERSONNEL COMPENSATION,"","BOWERS,KAREN L",10/01/13,12/31/13,FINANCIAL COUNSELOR,"18,980.25",FISCAL YEAR 2014,"","","","BOWERS,KAREN L"
,CHIEF ADMIN OFCR OF THE HOUSE,2013Q4,PERSONNEL COMPENSATION,"","BOWLDING, SONIA R",10/01/13,12/31/13,REC/WAREHOUSE SPEC (A),"10,980.00",FISCAL YEAR 2014,"","","","BOWLDING, SONIA R"
,CHIEF ADMIN OFCR OF THE HOUSE,2013Q4,PERSONNEL COMPENSATION,"","BOWLES, JAMES A",10/01/13,12/31/13,JOURNEYMAN FURNITURE SPEC,"18,903.24",FISCAL YEAR 2014,"","","","BOWLES, JAMES A"
,CHIEF ADMIN OFCR OF THE HOUSE,2013Q4,PERSONNEL COMPENSATION,"","BOWLING-STOKES,CHAUNETTE L",10/01/13,12/31/13,SUPERVISOR,"23,256.00",FISCAL YEAR 2014,"","","","BOWLING-STOKES,CHAUNETTE L"
,CHIEF ADMIN OFCR OF THE HOUSE,2013Q4,PERSONNEL COMPENSATION,"","BOWMAN,SHELIA",10/01/13,12/31/13,FINANCIAL COUNSELOR,"16,179.24",FISCAL YEAR 2014,"","","","BOWMAN,SHELIA"
,CHIEF ADMIN OFCR OF THE HOUSE,2013Q4,PERSONNEL COMPENSATION,"","BOYD, KRISTIE N",10/01/13,11/27/13,PHOTOGRAPHER/LAB TECH (TEMP),"10,451.42",FISCAL YEAR 2014,"","","","BOYD, KRISTIE N"
,CHIEF ADMIN OFCR OF THE HOUSE,2013Q4,PERSONNEL COMPENSATION,"","BOYD, PETRINA",10/01/13,12/31/13,SALES SPECIALIST,"11,439.75",FISCAL YEAR 2014,"","","","BOYD, PETRINA"
,CHIEF ADMIN OFCR OF THE HOUSE,2013Q4,PERSONNEL COMPENSATION,"","BOYLE, KEVIN J",10/01/13,12/31/13,SR BUSINESS PROCESS APPL SPEC,"37,613.25",FISCAL YEAR 2014,"","","","BOYLE, KEVIN J"
,CHIEF ADMIN OFCR OF THE HOUSE,2013Q4,PERSONNEL COMPENSATION,"","BRACKENS, ROBERT",10/01/13,12/31/13,BROADCAST PRODUCTION TECHNICIA,"21,214.74",FISCAL YEAR 2014,"","","","BRACKENS, ROBERT"
,CHIEF ADMIN OFCR OF THE HOUSE,2013Q4,PERSONNEL COMPENSATION,"","BRACKENS, ROBERT",10/01/13,11/30/13,BROADCAST PRODUCTION TECHNICIA (OVERTIME),265.18,FISCAL YEAR 2014,"","","","BRACKENS, ROBERT"
,CHIEF ADMIN OFCR OF THE HOUSE,2013Q4,PERSONNEL COMPENSATION,"","BRANCH,PAMELA J",10/01/13,12/31/13,"MANAGER, PAYROLL & BENEFITS","28,454.01",FISCAL YEAR 2014,"","","","BRANCH,PAMELA J"
,CHIEF ADMIN OFCR OF THE HOUSE,2013Q4,PERSONNEL COMPENSATION,"","BRAXTON, BRANDON A",10/01/13,12/31/13,LOGISTICS & DIST SPEC (A),"10,980.00",FISCAL YEAR 2014,"","","","BRAXTON, BRANDON A"
,CHIEF ADMIN OFCR OF THE HOUSE,2013Q4,PERSONNEL COMPENSATION,"","BREWSTER III,JAMES E",10/01/13,12/31/13,LOGISTICS & DIST SPEC (A),"9,255.24",FISCAL YEAR 2014,"","","","BREWSTER III,JAMES E"
,CHIEF ADMIN OFCR OF THE HOUSE,2013Q4,PERSONNEL COMPENSATION,"","BREWSTER,CHRISTOPHER A",10/01/13,12/31/13,ADMINISTRATIVE COUNSEL,"42,102.75",FISCAL YEAR 2014,"","","","BREWSTER,CHRISTOPHER A"
,CHIEF ADMIN OFCR OF THE HOUSE,2013Q4,PERSONNEL COMPENSATION,"","BRIDGEFORTH, TOINETTA A",10/01/13,12/31/13,CONTRACTS SPECIALIST,"22,107.00",FISCAL YEAR 2014,"","","","BRIDGEFORTH, TOINETTA A"
,CHIEF ADMIN OFCR OF THE HOUSE,2013Q4,PERSONNEL COMPENSATION,"","BRISCOE, KEVIN",10/01/13,12/31/13,LOGISTICS & DIST SPEC (A),"10,980.00",FISCAL YEAR 2014,"","","","BRISCOE, KEVIN"
,CHIEF ADMIN OFCR OF THE HOUSE,2013Q4,PERSONNEL COMPENSATION,"","BRITT,SHANNON W",10/01/13,12/31/13,SR HUMAN RESOURCES GENERALIST,"17,937.75",FISCAL YEAR 2014,"","","","BRITT,SHANNON W"
,CHIEF ADMIN OFCR OF THE HOUSE,2013Q4,PERSONNEL COMPENSATION,"","BROBBEY-MENSAH, KWAME",10/01/13,12/31/13,SR INFO SYST. SECURITY ANALYST,"28,454.01",FISCAL YEAR 2014,"","","","BROBBEY-MENSAH, KWAME"
,CHIEF ADMIN OFCR OF THE HOUSE,2013Q4,PERSONNEL COMPENSATION,"","BROWN SR, DEMETRICE T",10/01/13,12/31/13,SUPERVISOR,"26,082.74",FISCAL YEAR 2014,"","","","BROWN SR, DEMETRICE T"
,CHIEF ADMIN OFCR OF THE HOUSE,2013Q4,PERSONNEL COMPENSATION,"","BROWN, ANNETTE G",10/01/13,12/31/13,SR SOFTWARE ENGINEER,"26,384.49",FISCAL YEAR 2014,"","","","BROWN, ANNETTE G"
,CHIEF ADMIN OFCR OF THE HOUSE,2013Q4,PERSONNEL COMPENSATION,"","BROWN, KEITH S",10/01/13,12/31/13,REC/WAREHOUSE SPEC (A),"13,798.50",FISCAL YEAR 2014,"","","","BROWN, KEITH S"
,CHIEF ADMIN OFCR OF THE HOUSE,2013Q4,PERSONNEL COMPENSATION,"","BROWN, PAMELA L",10/01/13,12/31/13,CUSTOMER SOLUTIONS REP,"18,123.51",FISCAL YEAR 2014,"","","","BROWN, PAMELA L"
,CHIEF ADMIN OFCR OF THE HOUSE,2013Q4,PERSONNEL COMPENSATION,"","BROWN,DAVID D",10/01/13,12/31/13,FINANCIAL COUNSELOR,"15,789.00",FISCAL YEAR 2014,"","","","BROWN,DAVID D"
,CHIEF ADMIN OFCR OF THE HOUSE,2013Q4,PERSONNEL COMPENSATION,"","BROWN,DAVID D",10/01/13,10/31/13,FINANCIAL COUNSELOR (OVERTIME),136.63,FISCAL YEAR 2014,"","","","BROWN,DAVID D"
,CHIEF ADMIN OFCR OF THE HOUSE,2013Q4,PERSONNEL COMPENSATION,"","BROWN,JASON",10/01/13,12/31/13,BROADCAST PRODUCTION TECHNICIA,"18,719.25",FISCAL YEAR 2014,"","","","BROWN,JASON"
,CHIEF ADMIN OFCR OF THE HOUSE,2013Q4,PERSONNEL COMPENSATION,"","BROWN,JASON",10/01/13,10/31/13,BROADCAST PRODUCTION TECHNICIA (OVERTIME),440.98,FISCAL YEAR 2014,"","","","BROWN,JASON"
,CHIEF ADMIN OFCR OF THE HOUSE,2013Q4,PERSONNEL COMPENSATION,"","BROWN,KIMBERLY K",10/01/13,12/31/13,RESOURCE ANALYST,"16,569.24",FISCAL YEAR 2014,"","","","BROWN,KIMBERLY K"
,CHIEF ADMIN OFCR OF THE HOUSE,2013Q4,PERSONNEL COMPENSATION,"","BROWN,LAWRENCE",10/01/13,12/31/13,BROADCAST ENGINEER/PROD SPEC,"21,663.00",FISCAL YEAR 2014,"","","","BROWN,LAWRENCE"
,CHIEF ADMIN OFCR OF THE HOUSE,2013Q4,PERSONNEL COMPENSATION,"","BROWN,LAWRENCE",11/01/13,11/30/13,BROADCAST ENGINEER/PROD SPEC. (OVERTIME),281.20,FISCAL YEAR 2014,"","","","BROWN,LAWRENCE"
,CHIEF ADMIN OFCR OF THE HOUSE,2013Q4,PERSONNEL COMPENSATION,"","BRUMMELL,JENELLE L",10/01/13,12/31/13,PARALEGAL,"17,544.51",FISCAL YEAR 2014,"","","","BRUMMELL,JENELLE L"
,CHIEF ADMIN OFCR OF THE HOUSE,2013Q4,PERSONNEL COMPENSATION,"","BUCKLER, RICKY L",10/01/13,12/31/13,PURCHASING AGENT,"18,719.25",FISCAL YEAR 2014,"","","","BUCKLER, RICKY L"
,CHIEF ADMIN OFCR OF THE HOUSE,2013Q4,PERSONNEL COMPENSATION,"","BUCKLER, RICKY L",10/01/13,10/30/13,PURCHASING AGENT (OVERTIME),125.99,FISCAL YEAR 2014,"","","","BUCKLER, RICKY L"
,CHIEF ADMIN OFCR OF THE HOUSE,2013Q4,PERSONNEL COMPENSATION,"","BUCKLER, TROY D",10/01/13,12/31/13,PURCHASING AGENT,"16,167.00",FISCAL YEAR 2014,"","","","BUCKLER, TROY D"
,CHIEF ADMIN OFCR OF THE HOUSE,2013Q4,PERSONNEL COMPENSATION,"","BUCKLER, TROY D",10/01/13,10/30/13,PURCHASING AGENT (OVERTIME),108.82,FISCAL YEAR 2014,"","","","BUCKLER, TROY D"
,CHIEF ADMIN OFCR OF THE HOUSE,2013Q4,PERSONNEL COMPENSATION,"","BUFORD, MARCIA L",10/01/13,12/31/13,COMPUTER FAC OP SUPERVISOR,"26,384.49",FISCAL YEAR 2014,"","","","BUFORD, MARCIA L"
,CHIEF ADMIN OFCR OF THE HOUSE,2013Q4,PERSONNEL COMPENSATION,"","BURCH, KENNETH J",10/01/13,12/31/13,BUSINESS PROC APPLIC SPEC,"29,470.74",FISCAL YEAR 2014,"","","","BURCH, KENNETH J"
,CHIEF ADMIN OFCR OF THE HOUSE,2013Q4,PERSONNEL COMPENSATION,"","BUTLER, CLARENCE G",10/01/13,12/31/13,JOURNEYMAN FURNITURE SPEC,"15,491.01",FISCAL YEAR 2014,"","","","BUTLER, CLARENCE G"
,CHIEF ADMIN OFCR OF THE HOUSE,2013Q4,PERSONNEL COMPENSATION,"","BUTLER, JAMES F",10/01/13,12/31/13,PAYROLL & BENEFITS MANAGER,"25,491.51",FISCAL YEAR 2014,"","","","BUTLER, JAMES F"
,CHIEF ADMIN OFCR OF THE HOUSE,2013Q4,PERSONNEL COMPENSATION,"","CAIN, MOLLY J",10/01/13,12/31/13,5TH ASST SUPERINTENDENT,"15,155.76",FISCAL YEAR 2014,"","","","CAIN, MOLLY J"
,CHIEF ADMIN OFCR OF THE HOUSE,2013Q4,PERSONNEL COMPENSATION,"","CALLAWAY, ROBERT M",10/01/13,12/31/13,SR BROADCAST ENG./PROD SPEC,"23,704.50",FISCAL YEAR 2014,"","","","CALLAWAY, ROBERT M"
,CHIEF ADMIN OFCR OF THE HOUSE,2013Q4,PERSONNEL COMPENSATION,"","CANNON, DREW",10/01/13,12/31/13,4TH ASST SUPERINTENDENT,"17,735.76",FISCAL YEAR 2014,"","","","CANNON, DREW"
,CHIEF ADMIN OFCR OF THE HOUSE,2013Q4,PERSONNEL COMPENSATION,"","CANNON,SUSANNAH",10/01/13,12/31/13,CUSTOMER SOLUTIONS REP,"13,798.50",FISCAL YEAR 2014,"","","","CANNON,SUSANNAH"
,CHIEF ADMIN OFCR OF THE HOUSE,2013Q4,PERSONNEL COMPENSATION,"","CARCAMO, ALICIA L",10/01/13,12/31/13,ACCOUNTING TECHNICIAN,"18,903.24",FISCAL YEAR 2014,"","","","CARCAMO, ALICIA L"
,CHIEF ADMIN OFCR OF THE HOUSE,2013Q4,PERSONNEL COMPENSATION,"","CARLSON,STACY",10/01/13,11/30/13,DEPUTY CAO,"14,698.83",FISCAL YEAR 2014,"","","","CARLSON,STACY"
,CHIEF ADMIN OFCR OF THE HOUSE,2013Q4,PERSONNEL COMPENSATION,"","CARLSON,STACY",11/01/13,11/30/13,DEPUTY CAO (OTHER COMPENSATION),"4,326.67",FISCAL YEAR 2014,"","","","CARLSON,STACY"
,CHIEF ADMIN OFCR OF THE HOUSE,2013Q4,PERSONNEL COMPENSATION,"","CARNNIA,CASEY",10/01/13,12/31/13,INTERNET SYSTEMS SPECIALIST,"19,110.75",FISCAL YEAR 2014,"","","","CARNNIA,CASEY"
,CHIEF ADMIN OFCR OF THE HOUSE,2013Q4,PERSONNEL COMPENSATION,"","CARR, JOSH D",10/01/13,12/31/13,SENIOR SYSTEMS ENGINEER,"24,745.17",FISCAL YEAR 2014,"","","","CARR, JOSH D"
,CHIEF ADMIN OFCR OF THE HOUSE,2013Q4,PERSONNEL COMPENSATION,"","CARRICO, RONALD",10/01/13,12/31/13,SR BUSINESS PROCESS APPL SPEC,"36,389.01",FISCAL YEAR 2014,"","","","CARRICO, RONALD"
,CHIEF ADMIN OFCR OF THE HOUSE,2013Q4,PERSONNEL COMPENSATION,"","CARSON,LAWRENCE T",10/01/13,12/31/13,SALES SPECIALIST,"9,899.25",FISCAL YEAR 2014,"","","","CARSON,LAWRENCE T"
,CHIEF ADMIN OFCR OF THE HOUSE,2013Q4,PERSONNEL COMPENSATION,"","CARTER JR, JOHN L",10/01/13,12/31/13,"MANAGER, FINISHING","24,777.24",FISCAL YEAR 2014,"","","","CARTER JR, JOHN L"
,CHIEF ADMIN OFCR OF THE HOUSE,2013Q4,PERSONNEL COMPENSATION,"","CARTER,DELISA D",10/01/13,12/31/13,SR. SOFTWARE SPECIALIST,"34,547.25",FISCAL YEAR 2014,"","","","CARTER,DELISA D"
,CHIEF ADMIN OFCR OF THE HOUSE,2013Q4,PERSONNEL COMPENSATION,"","CAULK, ANDREW T",10/01/13,12/31/13,SUPERVISOR,"24,150.51",FISCAL YEAR 2014,"","","","CAULK, ANDREW T"
,CHIEF ADMIN OFCR OF THE HOUSE,2013Q4,PERSONNEL COMPENSATION,"","CHABOT, ELLIOT C",10/01/13,12/31/13,SR SYSTEMS ANALYST,"32,010.99",FISCAL YEAR 2014,"","","","CHABOT, ELLIOT C"
,CHIEF ADMIN OFCR OF THE HOUSE,2013Q4,PERSONNEL COMPENSATION,"","CHAMBERS, KEVIN N",10/01/13,12/31/13,SR CUSTOMER SOLUTIONS REP,"19,894.74",FISCAL YEAR 2014,"","","","CHAMBERS, KEVIN N"
,CHIEF ADMIN OFCR OF THE HOUSE,2013Q4,PERSONNEL COMPENSATION,"","CHAMBERS,KEVINA D",10/01/13,12/31/13,ACCOUNTING TECHNICIAN,"12,115.50",FISCAL YEAR 2014,"","","","CHAMBERS,KEVINA D"
,CHIEF ADMIN OFCR OF THE HOUSE,2013Q4,PERSONNEL COMPENSATION,"","CHANG, SU-HWA",10/01/13,12/31/13,SENIOR SYSTEMS ENGINEER,"29,978.76",FISCAL YEAR 2014,"","","","CHANG, SU-HWA"
,CHIEF ADMIN OFCR OF THE HOUSE,2013Q4,PERSONNEL COMPENSATION,"","CHEN, SUSAN",10/01/13,12/31/13,FINANCIAL COUNSELOR,"15,789.00",FISCAL YEAR 2014,"","","","CHEN, SUSAN"
,CHIEF ADMIN OFCR OF THE HOUSE,2013Q4,PERSONNEL COMPENSATION,"","CHEN, SUSAN",10/01/13,10/31/13,FINANCIAL COUNSELOR (OVERTIME),364.36,FISCAL YEAR 2014,"","","","CHEN, SUSAN"
,CHIEF ADMIN OFCR OF THE HOUSE,2013Q4,PERSONNEL COMPENSATION,"","CICALE, MICHAEL P",10/01/13,12/31/13,SR CUSTOMER SOLUTIONS REP,"18,903.24",FISCAL YEAR 2014,"","","","CICALE, MICHAEL P"
,CHIEF ADMIN OFCR OF THE HOUSE,2013Q4,PERSONNEL COMPENSATION,"","CLAGGETT, TIMOTHY A",10/01/13,12/31/13,JOURNEYMAN TEXTILE SPEC,"18,903.24",FISCAL YEAR 2014,"","","","CLAGGETT, TIMOTHY A"
,CHIEF ADMIN OFCR OF THE HOUSE,2013Q4,PERSONNEL COMPENSATION,"","CLARK, MARION",10/01/13,12/31/13,SR TELECOMMUNICATIONS ADMIN,"17,735.76",FISCAL YEAR 2014,"","","","CLARK, MARION"
,CHIEF ADMIN OFCR OF THE HOUSE,2013Q4,PERSONNEL COMPENSATION,"","CLARKE, JOHN P",10/01/13,12/31/13,SUPERVISOR,"21,663.00",FISCAL YEAR 2014,"","","","CLARKE, JOHN P"
,CHIEF ADMIN OFCR OF THE HOUSE,2013Q4,PERSONNEL COMPENSATION,"","CLARKE, JOHN P",11/01/13,11/30/13,SUPERVISOR (OTHER COMPENSATION),500.00,FISCAL YEAR 2014,"","","","CLARKE, JOHN P"
,CHIEF ADMIN OFCR OF THE HOUSE,2013Q4,PERSONNEL COMPENSATION,"","COAKLEY,KRISTEN J",10/01/13,12/31/13,SR TELECOMMUNICATIONS ADMIN,"16,569.24",FISCAL YEAR 2014,"","","","COAKLEY,KRISTEN J"
,CHIEF ADMIN OFCR OF THE HOUSE,2013Q4,PERSONNEL COMPENSATION,"","COBB, FAYE C",10/01/13,12/31/13,"DIR, BUDGET, POLICY & PLANNING","37,384.26",FISCAL YEAR 2014,"","","","COBB, FAYE C"
,CHIEF ADMIN OFCR OF THE HOUSE,2013Q4,PERSONNEL COMPENSATION,"","COLBERT, RAY C",10/01/13,12/31/13,SR BROADCAST ENG/PROD SPECLST,"23,107.00",FISCAL YEAR 2014,"","","","COLBERT, RAY C"
,CHIEF ADMIN OFCR OF THE HOUSE,2013Q4,PERSONNEL COMPENSATION,"","COLBERT, RAY C",10/01/13,10/31/13,SR BROADCAST ENG/PROD SPECLST (OVERTIME),723.74,FISCAL YEAR 2014,"","","","COLBERT, RAY C"
,CHIEF ADMIN OFCR OF THE HOUSE,2013Q4,PERSONNEL COMPENSATION,"","COLLINS, JOHN B",10/01/13,12/31/13,BROADCAST PRODUCTION TECHNICIA,"22,998.51",FISCAL YEAR 2014,"","","","COLLINS, JOHN B"
,CHIEF ADMIN OFCR OF THE HOUSE,2013Q4,PERSONNEL COMPENSATION,"","COLLINS, JOHN B",10/01/13,11/30/13,BROADCAST PRODUCTION TECHNICIA (OVERTIME),"1,172.03",FISCAL YEAR 2014,"","","","COLLINS, JOHN B"
,CHIEF ADMIN OFCR OF THE HOUSE,2013Q4,PERSONNEL COMPENSATION,"","COLLINS,JOEL",10/01/13,12/31/13,SR INTERNET SYSTEMS SPECIALIST,"29,483.99",FISCAL YEAR 2014,"","","","COLLINS,JOEL"
,CHIEF ADMIN OFCR OF THE HOUSE,2013Q4,PERSONNEL COMPENSATION,"","CONNOLLY,ERIC",10/01/13,12/31/13,PHOTOGRAPHER,"14,594.25",FISCAL YEAR 2014,"","","","CONNOLLY,ERIC"
,CHIEF ADMIN OFCR OF THE HOUSE,2013Q4,PERSONNEL COMPENSATION,"","COOK, ERIC H",10/01/13,12/31/13,NETWORK TECHNICIAN,"19,894.74",FISCAL YEAR 2014,"","","","COOK, ERIC H"
,CHIEF ADMIN OFCR OF THE HOUSE,2013Q4,PERSONNEL COMPENSATION,"","COOPER, RICHARD S",10/01/13,12/31/13,STAFF ACCOUNTANT (A),"25,044.51",FISCAL YEAR 2014,"","","","COOPER, RICHARD S"
,CHIEF ADMIN OFCR OF THE HOUSE,2013Q4,PERSONNEL COMPENSATION,"","CORNEJO, LUIS E",10/01/13,12/31/13,SENIOR SYSTEMS ENGINEER,"25,491.51",FISCAL YEAR 2014,"","","","CORNEJO, LUIS E"
,CHIEF ADMIN OFCR OF THE HOUSE,2013Q4,PERSONNEL COMPENSATION,"","COX, BRIDGET A",10/01/13,12/31/13,SENIOR SYSTEMS ANALYST,"29,470.74",FISCAL YEAR 2014,"","","","COX, BRIDGET A"
,CHIEF ADMIN OFCR OF THE HOUSE,2013Q4,PERSONNEL COMPENSATION,"","COYNE III, THOMAS E",10/01/13,12/31/13,ASSISTANT CAO,"42,102.75",FISCAL YEAR 2014,"","","","COYNE III, THOMAS E"
,CHIEF ADMIN OFCR OF THE HOUSE,2013Q4,PERSONNEL COMPENSATION,"","CRUDUP III, WILLIAM D",10/01/13,12/31/13,LOGISTICS & DIST SPEC (A),"12,325.26",FISCAL YEAR 2014,"","","","CRUDUP III, WILLIAM D"
,CHIEF ADMIN OFCR OF THE HOUSE,2013Q4,PERSONNEL COMPENSATION,"","CUFF,LOREN D",10/01/13,12/31/13,INTERNET SYSTEMS SPECIALIST,"19,502.49",FISCAL YEAR 2014,"","","","CUFF,LOREN D"
,CHIEF ADMIN OFCR OF THE HOUSE,2013Q4,PERSONNEL COMPENSATION,"","CUFFEY, LAWRENCE",10/01/13,12/31/13,SR RECVNG AND WAREHOUSING SPEC,"17,848.50",FISCAL YEAR 2014,"","","","CUFFEY, LAWRENCE"
,CHIEF ADMIN OFCR OF THE HOUSE,2013Q4,PERSONNEL COMPENSATION,"","CUPRILL, CARLOS",10/01/13,12/31/13,SR TECHNICAL SUPPORT REP,"22,551.00",FISCAL YEAR 2014,"","","","CUPRILL, CARLOS"
,CHIEF ADMIN OFCR OF THE HOUSE,2013Q4,PERSONNEL COMPENSATION,"","CUTLER JR, BENJAMIN S",10/01/13,12/31/13,PAYROLL & BENEFITS ASSISTANT,"15,491.01",FISCAL YEAR 2014,"","","","CUTLER JR, BENJAMIN S"
,CHIEF ADMIN OFCR OF THE HOUSE,2013Q4,PERSONNEL COMPENSATION,"","CUTLER JR, BENJAMIN S",10/01/13,10/31/13,PAYROLL & BENEFITS ASSISTANT (OVERTIME),201.08,FISCAL YEAR 2014,"","","","CUTLER JR, BENJAMIN S"
,CHIEF ADMIN OFCR OF THE HOUSE,2013Q4,PERSONNEL COMPENSATION,"","DAHL,RYAN S",10/01/13,12/31/13,MEDIA LOGISTICS COORDINATOR,"14,931.42",FISCAL YEAR 2014,"","","","DAHL,RYAN S"
,CHIEF ADMIN OFCR OF THE HOUSE,2013Q4,PERSONNEL COMPENSATION,"","DAHLSTROM, DARREN",10/01/13,12/31/13,JOURNEYMAN FURNITURE SPEC,"19,680.51",FISCAL YEAR 2014,"","","","DAHLSTROM, DARREN"
,CHIEF ADMIN OFCR OF THE HOUSE,2013Q4,PERSONNEL COMPENSATION,"","DAS, SATYENDRA K",10/01/13,12/31/13,BUSINESS PROC APPLIC SPEC,"29,978.76",FISCAL YEAR 2014,"","","","DAS, SATYENDRA K"
,CHIEF ADMIN OFCR OF THE HOUSE,2013Q4,PERSONNEL COMPENSATION,"","DAVENPORT,KAREN V",10/01/13,12/31/13,FINANCIAL ANALYST,"21,663.00",FISCAL YEAR 2014,"","","","DAVENPORT,KAREN V"
,CHIEF ADMIN OFCR OF THE HOUSE,2013Q4,PERSONNEL COMPENSATION,"","DAVIS, JOHN J",10/01/13,12/31/13,BROADCAST PRODUCTION TECHNICIA,"22,551.00",FISCAL YEAR 2014,"","","","DAVIS, JOHN J"
,CHIEF ADMIN OFCR OF THE HOUSE,2013Q4,PERSONNEL COMPENSATION,"","DAVIS, STACHIA G",10/01/13,12/31/13,DIR MOD FURN & TRANSITION,"27,437.01",FISCAL YEAR 2014,"","","","DAVIS, STACHIA G"
,CHIEF ADMIN OFCR OF THE HOUSE,2013Q4,PERSONNEL COMPENSATION,"","DAVIS,SCOTT K",10/01/13,12/31/13,PAYROLL & BENEFITS GENERALIST,"16,569.24",FISCAL YEAR 2014,"","","","DAVIS,SCOTT K"
,CHIEF ADMIN OFCR OF THE HOUSE,2013Q4,PERSONNEL COMPENSATION,"","DAVIS,SCOTT K",10/01/13,10/31/13,PAYROLL & BENEFITS GENERALIST (OVERTIME),573.54,FISCAL YEAR 2014,"","","","DAVIS,SCOTT K"
,CHIEF ADMIN OFCR OF THE HOUSE,2013Q4,PERSONNEL COMPENSATION,"","DAWKINS, JOANN",10/01/13,12/31/13,SR TELECOMM ADMIN,"16,167.00",FISCAL YEAR 2014,"","","","DAWKINS, JOANN"
,CHIEF ADMIN OFCR OF THE HOUSE,2013Q4,PERSONNEL COMPENSATION,"","DEAN, JOSEPH M",10/01/13,12/31/13,JOURNEYMAN TEXTILE SPEC,"20,286.24",FISCAL YEAR 2014,"","","","DEAN, JOSEPH M"
,CHIEF ADMIN OFCR OF THE HOUSE,2013Q4,PERSONNEL COMPENSATION,"","DEAVER,JAMES",10/01/13,12/31/13,SENIOR SYSTEMS ENGINEER,"31,512.51",FISCAL YEAR 2014,"","","","DEAVER,JAMES"
,CHIEF ADMIN OFCR OF THE HOUSE,2013Q4,PERSONNEL COMPENSATION,"","DELISLE,KALDON A",10/01/13,12/31/13,JOURNEYMAN FURNITURE SPEC,"13,809.24",FISCAL YEAR 2014,"","","","DELISLE,KALDON A"
,CHIEF ADMIN OFCR OF THE HOUSE,2013Q4,PERSONNEL COMPENSATION,"","DELUCA, ALAN",10/01/13,12/31/13,COMPUTER FACILITIES OP MGR (A),"35,160.75",FISCAL YEAR 2014,"","","","DELUCA, ALAN"
,CHIEF ADMIN OFCR OF THE HOUSE,2013Q4,PERSONNEL COMPENSATION,"","DENT,RICHARD H",10/01/13,12/31/13,JOURNEYMAN TEXTILE SPEC,"12,453.24",FISCAL YEAR 2014,"","","","DENT,RICHARD H"
,CHIEF ADMIN OFCR OF THE HOUSE,2013Q4,PERSONNEL COMPENSATION,"","DERRICK, SCOTT",10/01/13,12/31/13,GRAPHICS & DESKTOP PUBL SPEC,"22,551.00",FISCAL YEAR 2014,"","","","DERRICK, SCOTT"
,CHIEF ADMIN OFCR OF THE HOUSE,2013Q4,PERSONNEL COMPENSATION,"","DICKIE, JAMES",10/01/13,12/31/13,ENGINEERING OPS MANAGER,"30,405.24",FISCAL YEAR 2014,"","","","DICKIE, JAMES"
,CHIEF ADMIN OFCR OF THE HOUSE,2013Q4,PERSONNEL COMPENSATION,"","DIEFFENDERFER, GARY L",10/01/13,12/31/13,SR. APPLICATION DBA SPECIALIST,"31,512.51",FISCAL YEAR 2014,"","","","DIEFFENDERFER, GARY L"
,CHIEF ADMIN OFCR OF THE HOUSE,2013Q4,PERSONNEL COMPENSATION,"","DOBBINS, MARK",10/01/13,12/31/13,"MANAGER, PURCHASING","22,998.51",FISCAL YEAR 2014,"","","","DOBBINS, MARK"
,CHIEF ADMIN OFCR OF THE HOUSE,2013Q4,PERSONNEL COMPENSATION,"","DOODY,ERICA",10/01/13,12/31/13,ADMINISTRATIVE SPECIALIST,"11,146.50",FISCAL YEAR 2014,"","","","DOODY,ERICA"
,CHIEF ADMIN OFCR OF THE HOUSE,2013Q4,PERSONNEL COMPENSATION,"","DOOLEY,GENEVA",10/01/13,12/31/13,SENIOR SOFTWARE SPECIALIST,"32,067.24",FISCAL YEAR 2014,"","","","DOOLEY,GENEVA"
,CHIEF ADMIN OFCR OF THE HOUSE,2013Q4,PERSONNEL COMPENSATION,"","DOZIER, BRIAN A",10/01/13,12/31/13,INVENTORY ADMINISTRATOR,"15,155.76",FISCAL YEAR 2014,"","","","DOZIER, BRIAN A"
,CHIEF ADMIN OFCR OF THE HOUSE,2013Q4,PERSONNEL COMPENSATION,"","DUENAS, JOSEPH E",10/01/13,12/31/13,TECHNICAL SUPPORT REP,"18,589.17",FISCAL YEAR 2014,"","","","DUENAS, JOSEPH E"
,CHIEF ADMIN OFCR OF THE HOUSE,2013Q4,PERSONNEL COMPENSATION,"","DUNKLIN, KELDA Y",10/01/13,12/31/13,SR TECHNICAL SUPPORT REP,"26,384.49",FISCAL YEAR 2014,"","","","DUNKLIN, KELDA Y"
,CHIEF ADMIN OFCR OF THE HOUSE,2013Q4,PERSONNEL COMPENSATION,"","DURAN, ROLANDO",10/01/13,12/31/13,ELECTRONICS TECHNICIAN (A),"22,107.00",FISCAL YEAR 2014,"","","","DURAN, ROLANDO"
,CHIEF ADMIN OFCR OF THE HOUSE,2013Q4,PERSONNEL COMPENSATION,"","DURAN, ROLANDO",10/01/13,10/31/13,ELECTRONICS TECHNICIAN (A) (OVERTIME),286.96,FISCAL YEAR 2014,"","","","DURAN, ROLANDO"
,CHIEF ADMIN OFCR OF THE HOUSE,2013Q4,PERSONNEL COMPENSATION,"","EGERSON, TROY H",10/01/13,12/31/13,JOURNEYMAN TEXTILE SPEC,"18,123.51",FISCAL YEAR 2014,"","","","EGERSON, TROY H"
,CHIEF ADMIN OFCR OF THE HOUSE,2013Q4,PERSONNEL COMPENSATION,"","ELIAS, ANDREW C",10/01/13,12/31/13,DEPUTY DIRECTOR,"29,470.74",FISCAL YEAR 2014,"","","","ELIAS, ANDREW C"
,CHIEF ADMIN OFCR OF THE HOUSE,2013Q4,PERSONNEL COMPENSATION,"","ELLIN, JAMES B",10/01/13,12/31/13,SR NETWORK SYSTEMS ENGINEER,"29,298.99",FISCAL YEAR 2014,"","","","ELLIN, JAMES B"
,CHIEF ADMIN OFCR OF THE HOUSE,2013Q4,PERSONNEL COMPENSATION,"","ELLIOTT, RONALD",10/01/13,12/31/13,SR INFO SYST. SECURITY ANALYST,"25,044.51",FISCAL YEAR 2014,"","","","ELLIOTT, RONALD"
,CHIEF ADMIN OFCR OF THE HOUSE,2013Q4,PERSONNEL COMPENSATION,"","ELLIS-GREGG, SHARON",10/01/13,12/31/13,PAYROLL & BENEFITS ASSISTANT,"14,134.74",FISCAL YEAR 2014,"","","","ELLIS-GREGG, SHARON"
,CHIEF ADMIN OFCR OF THE HOUSE,2013Q4,PERSONNEL COMPENSATION,"","ELLIS-JONES, DEBORAH",10/01/13,12/31/13,ADMIN-FINANCE & PAYROLL,"22,809.00",FISCAL YEAR 2014,"","","","ELLIS-JONES, DEBORAH"
,CHIEF ADMIN OFCR OF THE HOUSE,2013Q4,PERSONNEL COMPENSATION,"","EMAMALI, NICOLE S",10/01/13,12/31/13,SR TECHNICAL SUPPORT REP,"27,437.01",FISCAL YEAR 2014,"","","","EMAMALI, NICOLE S"
,CHIEF ADMIN OFCR OF THE HOUSE,2013Q4,PERSONNEL COMPENSATION,"","ENGLISH, JOSEPH H",10/01/13,12/31/13,MOBILE COMM SPECIALIST (DATA),"25,044.51",FISCAL YEAR 2014,"","","","ENGLISH, JOSEPH H"
,CHIEF ADMIN OFCR OF THE HOUSE,2013Q4,PERSONNEL COMPENSATION,"","ERVING, JAMES H",10/01/13,12/31/13,COMMUNICATIONS SPECIALIST,"25,939.74",FISCAL YEAR 2014,"","","","ERVING, JAMES H"
,CHIEF ADMIN OFCR OF THE HOUSE,2013Q4,PERSONNEL COMPENSATION,"","EVANS JR, WILLIAM R",10/01/13,12/31/13,ELECTRONICS TECHNICIAN (A),"22,551.00",FISCAL YEAR 2014,"","","","EVANS JR, WILLIAM R"
,CHIEF ADMIN OFCR OF THE HOUSE,2013Q4,PERSONNEL COMPENSATION,"","EVANS JR, WILLIAM R",10/01/13,11/30/13,ELECTRONICS TECHNICIAN (A) (OVERTIME),921.55,FISCAL YEAR 2014,"","","","EVANS JR, WILLIAM R"
,CHIEF ADMIN OFCR OF THE HOUSE,2013Q4,PERSONNEL COMPENSATION,"","EWERS, GRETCHEN",10/01/13,12/31/13,MANAGER,"26,384.49",FISCAL YEAR 2014,"","","","EWERS, GRETCHEN"
,CHIEF ADMIN OFCR OF THE HOUSE,2013Q4,PERSONNEL COMPENSATION,"","EWING JR, JOHN C",10/01/13,12/31/13,RECEIVING/WAREHOUSE SPECIALIST,"10,684.50",FISCAL YEAR 2014,"","","","EWING JR, JOHN C"
,CHIEF ADMIN OFCR OF THE HOUSE,2013Q4,PERSONNEL COMPENSATION,"","FARLEY, JOANN I",10/01/13,12/31/13,FINANCIAL COUNSELOR,"17,735.76",FISCAL YEAR 2014,"","","","FARLEY, JOANN I"
,CHIEF ADMIN OFCR OF THE HOUSE,2013Q4,PERSONNEL COMPENSATION,"","FISHER, JEROME",10/01/13,12/31/13,SR TECH SOLUTIONS ENGINEER,"24,150.51",FISCAL YEAR 2014,"","","","FISHER, JEROME"
,CHIEF ADMIN OFCR OF THE HOUSE,2013Q4,PERSONNEL COMPENSATION,"","FONTNEAU, BRUCE",10/01/13,12/31/13,SYSTEMS ENGINEER,"23,107.00",FISCAL YEAR 2014,"","","","FONTNEAU, BRUCE"
,CHIEF ADMIN OFCR OF THE HOUSE,2013Q4,PERSONNEL COMPENSATION,"","FORD, DARIN J",10/01/13,12/31/13,SR TECHNICAL SUPPORT REP (A),"22,551.00",FISCAL YEAR 2014,"","","","FORD, DARIN J"
,CHIEF ADMIN OFCR OF THE HOUSE,2013Q4,PERSONNEL COMPENSATION,"","FORGIONE, JOHN A",10/01/13,12/31/13,SR CUSTOMER SOLUTIONS REP,"18,903.24",FISCAL YEAR 2014,"","","","FORGIONE, JOHN A"
,CHIEF ADMIN OFCR OF THE HOUSE,2013Q4,PERSONNEL COMPENSATION,"","FOSTER, CHARLES J",10/01/13,12/31/13,PAYROLL & BENEFITS ASSISTANT,"14,134.74",FISCAL YEAR 2014,"","","","FOSTER, CHARLES J"
,CHIEF ADMIN OFCR OF THE HOUSE,2013Q4,PERSONNEL COMPENSATION,"","FOUNTAIN,ANIKA",10/01/13,12/31/13,TECH SOLUTIONS TECHNICIAN,"17,735.76",FISCAL YEAR 2014,"","","","FOUNTAIN,ANIKA"
,CHIEF ADMIN OFCR OF THE HOUSE,2013Q4,PERSONNEL COMPENSATION,"","FRANK, DEBBIE",10/01/13,12/31/13,SR EA COUNSELOR,"28,176.51",FISCAL YEAR 2014,"","","","FRANK, DEBBIE"
,CHIEF ADMIN OFCR OF THE HOUSE,2013Q4,PERSONNEL COMPENSATION,"","FRAVEL,DON J",10/01/13,12/31/13,TECH SOLUTIONS TECHNICIAN,"17,344.26",FISCAL YEAR 2014,"","","","FRAVEL,DON J"
,CHIEF ADMIN OFCR OF THE HOUSE,2013Q4,PERSONNEL COMPENSATION,"","FRECH, JASON L",10/01/13,12/31/13,SR SYSTEMS ENGINEER,"25,743.08",FISCAL YEAR 2014,"","","","FRECH, JASON L"
,CHIEF ADMIN OFCR OF THE HOUSE,2013Q4,PERSONNEL COMPENSATION,"","FREEMAN, ANTOINETTE P",10/01/13,12/31/13,ADMINISTRATIVE SPECIALIST,"14,807.25",FISCAL YEAR 2014,"","","","FREEMAN, ANTOINETTE P"
,CHIEF ADMIN OFCR OF THE HOUSE,2013Q4,PERSONNEL COMPENSATION,"","FREENEY, MALCOLM",10/01/13,12/31/13,PROJECT MANAGER,"25,491.51",FISCAL YEAR 2014,"","","","FREENEY, MALCOLM"
,CHIEF ADMIN OFCR OF THE HOUSE,2013Q4,PERSONNEL COMPENSATION,"","FRENCH, CAROL",10/01/13,12/31/13,PAYROLL & BENEFITS GENERALIST,"18,123.51",FISCAL YEAR 2014,"","","","FRENCH, CAROL"
,CHIEF ADMIN OFCR OF THE HOUSE,2013Q4,PERSONNEL COMPENSATION,"","FRENCH, CHARLES",10/01/13,12/31/13,SENIOR NETWORK TECHNICIAN,"25,044.51",FISCAL YEAR 2014,"","","","FRENCH, CHARLES"
,CHIEF ADMIN OFCR OF THE HOUSE,2013Q4,PERSONNEL COMPENSATION,"","FRITZ,ERIC D",10/01/13,12/31/13,SENIOR SYSTEMS ENGINEER,"26,928.51",FISCAL YEAR 2014,"","","","FRITZ,ERIC D"
,CHIEF ADMIN OFCR OF THE HOUSE,2013Q4,PERSONNEL COMPENSATION,"","GAERTNER, LESLIE C",10/01/13,12/03/13,SR NETWORK COMM SPEC,"20,273.93",FISCAL YEAR 2014,"","","","GAERTNER, LESLIE C"
,CHIEF ADMIN OFCR OF THE HOUSE,2013Q4,PERSONNEL COMPENSATION,"","GAERTNER, LESLIE C",12/01/13,12/03/13,SR NETWORK COMM SPEC (OTHER COMPENSATION),"9,654.25",FISCAL YEAR 2014,"","","","GAERTNER, LESLIE C"
,CHIEF ADMIN OFCR OF THE HOUSE,2013Q4,PERSONNEL COMPENSATION,"","GAINES, JULIA W",10/01/13,12/31/13,SPECIAL ASSISTANT (A),"24,777.24",FISCAL YEAR 2014,"","","","GAINES, JULIA W"
,CHIEF ADMIN OFCR OF THE HOUSE,2013Q4,PERSONNEL COMPENSATION,"","GALLAGHER, RENEE",10/01/13,12/31/13,SR INFO SYST. SECURITY ANALYST,"25,044.51",FISCAL YEAR 2014,"","","","GALLAGHER, RENEE"
,CHIEF ADMIN OFCR OF THE HOUSE,2013Q4,PERSONNEL COMPENSATION,"","GANGL,CHRISTOPHER J",10/01/13,10/18/13,SENIOR SYSTEMS ENGINEER,"4,651.20",FISCAL YEAR 2014,"","","","GANGL,CHRISTOPHER J"
,CHIEF ADMIN OFCR OF THE HOUSE,2013Q4,PERSONNEL COMPENSATION,"","GANGL,CHRISTOPHER J",10/01/13,10/18/13,SENIOR SYSTEMS ENGINEER (OTHER COMPENSATION),516.80,FISCAL YEAR 2014,"","","","GANGL,CHRISTOPHER J"
,CHIEF ADMIN OFCR OF THE HOUSE,2013Q4,PERSONNEL COMPENSATION,"","GARAY, GERMAN",10/01/13,12/31/13,BROADCAST PRODUCTION TECHNICIA,"22,551.00",FISCAL YEAR 2014,"","","","GARAY, GERMAN"
,CHIEF ADMIN OFCR OF THE HOUSE,2013Q4,PERSONNEL COMPENSATION,"","GARAY, GERMAN",10/01/13,11/30/13,BROADCAST PRODUCTION TECHNICIA (OVERTIME),"2,070.76",FISCAL YEAR 2014,"","","","GARAY, GERMAN"
,CHIEF ADMIN OFCR OF THE HOUSE,2013Q4,PERSONNEL COMPENSATION,"","GASKINS, JAMES R",10/01/13,12/31/13,BRANCH MANAGER,"32,067.24",FISCAL YEAR 2014,"","","","GASKINS, JAMES R"
,CHIEF ADMIN OFCR OF THE HOUSE,2013Q4,PERSONNEL COMPENSATION,"","GATES, TRENA F",10/01/13,12/31/13,FINANCIAL COUNSELOR,"20,676.99",FISCAL YEAR 2014,"","","","GATES, TRENA F"
,CHIEF ADMIN OFCR OF THE HOUSE,2013Q4,PERSONNEL COMPENSATION,"","GATES,COREY M",10/01/13,12/31/13,JOURNEYMAN TEXTILE SPEC,"13,123.50",FISCAL YEAR 2014,"","","","GATES,COREY M"
,CHIEF ADMIN OFCR OF THE HOUSE,2013Q4,PERSONNEL COMPENSATION,"","GATES,THOMAS D",10/01/13,12/31/13,SENIOR SYSTEMS ENGINEER,"23,704.50",FISCAL YEAR 2014,"","","","GATES,THOMAS D"
,CHIEF ADMIN OFCR OF THE HOUSE,2013Q4,PERSONNEL COMPENSATION,"","GEPERT,DARLA M",10/01/13,12/31/13,ADMINISTRATIVE SPECIALIST (A),"12,453.24",FISCAL YEAR 2014,"","","","GEPERT,DARLA M"
,CHIEF ADMIN OFCR OF THE HOUSE,2013Q4,PERSONNEL COMPENSATION,"","GERARDEN,PAUL J",10/01/13,12/31/13,CUSTOMER SOLUTIONS REP,"13,460.01",FISCAL YEAR 2014,"","","","GERARDEN,PAUL J"
,CHIEF ADMIN OFCR OF THE HOUSE,2013Q4,PERSONNEL COMPENSATION,"","GILLIS,DANIEL",10/01/13,12/31/13,ADA AIDE,"6,839.67",FISCAL YEAR 2014,"","","","GILLIS,DANIEL"
,CHIEF ADMIN OFCR OF THE HOUSE,2013Q4,PERSONNEL COMPENSATION,"","GILLIS,DANIEL",10/01/13,11/30/13,ADA AIDE (OVERTIME),"5,956.14",FISCAL YEAR 2014,"","","","GILLIS,DANIEL"
,CHIEF ADMIN OFCR OF THE HOUSE,2013Q4,PERSONNEL COMPENSATION,"","GIZARA, MICHAEL P",10/01/13,12/31/13,SR APPLICATION SECURITY ANALYS,"28,962.75",FISCAL YEAR 2014,"","","","GIZARA, MICHAEL P"
,CHIEF ADMIN OFCR OF THE HOUSE,2013Q4,PERSONNEL COMPENSATION,"","GOGGINS II, JAMES D",10/01/13,12/31/13,NETWORK COMM SPECIALIST (A),"22,551.00",FISCAL YEAR 2014,"","","","GOGGINS II, JAMES D"
,CHIEF ADMIN OFCR OF THE HOUSE,2013Q4,PERSONNEL COMPENSATION,"","GOLDSBOROUGH-LEE, ANGEL M",10/01/13,12/31/13,"DIR, TECH MGT & INTERNAL CTRLS","34,547.25",FISCAL YEAR 2014,"","","","GOLDSBOROUGH-LEE, ANGEL M"
,CHIEF ADMIN OFCR OF THE HOUSE,2013Q4,PERSONNEL COMPENSATION,"","GONZALEZ, ROSARIO D",10/01/13,12/31/13,SR CUSTOMER SOLUTIONS REP,"19,894.74",FISCAL YEAR 2014,"","","","GONZALEZ, ROSARIO D"
,CHIEF ADMIN OFCR OF THE HOUSE,2013Q4,PERSONNEL COMPENSATION,"","GOODMAN,JESSICA L",10/01/13,12/31/13,PAYROLL & BENEFITS GENERALIST,"13,472.01",FISCAL YEAR 2014,"","","","GOODMAN,JESSICA L"
,CHIEF ADMIN OFCR OF THE HOUSE,2013Q4,PERSONNEL COMPENSATION,"","GOODMAN,JESSICA L",10/01/13,10/31/13,PAYROLL & BENEFITS GENERALIST (OVERTIME),58.29,FISCAL YEAR 2014,"","","","GOODMAN,JESSICA L"
,CHIEF ADMIN OFCR OF THE HOUSE,2013Q4,PERSONNEL COMPENSATION,"","GOULD, MICHAEL",10/01/13,12/31/13,"MANAGER, REMEDY MANAGEMENT","29,483.99",FISCAL YEAR 2014,"","","","GOULD, MICHAEL"
,CHIEF ADMIN OFCR OF THE HOUSE,2013Q4,PERSONNEL COMPENSATION,"","GRAEUB, ANDREW C",10/01/13,12/31/13,"MANAGER, NETWORK SYST ENGINEER","33,938.25",FISCAL YEAR 2014,"","","","GRAEUB, ANDREW C"
,CHIEF ADMIN OFCR OF THE HOUSE,2013Q4,PERSONNEL COMPENSATION,"","GRECO,JACQUELINE M",10/21/13,12/31/13,FINANCIAL ASSISTANT,"7,984.27",FISCAL YEAR 2014,"","","","GRECO,JACQUELINE M"
,CHIEF ADMIN OFCR OF THE HOUSE,2013Q4,PERSONNEL COMPENSATION,"","GREEN, CAROLINE",10/01/13,12/31/13,TECHNICAL SUPPORT REP (A),"17,735.76",FISCAL YEAR 2014,"","","","GREEN, CAROLINE"
,CHIEF ADMIN OFCR OF THE HOUSE,2013Q4,PERSONNEL COMPENSATION,"","GREEN, MITCHELL",10/01/13,12/31/13,CONTRACT ADMINISTRATOR,"32,067.24",FISCAL YEAR 2014,"","","","GREEN, MITCHELL"
,CHIEF ADMIN OFCR OF THE HOUSE,2013Q4,PERSONNEL COMPENSATION,"","GREEN,ANDREW L",10/01/13,12/31/13,TECHNICAL SUPPORT REP,"16,957.26",FISCAL YEAR 2014,"","","","GREEN,ANDREW L"
,CHIEF ADMIN OFCR OF THE HOUSE,2013Q4,PERSONNEL COMPENSATION,"","GREENE, CHANTEL T",10/01/13,12/31/13,MGR BUS SYS AND INTEGRATION,"35,160.75",FISCAL YEAR 2014,"","","","GREENE, CHANTEL T"
,CHIEF ADMIN OFCR OF THE HOUSE,2013Q4,PERSONNEL COMPENSATION,"","GRIGGS,KYLE R",10/01/13,12/31/13,CONTRACTS SUPPORT ADMIN,"14,148.00",FISCAL YEAR 2014,"","","","GRIGGS,KYLE R"
,CHIEF ADMIN OFCR OF THE HOUSE,2013Q4,PERSONNEL COMPENSATION,"","GRISWOLD,RAYMOND",10/01/13,12/31/13,"DIRECTOR, ACQ & CONTRACT MGMT","33,323.25",FISCAL YEAR 2014,"","","","GRISWOLD,RAYMOND"
,CHIEF ADMIN OFCR OF THE HOUSE,2013Q4,PERSONNEL COMPENSATION,"","GRONSKI,ROBERT S",10/01/13,12/31/13,SR BUSINESS PROCESS APPL SPEC,"29,853.99",FISCAL YEAR 2014,"","","","GRONSKI,ROBERT S"
,CHIEF ADMIN OFCR OF THE HOUSE,2013Q4,PERSONNEL COMPENSATION,"","GUARNERO,DAVID P",10/01/13,12/31/13,PAYROLL & BENEFITS GENERALIST,"15,659.92",FISCAL YEAR 2014,"","","","GUARNERO,DAVID P"
,CHIEF ADMIN OFCR OF THE HOUSE,2013Q4,PERSONNEL COMPENSATION,"","GUARNERO,DAVID P",10/01/13,11/30/13,PAYROLL & BENEFITS GENERALIST (OVERTIME),224.19,FISCAL YEAR 2014,"","","","GUARNERO,DAVID P"
,CHIEF ADMIN OFCR OF THE HOUSE,2013Q4,PERSONNEL COMPENSATION,"","GUDURU,PRATAP K",10/01/13,12/31/13,SENIOR SYSTEMS ENGINEER,"30,960.24",FISCAL YEAR 2014,"","","","GUDURU,PRATAP K"
,CHIEF ADMIN OFCR OF THE HOUSE,2013Q4,PERSONNEL COMPENSATION,"","GUGLIOTTA,NORMAN",10/01/13,12/31/13,FINANCIAL COUNSELOR (A),"16,179.24",FISCAL YEAR 2014,"","","","GUGLIOTTA,NORMAN"
,CHIEF ADMIN OFCR OF THE HOUSE,2013Q4,PERSONNEL COMPENSATION,"","HALL,MORGAN",10/01/13,12/31/13,FACILITIES MANAGEMENT SPECIALI,"16,569.24",FISCAL YEAR 2014,"","","","HALL,MORGAN"
,CHIEF ADMIN OFCR OF THE HOUSE,2013Q4,PERSONNEL COMPENSATION,"","HAMBRIC, STEEN H",10/01/13,12/31/13,ASSISTANT CAO,"42,102.75",FISCAL YEAR 2014,"","","","HAMBRIC, STEEN H"
,CHIEF ADMIN OFCR OF THE HOUSE,2013Q4,PERSONNEL COMPENSATION,"","HAMEL,RYAN T",10/01/13,12/31/13,THIRD ASSISTANT,"16,569.24",FISCAL YEAR 2014,"","","","HAMEL,RYAN T"
,CHIEF ADMIN OFCR OF THE HOUSE,2013Q4,PERSONNEL COMPENSATION,"","HAMNER, PHILIP D",10/01/13,12/31/13,"DIRECTOR, ACCOUNTING","35,775.51",FISCAL YEAR 2014,"","","","HAMNER, PHILIP D"
,CHIEF ADMIN OFCR OF THE HOUSE,2013Q4,PERSONNEL COMPENSATION,"","HANEY, WINSTON",10/01/13,12/31/13,ACCOUNT MANAGEMENT COUNSELOR,"13,798.50",FISCAL YEAR 2014,"","","","HANEY, WINSTON"
,CHIEF ADMIN OFCR OF THE HOUSE,2013Q4,PERSONNEL COMPENSATION,"","HANONU, TINA M",10/01/13,12/31/13,ASSISTANT CAO,"42,102.75",FISCAL YEAR 2014,"","","","HANONU, TINA M"
,CHIEF ADMIN OFCR OF THE HOUSE,2013Q4,PERSONNEL COMPENSATION,"","HAQ,RABIA",10/01/13,12/31/13,BUSINESS PROC APPLIC SPEC,"23,256.00",FISCAL YEAR 2014,"","","","HAQ,RABIA"
,CHIEF ADMIN OFCR OF THE HOUSE,2013Q4,PERSONNEL COMPENSATION,"","HARGROVE, BRIAN",10/01/13,12/31/13,LOGISTICS & DIST SPEC (A),"10,391.01",FISCAL YEAR 2014,"","","","HARGROVE, BRIAN"
,CHIEF ADMIN OFCR OF THE HOUSE,2013Q4,PERSONNEL COMPENSATION,"","HARRELL,VICKIE",10/01/13,12/31/13,NETWORK TECHNICIAN,"22,551.00",FISCAL YEAR 2014,"","","","HARRELL,VICKIE"
,CHIEF ADMIN OFCR OF THE HOUSE,2013Q4,PERSONNEL COMPENSATION,"","HARRINGTON, KEITH",10/01/13,12/31/13,FINANCIAL COUNSELOR,"22,639.26",FISCAL YEAR 2014,"","","","HARRINGTON, KEITH"
,CHIEF ADMIN OFCR OF THE HOUSE,2013Q4,PERSONNEL COMPENSATION,"","HARRINGTON, KEITH",10/01/13,10/31/13,FINANCIAL COUNSELOR (OVERTIME),718.35,FISCAL YEAR 2014,"","","","HARRINGTON, KEITH"
,CHIEF ADMIN OFCR OF THE HOUSE,2013Q4,PERSONNEL COMPENSATION,"","HARRIS, DONALD",10/01/13,12/31/13,SR NETWORK COMM SPECIALIST,"28,454.01",FISCAL YEAR 2014,"","","","HARRIS, DONALD"
,CHIEF ADMIN OFCR OF THE HOUSE,2013Q4,PERSONNEL COMPENSATION,"","HARRIS, KEVIN",10/01/13,12/31/13,JOURNEYMAN FURNITURE SPEC,"18,903.24",FISCAL YEAR 2014,"","","","HARRIS, KEVIN"
,CHIEF ADMIN OFCR OF THE HOUSE,2013Q4,PERSONNEL COMPENSATION,"","HARRIS, STEPHANIE A",10/01/13,12/31/13,SR BUSINESS PROC APPL SPEC II,"42,102.75",FISCAL YEAR 2014,"","","","HARRIS, STEPHANIE A"
,CHIEF ADMIN OFCR OF THE HOUSE,2013Q4,PERSONNEL COMPENSATION,"","HARVEY, JAMIE",10/01/13,12/31/13,SR TELECOMMUNICATIONS ADMIN (A,"16,392.50",FISCAL YEAR 2014,"","","","HARVEY, JAMIE"
,CHIEF ADMIN OFCR OF THE HOUSE,2013Q4,PERSONNEL COMPENSATION,"","HARVEY,KINSEY B",10/01/13,12/31/13,MEDIA LOGISTICS COORDINATOR,"15,919.08",FISCAL YEAR 2014,"","","","HARVEY,KINSEY B"
,CHIEF ADMIN OFCR OF THE HOUSE,2013Q4,PERSONNEL COMPENSATION,"","HAYES,KATHLEEN M",10/01/13,12/31/13,CUSTOMER SOLUTIONS REP,"14,481.75",FISCAL YEAR 2014,"","","","HAYES,KATHLEEN M"
,CHIEF ADMIN OFCR OF THE HOUSE,2013Q4,PERSONNEL COMPENSATION,"","HAYES,MICHELLE P",10/01/13,12/31/13,SENIOR SYSTEMS ENGINEER,"31,512.51",FISCAL YEAR 2014,"","","","HAYES,MICHELLE P"
,CHIEF ADMIN OFCR OF THE HOUSE,2013Q4,PERSONNEL COMPENSATION,"","HEEB III, JOHN J",10/01/13,12/31/13,SR BUSINESS PROCESS APPL SPEC,"33,729.51",FISCAL YEAR 2014,"","","","HEEB III, JOHN J"
,CHIEF ADMIN OFCR OF THE HOUSE,2013Q4,PERSONNEL COMPENSATION,"","HEFNER,JEREMY",10/01/13,12/31/13,SR SYSTEMS SECURITY ENGINEER,"32,621.25",FISCAL YEAR 2014,"","","","HEFNER,JEREMY"
,CHIEF ADMIN OFCR OF THE HOUSE,2013Q4,PERSONNEL COMPENSATION,"","HERBERT, GREGORY L",10/01/13,12/31/13,REC/WAREHOUSE SPEC (A),"12,029.49",FISCAL YEAR 2014,"","","","HERBERT, GREGORY L"
,CHIEF ADMIN OFCR OF THE HOUSE,2013Q4,PERSONNEL COMPENSATION,"","HERBERT,DONNA",10/01/13,12/31/13,FINANCIAL ANALYST,"19,502.49",FISCAL YEAR 2014,"","","","HERBERT,DONNA"
,CHIEF ADMIN OFCR OF THE HOUSE,2013Q4,PERSONNEL COMPENSATION,"","HIBBS, CYNTHIA",10/01/13,12/31/13,NETWORK COORDINATOR (A),"18,903.24",FISCAL YEAR 2014,"","","","HIBBS, CYNTHIA"
,CHIEF ADMIN OFCR OF THE HOUSE,2013Q4,PERSONNEL COMPENSATION,"","HILL, TITRA M",10/01/13,11/30/13,RECEPTIONIST,"8,973.34",FISCAL YEAR 2014,"","","","HILL, TITRA M"
,CHIEF ADMIN OFCR OF THE HOUSE,2013Q4,PERSONNEL COMPENSATION,"","HIRSCH, PATRICK A",10/01/13,12/31/13,DIR-HOUSE RECORDING STUDIO,"40,955.76",FISCAL YEAR 2014,"","","","HIRSCH, PATRICK A"
,CHIEF ADMIN OFCR OF THE HOUSE,2013Q4,PERSONNEL COMPENSATION,"","HITE,JASON A",10/01/13,12/31/13,CHIEF HUMAN RESOURCES OFFICER,"42,102.75",FISCAL YEAR 2014,"","","","HITE,JASON A"
,CHIEF ADMIN OFCR OF THE HOUSE,2013Q4,PERSONNEL COMPENSATION,"","HOBBS, DENINE",10/01/13,12/31/13,SPECIAL ASSISTANT,"24,595.50",FISCAL YEAR 2014,"","","","HOBBS, DENINE"
,CHIEF ADMIN OFCR OF THE HOUSE,2013Q4,PERSONNEL COMPENSATION,"","HODGES, JOHN E",10/01/13,12/31/13,"MANAGER, SALES & CUSTOMER SVC","24,777.24",FISCAL YEAR 2014,"","","","HODGES, JOHN E"
,CHIEF ADMIN OFCR OF THE HOUSE,2013Q4,PERSONNEL COMPENSATION,"","HOKHOLD, MARK D",10/01/13,12/31/13,SYSTEMS ENGINEER,"24,745.17",FISCAL YEAR 2014,"","","","HOKHOLD, MARK D"
,CHIEF ADMIN OFCR OF THE HOUSE,2013Q4,PERSONNEL COMPENSATION,"","HOLAU,GEORGE",10/01/13,12/31/13,FINANCIAL COUNSELOR,"20,286.24",FISCAL YEAR 2014,"","","","HOLAU,GEORGE"
,CHIEF ADMIN OFCR OF THE HOUSE,2013Q4,PERSONNEL COMPENSATION,"","HOLAU,GEORGE",10/01/13,10/31/13,FINANCIAL COUNSELOR (OVERTIME),643.69,FISCAL YEAR 2014,"","","","HOLAU,GEORGE"
,CHIEF ADMIN OFCR OF THE HOUSE,2013Q4,PERSONNEL COMPENSATION,"","HOLLAND, GREGORY",10/01/13,12/31/13,LOGISTICS & DIST SPEC (A),"11,274.00",FISCAL YEAR 2014,"","","","HOLLAND, GREGORY"
,CHIEF ADMIN OFCR OF THE HOUSE,2013Q4,PERSONNEL COMPENSATION,"","HOLLAND, GREGORY",10/01/13,10/31/13,LOGISTICS & DIST SPEC (A) (OVERTIME),455.29,FISCAL YEAR 2014,"","","","HOLLAND, GREGORY"
,CHIEF ADMIN OFCR OF THE HOUSE,2013Q4,PERSONNEL COMPENSATION,"","HOLLEY, STEVEN M",10/01/13,12/31/13,LOGISTICS & DIST SPEC (A),"10,980.00",FISCAL YEAR 2014,"","","","HOLLEY, STEVEN M"
,CHIEF ADMIN OFCR OF THE HOUSE,2013Q4,PERSONNEL COMPENSATION,"","HORNBURG, RICHARD A",10/01/13,12/31/13,BUSINESS PROC APPLIC SPEC,"27,946.26",FISCAL YEAR 2014,"","","","HORNBURG, RICHARD A"
,CHIEF ADMIN OFCR OF THE HOUSE,2013Q4,PERSONNEL COMPENSATION,"","HOWARD, ANTHONY T",10/01/13,12/31/13,JOURNEYMAN TEXTILE SPEC,"16,505.25",FISCAL YEAR 2014,"","","","HOWARD, ANTHONY T"
,CHIEF ADMIN OFCR OF THE HOUSE,2013Q4,PERSONNEL COMPENSATION,"","HUGHES, MICHAEL A",10/01/13,12/31/13,FINANCIAL COUNSELOR,"15,830.01",FISCAL YEAR 2014,"","","","HUGHES, MICHAEL A"
,CHIEF ADMIN OFCR OF THE HOUSE,2013Q4,PERSONNEL COMPENSATION,"","HUNT,DANIEL",10/01/13,12/31/13,SR NETWORK COMM SPECIALIST,"30,960.24",FISCAL YEAR 2014,"","","","HUNT,DANIEL"
,CHIEF ADMIN OFCR OF THE HOUSE,2013Q4,PERSONNEL COMPENSATION,"","HUNTER, STEVE",10/01/13,12/31/13,ACCOUNT MANAGEMENT COUNSELOR,"13,460.01",FISCAL YEAR 2014,"","","","HUNTER, STEVE"
,CHIEF ADMIN OFCR OF THE HOUSE,2013Q4,PERSONNEL COMPENSATION,"","HUNTER, STEVE",11/01/13,11/30/13,ACCOUNT MANAGEMENT COUNSELOR (OVERTIME),582.40,FISCAL YEAR 2014,"","","","HUNTER, STEVE"
,CHIEF ADMIN OFCR OF THE HOUSE,2013Q4,PERSONNEL COMPENSATION,"","HURDA, JACQUELINE L",10/01/13,12/31/13,FINANCIAL COUNSELOR (A),"19,894.74",FISCAL YEAR 2014,"","","","HURDA, JACQUELINE L"
,CHIEF ADMIN OFCR OF THE HOUSE,2013Q4,PERSONNEL COMPENSATION,"","ILOG,ANGELA M",10/01/13,12/31/13,CONTRACTS SUPPORT ADMIN,"14,148.00",FISCAL YEAR 2014,"","","","ILOG,ANGELA M"
,CHIEF ADMIN OFCR OF THE HOUSE,2013Q4,PERSONNEL COMPENSATION,"","ILOG,ANGELA M",10/01/13,10/31/13,CONTRACTS SUPPORT ADMIN (OVERTIME),108.83,FISCAL YEAR 2014,"","","","ILOG,ANGELA M"
,CHIEF ADMIN OFCR OF THE HOUSE,2013Q4,PERSONNEL COMPENSATION,"","JACKSON, REGGIE",10/01/13,12/31/13,SR TECHNICAL SUPPORT REP (A),"23,704.50",FISCAL YEAR 2014,"","","","JACKSON, REGGIE"
,CHIEF ADMIN OFCR OF THE HOUSE,2013Q4,PERSONNEL COMPENSATION,"","JACKSON, WANDA J",10/01/13,12/31/13,TELECOMMUNICATIONS BRANCH MNGR,"26,422.74",FISCAL YEAR 2014,"","","","JACKSON, WANDA J"
,CHIEF ADMIN OFCR OF THE HOUSE,2013Q4,PERSONNEL COMPENSATION,"","JACOBSON, BRADLEY J",10/01/13,12/31/13,BRANCH MANAGER,"33,938.25",FISCAL YEAR 2014,"","","","JACOBSON, BRADLEY J"
,CHIEF ADMIN OFCR OF THE HOUSE,2013Q4,PERSONNEL COMPENSATION,"","JANIFER, ROLAND S",10/01/13,12/31/13,"SUPERVISOR,LOGIS & DIST (A)","18,123.51",FISCAL YEAR 2014,"","","","JANIFER, ROLAND S"
,CHIEF ADMIN OFCR OF THE HOUSE,2013Q4,PERSONNEL COMPENSATION,"","JECKO,BRITTANY E",10/01/13,12/31/13,HUMAN RESOURCES GENERALIST,"15,789.00",FISCAL YEAR 2014,"","","","JECKO,BRITTANY E"
,CHIEF ADMIN OFCR OF THE HOUSE,2013Q4,PERSONNEL COMPENSATION,"","JEFFERSON,KENYATTA",10/01/13,12/31/13,TECH SOLUTIONS ENGINEER,"16,569.24",FISCAL YEAR 2014,"","","","JEFFERSON,KENYATTA"
,CHIEF ADMIN OFCR OF THE HOUSE,2013Q4,PERSONNEL COMPENSATION,"","JENKINS, JAMES",10/01/13,12/31/13,WORKFLOW COORDINATOR,"18,903.24",FISCAL YEAR 2014,"","","","JENKINS, JAMES"
,CHIEF ADMIN OFCR OF THE HOUSE,2013Q4,PERSONNEL COMPENSATION,"","JENNINGS, ARACELI",10/01/13,12/31/13,FINANCE ASSISTANT,"16,505.25",FISCAL YEAR 2014,"","","","JENNINGS, ARACELI"
,CHIEF ADMIN OFCR OF THE HOUSE,2013Q4,PERSONNEL COMPENSATION,"","JOHANN, DEREK",10/01/13,12/31/13,SR RECEIVING & WAREHOUSIN SPEC,"16,505.25",FISCAL YEAR 2014,"","","","JOHANN, DEREK"
,CHIEF ADMIN OFCR OF THE HOUSE,2013Q4,PERSONNEL COMPENSATION,"","JOHNSON, ANDRE",10/01/13,12/31/13,APPLICATION DBA SPECIALIST,"22,551.00",FISCAL YEAR 2014,"","","","JOHNSON, ANDRE"
,CHIEF ADMIN OFCR OF THE HOUSE,2013Q4,PERSONNEL COMPENSATION,"","JOHNSON, DWAYNE",10/01/13,12/31/13,RETAIL INVENTORY SPECIALIST,"14,470.50",FISCAL YEAR 2014,"","","","JOHNSON, DWAYNE"
,CHIEF ADMIN OFCR OF THE HOUSE,2013Q4,PERSONNEL COMPENSATION,"","JOHNSON, ERIC C",10/01/13,12/31/13,LOGISTICS & DIST SPEC (A),"11,777.47",FISCAL YEAR 2014,"","","","JOHNSON, ERIC C"
,CHIEF ADMIN OFCR OF THE HOUSE,2013Q4,PERSONNEL COMPENSATION,"","JOHNSON, MARGARET K",10/01/13,12/31/13,SR MODULAR FURNITURE SPEC,"17,344.26",FISCAL YEAR 2014,"","","","JOHNSON, MARGARET K"
,CHIEF ADMIN OFCR OF THE HOUSE,2013Q4,PERSONNEL COMPENSATION,"","JOHNSON, REGINALD",10/01/13,12/31/13,FINANCIAL COUNSELOR (A),"17,344.26",FISCAL YEAR 2014,"","","","JOHNSON, REGINALD"
,CHIEF ADMIN OFCR OF THE HOUSE,2013Q4,PERSONNEL COMPENSATION,"","JOHNSON, ROBERT C",10/01/13,12/31/13,SENIOR SYSTEMS ENGINEER,"29,470.74",FISCAL YEAR 2014,"","","","JOHNSON, ROBERT C"
,CHIEF ADMIN OFCR OF THE HOUSE,2013Q4,PERSONNEL COMPENSATION,"","JOHNSON,KWASI Z",10/01/13,12/31/13,LOGISTICS & DIST SPEC (A),"9,002.49",FISCAL YEAR 2014,"","","","JOHNSON,KWASI Z"
,CHIEF ADMIN OFCR OF THE HOUSE,2013Q4,PERSONNEL COMPENSATION,"","JONES III,CLARENCE",10/01/13,12/31/13,SENIOR NETWORK TECHNICIAN,"19,110.75",FISCAL YEAR 2014,"","","","JONES III,CLARENCE"
,CHIEF ADMIN OFCR OF THE HOUSE,2013Q4,PERSONNEL COMPENSATION,"","JONES JR, CHARLES J",10/01/13,12/31/13,NETWORK COMM SPECIALIST,"24,150.51",FISCAL YEAR 2014,"","","","JONES JR, CHARLES J"
,CHIEF ADMIN OFCR OF THE HOUSE,2013Q4,PERSONNEL COMPENSATION,"","JONES, DEBORAH D",10/01/13,12/31/13,FINANCIAL COUNSELOR,"21,069.99",FISCAL YEAR 2014,"","","","JONES, DEBORAH D"
,CHIEF ADMIN OFCR OF THE HOUSE,2013Q4,PERSONNEL COMPENSATION,"","JONES, MITCHAEL",10/01/13,12/31/13,TECHNICAL TRAINER,"19,894.74",FISCAL YEAR 2014,"","","","JONES, MITCHAEL"
,CHIEF ADMIN OFCR OF THE HOUSE,2013Q4,PERSONNEL COMPENSATION,"","JONES, STEPHEN E",10/01/13,12/31/13,SENIOR SYSTEMS ENGINEER,"30,405.24",FISCAL YEAR 2014,"","","","JONES, STEPHEN E"
,CHIEF ADMIN OFCR OF THE HOUSE,2013Q4,PERSONNEL COMPENSATION,"","JONES, WESLEY D",10/01/13,12/31/13,LOGISTICS & DIST SPEC (A),"11,274.00",FISCAL YEAR 2014,"","","","JONES, WESLEY D"
,CHIEF ADMIN OFCR OF THE HOUSE,2013Q4,PERSONNEL COMPENSATION,"","JONES,RODNEY B",10/01/13,12/31/13,SR TECHNICAL SUPPORT REP,"21,214.74",FISCAL YEAR 2014,"","","","JONES,RODNEY B"
,CHIEF ADMIN OFCR OF THE HOUSE,2013Q4,PERSONNEL COMPENSATION,"","JONES,YOLANDA S",10/01/13,12/31/13,PAYROLL & BENEFITS GENERALIST,"15,789.00",FISCAL YEAR 2014,"","","","JONES,YOLANDA S"
,CHIEF ADMIN OFCR OF THE HOUSE,2013Q4,PERSONNEL COMPENSATION,"","JONES,YOLANDA S",11/01/13,11/30/13,PAYROLL & BENEFITS GENERALIST (OVERTIME),91.09,FISCAL YEAR 2014,"","","","JONES,YOLANDA S"
,CHIEF ADMIN OFCR OF THE HOUSE,2013Q4,PERSONNEL COMPENSATION,"","JORDAN, YONG O",10/01/13,12/31/13,SR TECH SOLUTIONS ENGINEER,"24,595.50",FISCAL YEAR 2014,"","","","JORDAN, YONG O"
,CHIEF ADMIN OFCR OF THE HOUSE,2013Q4,PERSONNEL COMPENSATION,"","JORDAN,CHRISTOPHER",10/01/13,12/31/13,DIRECTOR BUSINESS CONTINUITY,"37,384.26",FISCAL YEAR 2014,"","","","JORDAN,CHRISTOPHER"
,CHIEF ADMIN OFCR OF THE HOUSE,2013Q4,PERSONNEL COMPENSATION,"","JOYCE, ERIC",10/01/13,12/31/13,SUPERVISOR,"27,946.26",FISCAL YEAR 2014,"","","","JOYCE, ERIC"
,CHIEF ADMIN OFCR OF THE HOUSE,2013Q4,PERSONNEL COMPENSATION,"","JUDGE, NANCY",10/01/13,12/31/13,CUSTOMER SOLUTIONS REP,"15,491.01",FISCAL YEAR 2014,"","","","JUDGE, NANCY"
,CHIEF ADMIN OFCR OF THE HOUSE,2013Q4,PERSONNEL COMPENSATION,"","KAESER, STEVEN W",10/01/13,10/31/13,SENIOR SYSTEMS ENGINEER,"9,484.67",FISCAL YEAR 2014,"","","","KAESER, STEVEN W"
,CHIEF ADMIN OFCR OF THE HOUSE,2013Q4,PERSONNEL COMPENSATION,"","KAESER, STEVEN W",10/01/13,10/31/13,SENIOR SYSTEMS ENGINEER (OTHER COMPENSATION),"2,647.80",FISCAL YEAR 2014,"","","","KAESER, STEVEN W"
,CHIEF ADMIN OFCR OF THE HOUSE,2013Q4,PERSONNEL COMPENSATION,"","KAHLER, KENT",10/01/13,12/31/13,SYSTEMS ENGINEER,"25,044.51",FISCAL YEAR 2014,"","","","KAHLER, KENT"
,CHIEF ADMIN OFCR OF THE HOUSE,2013Q4,PERSONNEL COMPENSATION,"","KAPLAN,LEAH",10/01/13,12/31/13,MEDIA LOGISTICS ASSISTANT,"12,115.50",FISCAL YEAR 2014,"","","","KAPLAN,LEAH"
,CHIEF ADMIN OFCR OF THE HOUSE,2013Q4,PERSONNEL COMPENSATION,"","KEANE, MICHAEL T",10/01/13,12/31/13,"MANAGER, WORKFLOW MANAGEMENT","22,809.00",FISCAL YEAR 2014,"","","","KEANE, MICHAEL T"
,CHIEF ADMIN OFCR OF THE HOUSE,2013Q4,PERSONNEL COMPENSATION,"","KELLAHER,ANTHONY",10/01/13,12/31/13,MEDIA LOGISTICS COORDINATOR,"18,068.17",FISCAL YEAR 2014,"","","","KELLAHER,ANTHONY"
,CHIEF ADMIN OFCR OF THE HOUSE,2013Q4,PERSONNEL COMPENSATION,"","KELLEY, KEVIN S",10/01/13,12/31/13,CUSTOMER SOLUTIONS REP,"16,167.00",FISCAL YEAR 2014,"","","","KELLEY, KEVIN S"
,CHIEF ADMIN OFCR OF THE HOUSE,2013Q4,PERSONNEL COMPENSATION,"","KELLEY, MARY M",10/01/13,12/31/13,RESOURCE MANAGER,"28,962.75",FISCAL YEAR 2014,"","","","KELLEY, MARY M"
,CHIEF ADMIN OFCR OF THE HOUSE,2013Q4,PERSONNEL COMPENSATION,"","KELLEY, TARA A",10/01/13,12/31/13,COMMUNICATIONS SPEC (A),"21,069.99",FISCAL YEAR 2014,"","","","KELLEY, TARA A"
,CHIEF ADMIN OFCR OF THE HOUSE,2013Q4,PERSONNEL COMPENSATION,"","KEMP, DAVID S",10/01/13,12/31/13,SENIOR SYSTEMS ENGINEER,"33,173.76",FISCAL YEAR 2014,"","","","KEMP, DAVID S"
,CHIEF ADMIN OFCR OF THE HOUSE,2013Q4,PERSONNEL COMPENSATION,"","KENEALY, PATRICK T",10/01/13,12/31/13,FINANCIAL ANALYST,"34,836.75",FISCAL YEAR 2014,"","","","KENEALY, PATRICK T"
,CHIEF ADMIN OFCR OF THE HOUSE,2013Q4,PERSONNEL COMPENSATION,"","KILSON,FRANKLIN P",10/01/13,12/31/13,NETWORK TECHNICIAN,"21,214.74",FISCAL YEAR 2014,"","","","KILSON,FRANKLIN P"
,CHIEF ADMIN OFCR OF THE HOUSE,2013Q4,PERSONNEL COMPENSATION,"","KIMBALL, MARK E",10/01/13,12/31/13,SR TECHNICAL SUPPORT REP (A),"21,663.00",FISCAL YEAR 2014,"","","","KIMBALL, MARK E"
,CHIEF ADMIN OFCR OF THE HOUSE,2013Q4,PERSONNEL COMPENSATION,"","KING, JOHN A",10/01/13,12/31/13,"SUPERVISOR,LOGISTICS & DIST (A","17,735.76",FISCAL YEAR 2014,"","","","KING, JOHN A"
,CHIEF ADMIN OFCR OF THE HOUSE,2013Q4,PERSONNEL COMPENSATION,"","KLEMP, CAROLINE",10/01/13,12/31/13,DIRECTOR MEMBERS' SERVICES,"34,836.75",FISCAL YEAR 2014,"","","","KLEMP, CAROLINE"
,CHIEF ADMIN OFCR OF THE HOUSE,2013Q4,PERSONNEL COMPENSATION,"","KLUSSENDORF, KATHLEEN M",10/01/13,12/31/13,SPECIAL ASSISTANT,"27,280.50",FISCAL YEAR 2014,"","","","KLUSSENDORF, KATHLEEN M"
,CHIEF ADMIN OFCR OF THE HOUSE,2013Q4,PERSONNEL COMPENSATION,"","KNELL, KATHERINE A",10/01/13,12/31/13,HRIS APPLICATIONS MANAGER,"39,794.25",FISCAL YEAR 2014,"","","","KNELL, KATHERINE A"
,CHIEF ADMIN OFCR OF THE HOUSE,2013Q4,PERSONNEL COMPENSATION,"","KNOERL, THOMAS K",10/01/13,12/31/13,NETWORK COMMUNICATIONS SPEC,"26,236.24",FISCAL YEAR 2014,"","","","KNOERL, THOMAS K"
,CHIEF ADMIN OFCR OF THE HOUSE,2013Q4,PERSONNEL COMPENSATION,"","KONOPATSKI,FRANK",10/01/13,12/31/13,SR COMM SECURITY ANALYST,"24,150.51",FISCAL YEAR 2014,"","","","KONOPATSKI,FRANK"
,CHIEF ADMIN OFCR OF THE HOUSE,2013Q4,PERSONNEL COMPENSATION,"","KORNACKI, OLGA R",10/01/13,12/31/13,DIRECTOR,"32,621.25",FISCAL YEAR 2014,"","","","KORNACKI, OLGA R"
,CHIEF ADMIN OFCR OF THE HOUSE,2013Q4,PERSONNEL COMPENSATION,"","KOSH, EMORY A",10/01/13,12/31/13,PAYROLL & BENEFITS GENERALIST,"16,179.24",FISCAL YEAR 2014,"","","","KOSH, EMORY A"
,CHIEF ADMIN OFCR OF THE HOUSE,2013Q4,PERSONNEL COMPENSATION,"","KOZTOSKI, DOUGLAS W",10/01/13,12/31/13,BROADCAST PRODUCTION TECHNICIA,"19,110.75",FISCAL YEAR 2014,"","","","KOZTOSKI, DOUGLAS W"
,CHIEF ADMIN OFCR OF THE HOUSE,2013Q4,PERSONNEL COMPENSATION,"","KOZTOSKI, DOUGLAS W",10/01/13,11/30/13,BROADCAST PRODUCTION TECHNICIA (OVERTIME),624.76,FISCAL YEAR 2014,"","","","KOZTOSKI, DOUGLAS W"
,CHIEF ADMIN OFCR OF THE HOUSE,2013Q4,PERSONNEL COMPENSATION,"","KRAFT,NORMAN R",10/01/13,12/31/13,INTERNET SYSTEMS SPECIALIST,"22,510.00",FISCAL YEAR 2014,"","","","KRAFT,NORMAN R"
,CHIEF ADMIN OFCR OF THE HOUSE,2013Q4,PERSONNEL COMPENSATION,"","KRALY,ELIZABETH A",10/01/13,12/31/13,"MANAGER, CAO HUMAN RESOURCES","26,928.51",FISCAL YEAR 2014,"","","","KRALY,ELIZABETH A"
,CHIEF ADMIN OFCR OF THE HOUSE,2013Q4,PERSONNEL COMPENSATION,"","KRAMER, STEPHEN",10/01/13,12/31/13,NETWORK COMMUNICATIONS SPEC,"25,044.51",FISCAL YEAR 2014,"","","","KRAMER, STEPHEN"
,CHIEF ADMIN OFCR OF THE HOUSE,2013Q4,PERSONNEL COMPENSATION,"","KREMKAU,REBECCA K",10/01/13,12/31/13,FINANCIAL ANALYST,"21,214.74",FISCAL YEAR 2014,"","","","KREMKAU,REBECCA K"
,CHIEF ADMIN OFCR OF THE HOUSE,2013Q4,PERSONNEL COMPENSATION,"","KUPER, KAREN",10/01/13,12/31/13,SPECIAL ASSISTANT/OPER SUPERVI,"25,044.51",FISCAL YEAR 2014,"","","","KUPER, KAREN"
,CHIEF ADMIN OFCR OF THE HOUSE,2013Q4,PERSONNEL COMPENSATION,"","LAGASSE, DANIEL",10/01/13,12/31/13,MOBILE COMM SPEC - TELEPHONY,"30,991.74",FISCAL YEAR 2014,"","","","LAGASSE, DANIEL"
,CHIEF ADMIN OFCR OF THE HOUSE,2013Q4,PERSONNEL COMPENSATION,"","LAU,DAVID E",10/01/13,12/31/13,INFORMATION SECURITY MANAGER,"32,302.17",FISCAL YEAR 2014,"","","","LAU,DAVID E"
,CHIEF ADMIN OFCR OF THE HOUSE,2013Q4,PERSONNEL COMPENSATION,"","LEBER, DENNIS",10/01/13,12/31/13,SR NETWORK SYSTEMS ENGINEER,"27,946.26",FISCAL YEAR 2014,"","","","LEBER, DENNIS"
,CHIEF ADMIN OFCR OF THE HOUSE,2013Q4,PERSONNEL COMPENSATION,"","LEE, DARNELL A",10/01/13,12/31/13,ASSISTANT CAO,"36,177.99",FISCAL YEAR 2014,"","","","LEE, DARNELL A"
,CHIEF ADMIN OFCR OF THE HOUSE,2013Q4,PERSONNEL COMPENSATION,"","LEIBACH,WILLIAM",10/01/13,12/31/13,"DIRECTOR, INTERNAL CONTROLS","33,323.25",FISCAL YEAR 2014,"","","","LEIBACH,WILLIAM"
,CHIEF ADMIN OFCR OF THE HOUSE,2013Q4,PERSONNEL COMPENSATION,"","LEIBY,FREDERICK",10/01/13,12/31/13,CONTRACT ADMINISTRATOR,"17,937.75",FISCAL YEAR 2014,"","","","LEIBY,FREDERICK"
,CHIEF ADMIN OFCR OF THE HOUSE,2013Q4,PERSONNEL COMPENSATION,"","LEON-CAMPOS, CARLOS",10/01/13,12/31/13,MANAGER,"24,595.50",FISCAL YEAR 2014,"","","","LEON-CAMPOS, CARLOS"
,CHIEF ADMIN OFCR OF THE HOUSE,2013Q4,PERSONNEL COMPENSATION,"","LEONARD,DENISE D",10/01/13,12/31/13,WORKFLOW COORDINATOR,"15,659.92",FISCAL YEAR 2014,"","","","LEONARD,DENISE D"
,CHIEF ADMIN OFCR OF THE HOUSE,2013Q4,PERSONNEL COMPENSATION,"","LESNEWSKY,ERIK",10/01/13,12/31/13,ADA AIDE,"6,217.86",FISCAL YEAR 2014,"","","","LESNEWSKY,ERIK"
,CHIEF ADMIN OFCR OF THE HOUSE,2013Q4,PERSONNEL COMPENSATION,"","LESNEWSKY,ERIK",10/01/13,11/30/13,ADA AIDE (OVERTIME),"6,353.79",FISCAL YEAR 2014,"","","","LESNEWSKY,ERIK"
,CHIEF ADMIN OFCR OF THE HOUSE,2013Q4,PERSONNEL COMPENSATION,"","LEVENGOOD, DAVID S",10/01/13,12/31/13,TECHNICAL TRAINER,"18,329.01",FISCAL YEAR 2014,"","","","LEVENGOOD, DAVID S"
,CHIEF ADMIN OFCR OF THE HOUSE,2013Q4,PERSONNEL COMPENSATION,"","LEWIS, JOHN T",10/01/13,12/31/13,DIRECTOR FURNISHINGS,"27,946.26",FISCAL YEAR 2014,"","","","LEWIS, JOHN T"
,CHIEF ADMIN OFCR OF THE HOUSE,2013Q4,PERSONNEL COMPENSATION,"","LEWIS, ROBERT M",10/01/13,12/31/13,PHOTOGRAPHIC LAB TECHNICIAN,"17,175.99",FISCAL YEAR 2014,"","","","LEWIS, ROBERT M"
,CHIEF ADMIN OFCR OF THE HOUSE,2013Q4,PERSONNEL COMPENSATION,"","LIM,CHAU T",10/01/13,12/31/13,SENIOR ACCOUNTANT (A),"25,044.51",FISCAL YEAR 2014,"","","","LIM,CHAU T"
,CHIEF ADMIN OFCR OF THE HOUSE,2013Q4,PERSONNEL COMPENSATION,"","LINVILLE, RAY A",10/01/13,12/31/13,SENIOR SYSTEMS ENGINEER,"29,978.76",FISCAL YEAR 2014,"","","","LINVILLE, RAY A"
,CHIEF ADMIN OFCR OF THE HOUSE,2013Q4,PERSONNEL COMPENSATION,"","LITTLE, ANDREAL P",10/01/13,12/31/13,ADMINISTRATIVE SPECIALIST,"16,167.00",FISCAL YEAR 2014,"","","","LITTLE, ANDREAL P"
,CHIEF ADMIN OFCR OF THE HOUSE,2013Q4,PERSONNEL COMPENSATION,"","LITTLE, HAROLD M",10/01/13,12/31/13,SR TECH SOLUTIONS ENGINEER,"24,150.51",FISCAL YEAR 2014,"","","","LITTLE, HAROLD M"
,CHIEF ADMIN OFCR OF THE HOUSE,2013Q4,PERSONNEL COMPENSATION,"","LOGAN, KATHERINE J",10/01/13,12/31/13,DIRECTOR PAYROLL AND BENEFITS,"38,991.25",FISCAL YEAR 2014,"","","","LOGAN, KATHERINE J"
,CHIEF ADMIN OFCR OF THE HOUSE,2013Q4,PERSONNEL COMPENSATION,"","LONG, JOHN P",10/01/13,12/31/13,SR MODULAR FURNITURE SPEC,"25,669.50",FISCAL YEAR 2014,"","","","LONG, JOHN P"
,CHIEF ADMIN OFCR OF THE HOUSE,2013Q4,PERSONNEL COMPENSATION,"","LOVING, ANTHONY",10/01/13,12/31/13,APPLICATION DBA SPECIALIST,"27,946.26",FISCAL YEAR 2014,"","","","LOVING, ANTHONY"
,CHIEF ADMIN OFCR OF THE HOUSE,2013Q4,PERSONNEL COMPENSATION,"","MAAS, JENNIFER A",10/01/13,12/31/13,"MGR, USER EXPERIENCE & DESIGN","26,082.74",FISCAL YEAR 2014,"","","","MAAS, JENNIFER A"
,CHIEF ADMIN OFCR OF THE HOUSE,2013Q4,PERSONNEL COMPENSATION,"","MAGRUDER, TIMOTHY",10/01/13,12/31/13,JOURNEYMAN FURNITURE SPEC,"15,491.01",FISCAL YEAR 2014,"","","","MAGRUDER, TIMOTHY"
,CHIEF ADMIN OFCR OF THE HOUSE,2013Q4,PERSONNEL COMPENSATION,"","MAHAR,EDWARD A",10/01/13,12/31/13,"DIR, INFO SYSTEMS SECURITY","37,384.26",FISCAL YEAR 2014,"","","","MAHAR,EDWARD A"
,CHIEF ADMIN OFCR OF THE HOUSE,2013Q4,PERSONNEL COMPENSATION,"","MAIDEN III, LEWIS L",10/01/13,12/31/13,LOGISTICS & DIST SPEC (A),"14,470.50",FISCAL YEAR 2014,"","","","MAIDEN III, LEWIS L"
,CHIEF ADMIN OFCR OF THE HOUSE,2013Q4,PERSONNEL COMPENSATION,"","MALASPINA,KIMBERLY J",10/01/13,12/31/13,JOURNEYMAN TEXTILE SPEC,"16,957.26",FISCAL YEAR 2014,"","","","MALASPINA,KIMBERLY J"
,CHIEF ADMIN OFCR OF THE HOUSE,2013Q4,PERSONNEL COMPENSATION,"","MALLON, MICHAEL P",10/01/13,12/31/13,RESOURCE ANALYST,"22,551.00",FISCAL YEAR 2014,"","","","MALLON, MICHAEL P"
,CHIEF ADMIN OFCR OF THE HOUSE,2013Q4,PERSONNEL COMPENSATION,"","MALLON, MICHAEL P",11/01/13,11/30/13,RESOURCE ANALYST (OTHER COMPENSATION),500.00,FISCAL YEAR 2014,"","","","MALLON, MICHAEL P"
,CHIEF ADMIN OFCR OF THE HOUSE,2013Q4,PERSONNEL COMPENSATION,"","MALLOY, DEON",10/01/13,12/31/13,SR TECHNICAL SUPPORT REP (A),"22,107.00",FISCAL YEAR 2014,"","","","MALLOY, DEON"
,CHIEF ADMIN OFCR OF THE HOUSE,2013Q4,PERSONNEL COMPENSATION,"","MANSON, JOHN L",10/01/13,12/31/13,SR NETWORK COMM SPEC (A),"29,978.76",FISCAL YEAR 2014,"","","","MANSON, JOHN L"
,CHIEF ADMIN OFCR OF THE HOUSE,2013Q4,PERSONNEL COMPENSATION,"","MARCUM JR, VINCENT L",10/01/13,12/31/13,JOURNEYMAN TEXTILE SPEC,"18,903.24",FISCAL YEAR 2014,"","","","MARCUM JR, VINCENT L"
,CHIEF ADMIN OFCR OF THE HOUSE,2013Q4,PERSONNEL COMPENSATION,"","MARCUS, RALPH J",10/01/13,12/31/13,TECHNICAL DIRECTOR (A),"24,150.51",FISCAL YEAR 2014,"","","","MARCUS, RALPH J"
,CHIEF ADMIN OFCR OF THE HOUSE,2013Q4,PERSONNEL COMPENSATION,"","MARCUS, RALPH J",10/01/13,11/30/13,TECHNICAL DIRECTOR (A) (OVERTIME),"1,370.06",FISCAL YEAR 2014,"","","","MARCUS, RALPH J"
,CHIEF ADMIN OFCR OF THE HOUSE,2013Q4,PERSONNEL COMPENSATION,"","MARSH, STEVE W",10/01/13,12/31/13,"MANAGER, ACCOUNTING","28,962.75",FISCAL YEAR 2014,"","","","MARSH, STEVE W"
,CHIEF ADMIN OFCR OF THE HOUSE,2013Q4,PERSONNEL COMPENSATION,"","MARTIN, CHRISTOPHER W",10/01/13,12/31/13,JOURNEYMAN FURNITURE SPEC,"19,680.51",FISCAL YEAR 2014,"","","","MARTIN, CHRISTOPHER W"
,CHIEF ADMIN OFCR OF THE HOUSE,2013Q4,PERSONNEL COMPENSATION,"","MARTINEZ, JAIME D",10/01/13,12/31/13,SENIOR SYSTEMS ENGINEER,"27,946.26",FISCAL YEAR 2014,"","","","MARTINEZ, JAIME D"
,CHIEF ADMIN OFCR OF THE HOUSE,2013Q4,PERSONNEL COMPENSATION,"","MARTINS, RICHARD",10/01/13,12/31/13,MANAGER NETWORK CONFIG. MNGMNT,"33,938.25",FISCAL YEAR 2014,"","","","MARTINS, RICHARD"
,CHIEF ADMIN OFCR OF THE HOUSE,2013Q4,PERSONNEL COMPENSATION,"","MASHETER JR, FREDERICK J",10/01/13,12/31/13,PURCHASING AGENT,"14,807.25",FISCAL YEAR 2014,"","","","MASHETER JR, FREDERICK J"
,CHIEF ADMIN OFCR OF THE HOUSE,2013Q4,PERSONNEL COMPENSATION,"","MASHETER JR, FREDERICK J",10/01/13,10/31/13,PURCHASING AGENT (OVERTIME),28.48,FISCAL YEAR 2014,"","","","MASHETER JR, FREDERICK J"
,CHIEF ADMIN OFCR OF THE HOUSE,2013Q4,PERSONNEL COMPENSATION,"","MASON, TRON",10/01/13,12/31/13,SR NETWORK COMM SPEC,"24,595.50",FISCAL YEAR 2014,"","","","MASON, TRON"
,CHIEF ADMIN OFCR OF THE HOUSE,2013Q4,PERSONNEL COMPENSATION,"","MASSENGALE, DOUG",10/01/13,11/30/13,SR BROADCAST ENG/PROD SPECLST,"16,696.34",FISCAL YEAR 2014,"","","","MASSENGALE, DOUG"
,CHIEF ADMIN OFCR OF THE HOUSE,2013Q4,PERSONNEL COMPENSATION,"","MASSENGALE, DOUG",12/01/13,12/31/13,CHIEF ENGINEER,"10,320.08",FISCAL YEAR 2014,"","","","MASSENGALE, DOUG"
,CHIEF ADMIN OFCR OF THE HOUSE,2013Q4,PERSONNEL COMPENSATION,"","MASSENGALE, DOUG",10/01/13,10/31/13,SR BROADCAST ENG/PROD SPECLST (OVERTIME),361.21,FISCAL YEAR 2014,"","","","MASSENGALE, DOUG"
,CHIEF ADMIN OFCR OF THE HOUSE,2013Q4,PERSONNEL COMPENSATION,"","MATADIAL, GLORIA V",10/01/13,12/31/13,SUPERVISOR,"28,454.01",FISCAL YEAR 2014,"","","","MATADIAL, GLORIA V"
,CHIEF ADMIN OFCR OF THE HOUSE,2013Q4,PERSONNEL COMPENSATION,"","MATHIS,MARC R",10/01/13,12/31/13,NETWORK TECHNICIAN,"19,502.49",FISCAL YEAR 2014,"","","","MATHIS,MARC R"
,CHIEF ADMIN OFCR OF THE HOUSE,2013Q4,PERSONNEL COMPENSATION,"","MATTHEWS,LEVI S",10/01/13,12/31/13,SUPERVISOR,"22,360.50",FISCAL YEAR 2014,"","","","MATTHEWS,LEVI S"
,CHIEF ADMIN OFCR OF THE HOUSE,2013Q4,PERSONNEL COMPENSATION,"","MAULDIN,EVAN B",10/01/13,12/31/13,FINANCIAL ANALYST,"19,502.49",FISCAL YEAR 2014,"","","","MAULDIN,EVAN B"
,CHIEF ADMIN OFCR OF THE HOUSE,2013Q4,PERSONNEL COMPENSATION,"","MAZZULLO, MICHAEL A",10/01/13,12/31/13,RECEIVING/WAREHOUSE SPEC,"11,274.00",FISCAL YEAR 2014,"","","","MAZZULLO, MICHAEL A"
,CHIEF ADMIN OFCR OF THE HOUSE,2013Q4,PERSONNEL COMPENSATION,"","MCBRIDE-CHAMBERS, LISBETH",10/01/13,12/31/13,SR EA COUNSELOR,"32,010.99",FISCAL YEAR 2014,"","","","MCBRIDE-CHAMBERS, LISBETH"
,CHIEF ADMIN OFCR OF THE HOUSE,2013Q4,PERSONNEL COMPENSATION,"","MCCAULEY, ERICA C",10/01/13,12/31/13,FINANCIAL COUNSELOR,"15,789.00",FISCAL YEAR 2014,"","","","MCCAULEY, ERICA C"
,CHIEF ADMIN OFCR OF THE HOUSE,2013Q4,PERSONNEL COMPENSATION,"","MCCUE, BRIAN M",10/01/13,12/31/13,FINANCIAL ANALYST,"18,329.01",FISCAL YEAR 2014,"","","","MCCUE, BRIAN M"
,CHIEF ADMIN OFCR OF THE HOUSE,2013Q4,PERSONNEL COMPENSATION,"","MCDONALD, BRADLEY A",10/01/13,12/31/13,"MANAGER, ENTERPRISE APPL SUPP","35,160.75",FISCAL YEAR 2014,"","","","MCDONALD, BRADLEY A"
,CHIEF ADMIN OFCR OF THE HOUSE,2013Q4,PERSONNEL COMPENSATION,"","MCFADDEN, SAINT JUAN",10/01/13,12/31/13,SR PAYROLL & BENS GENERALIST,"20,323.74",FISCAL YEAR 2014,"","","","MCFADDEN, SAINT JUAN"
,CHIEF ADMIN OFCR OF THE HOUSE,2013Q4,PERSONNEL COMPENSATION,"","MCFADDEN,MIRANDA J",10/01/13,12/31/13,FINANCIAL ANALYST,"21,663.00",FISCAL YEAR 2014,"","","","MCFADDEN,MIRANDA J"
,CHIEF ADMIN OFCR OF THE HOUSE,2013Q4,PERSONNEL COMPENSATION,"","MCGARRY, THOMAS K",10/01/13,12/31/13,JOURNEYMAN FURNITURE SPEC,"19,680.51",FISCAL YEAR 2014,"","","","MCGARRY, THOMAS K"
,CHIEF ADMIN OFCR OF THE HOUSE,2013Q4,PERSONNEL COMPENSATION,"","MCKITTRICK, DAVID E",10/01/13,12/31/13,SR BUSINESS PROCESS APPL SPEC,"37,001.25",FISCAL YEAR 2014,"","","","MCKITTRICK, DAVID E"
,CHIEF ADMIN OFCR OF THE HOUSE,2013Q4,PERSONNEL COMPENSATION,"","MCLEAN,MATTHEW",10/01/13,12/31/13,DIRECTOR ENTERPRISE OPERATIONS,"36,177.99",FISCAL YEAR 2014,"","","","MCLEAN,MATTHEW"
,CHIEF ADMIN OFCR OF THE HOUSE,2013Q4,PERSONNEL COMPENSATION,"","MEEK, KATHRYN H",10/01/13,12/31/13,SR INTERNET SYSTEMS SPECIALIST,"33,173.76",FISCAL YEAR 2014,"","","","MEEK, KATHRYN H"
,CHIEF ADMIN OFCR OF THE HOUSE,2013Q4,PERSONNEL COMPENSATION,"","MEISTER, DARLENE T",10/01/13,12/31/13,"DIR, DIVERSITY & ORG CHGE MGT","33,323.25",FISCAL YEAR 2014,"","","","MEISTER, DARLENE T"
,CHIEF ADMIN OFCR OF THE HOUSE,2013Q4,PERSONNEL COMPENSATION,"","MELVIN, MICHAEL C",10/01/13,12/31/13,TECHNICAL SUPPORT REP,"19,894.74",FISCAL YEAR 2014,"","","","MELVIN, MICHAEL C"
,CHIEF ADMIN OFCR OF THE HOUSE,2013Q4,PERSONNEL COMPENSATION,"","MENDOZA,LYDIA",10/01/13,12/31/13,PAYROLL & BENEFITS GENERALIST,"16,569.24",FISCAL YEAR 2014,"","","","MENDOZA,LYDIA"
,CHIEF ADMIN OFCR OF THE HOUSE,2013Q4,PERSONNEL COMPENSATION,"","MENDOZA,LYDIA",10/01/13,10/31/13,PAYROLL & BENEFITS GENERALIST (OVERTIME),653.20,FISCAL YEAR 2014,"","","","MENDOZA,LYDIA"
,CHIEF ADMIN OFCR OF THE HOUSE,2013Q4,PERSONNEL COMPENSATION,"","MEREDITH, DWAINE",10/01/13,12/31/13,LOGISTICS & DIST SPEC (A),"10,194.17",FISCAL YEAR 2014,"","","","MEREDITH, DWAINE"
,CHIEF ADMIN OFCR OF THE HOUSE,2013Q4,PERSONNEL COMPENSATION,"","METZLER,FRANMARIE",10/01/13,11/22/13,PHOTOGRAPHER/LAB TECH (TEMP),"7,235.60",FISCAL YEAR 2014,"","","","METZLER,FRANMARIE"
,CHIEF ADMIN OFCR OF THE HOUSE,2013Q4,PERSONNEL COMPENSATION,"","MICHALEK, WILLIAM",10/01/13,12/31/13,BILLING ADMINISTRATOR,"17,175.99",FISCAL YEAR 2014,"","","","MICHALEK, WILLIAM"
,CHIEF ADMIN OFCR OF THE HOUSE,2013Q4,PERSONNEL COMPENSATION,"","MILASI, FRANCESCO",10/01/13,12/31/13,SENIOR NETWORK TECHNICIAN (A),"23,888.25",FISCAL YEAR 2014,"","","","MILASI, FRANCESCO"
,CHIEF ADMIN OFCR OF THE HOUSE,2013Q4,PERSONNEL COMPENSATION,"","MILLER JR, LOUIS",10/01/13,12/31/13,PURCHASING AGENT,"13,798.50",FISCAL YEAR 2014,"","","","MILLER JR, LOUIS"
,CHIEF ADMIN OFCR OF THE HOUSE,2013Q4,PERSONNEL COMPENSATION,"","MILLER, KEITH E",10/01/13,12/31/13,BROADCAST PRODUCTION TECHNICIA,"22,551.00",FISCAL YEAR 2014,"","","","MILLER, KEITH E"
,CHIEF ADMIN OFCR OF THE HOUSE,2013Q4,PERSONNEL COMPENSATION,"","MILLER, KEITH E",10/01/13,10/31/13,BROADCAST PRODUCTION TECHNICIA (OVERTIME),325.25,FISCAL YEAR 2014,"","","","MILLER, KEITH E"
,CHIEF ADMIN OFCR OF THE HOUSE,2013Q4,PERSONNEL COMPENSATION,"","MILLER,MICHAEL A",10/01/13,12/31/13,"MANAGER, PROD AND SUPPORT","26,082.74",FISCAL YEAR 2014,"","","","MILLER,MICHAEL A"
,CHIEF ADMIN OFCR OF THE HOUSE,2013Q4,PERSONNEL COMPENSATION,"","MILLER,SHAWN",10/01/13,12/31/13,GRAPHICS & DESKTOP PUBL SPEC,"16,569.24",FISCAL YEAR 2014,"","","","MILLER,SHAWN"
,CHIEF ADMIN OFCR OF THE HOUSE,2013Q4,PERSONNEL COMPENSATION,"","MILLER-LAMILL, ELOISE R",10/01/13,12/31/13,BROADCAST PRODUCTION TECHNICIA,"22,551.00",FISCAL YEAR 2014,"","","","MILLER-LAMILL, ELOISE R"
,CHIEF ADMIN OFCR OF THE HOUSE,2013Q4,PERSONNEL COMPENSATION,"","MILLER-LAMILL, ELOISE R",10/01/13,11/30/13,BROADCAST PRODUCTION TECHNICIA (OVERTIME),"2,883.90",FISCAL YEAR 2014,"","","","MILLER-LAMILL, ELOISE R"
,CHIEF ADMIN OFCR OF THE HOUSE,2013Q4,PERSONNEL COMPENSATION,"","MINOR,LESLIE",10/01/13,12/31/13,FINANCIAL COUNSELOR,"16,569.24",FISCAL YEAR 2014,"","","","MINOR,LESLIE"
,CHIEF ADMIN OFCR OF THE HOUSE,2013Q4,PERSONNEL COMPENSATION,"","MINTON, DONNA",10/01/13,12/31/13,BUSINESS PROC APPLIC SPEC,"27,946.26",FISCAL YEAR 2014,"","","","MINTON, DONNA"
,CHIEF ADMIN OFCR OF THE HOUSE,2013Q4,PERSONNEL COMPENSATION,"","MINTURN, JOHN J",10/01/13,12/31/13,INFO SYSTEMS SECURITY MNGR,"32,302.17",FISCAL YEAR 2014,"","","","MINTURN, JOHN J"
,CHIEF ADMIN OFCR OF THE HOUSE,2013Q4,PERSONNEL COMPENSATION,"","MITTAL, RAHUL V",10/01/13,12/31/13,RISK AND INTERNAL CTRL ANALYST,"23,256.00",FISCAL YEAR 2014,"","","","MITTAL, RAHUL V"
,CHIEF ADMIN OFCR OF THE HOUSE,2013Q4,PERSONNEL COMPENSATION,"","MODICA, MICHAEL",10/01/13,12/31/13,CUSTOMER RELATIONS MANAGER,"31,512.51",FISCAL YEAR 2014,"","","","MODICA, MICHAEL"
,CHIEF ADMIN OFCR OF THE HOUSE,2013Q4,PERSONNEL COMPENSATION,"","MOE, NELSON P",10/01/13,12/31/13,CHIEF INFORMATION OFFICER,"42,102.75",FISCAL YEAR 2014,"","","","MOE, NELSON P"
,CHIEF ADMIN OFCR OF THE HOUSE,2013Q4,PERSONNEL COMPENSATION,"","MOLL, ANDREW C",10/01/13,12/31/13,SR INTERNET SYSTEMS SPECIALIST,"33,729.51",FISCAL YEAR 2014,"","","","MOLL, ANDREW C"
,CHIEF ADMIN OFCR OF THE HOUSE,2013Q4,PERSONNEL COMPENSATION,"","MONAHAN, TIMOTHY J",10/01/13,12/31/13,SPECIAL ASSISTANT,"18,719.25",FISCAL YEAR 2014,"","","","MONAHAN, TIMOTHY J"
,CHIEF ADMIN OFCR OF THE HOUSE,2013Q4,PERSONNEL COMPENSATION,"","MONAHAN, TIMOTHY J",11/01/13,11/30/13,SPECIAL ASSISTANT (OTHER COMPENSATION),"2,000.00",FISCAL YEAR 2014,"","","","MONAHAN, TIMOTHY J"
,CHIEF ADMIN OFCR OF THE HOUSE,2013Q4,PERSONNEL COMPENSATION,"","MOORE II,GARY L",10/01/13,12/31/13,SENIOR NETWORK TECHNICIAN,"17,544.51",FISCAL YEAR 2014,"","","","MOORE II,GARY L"
,CHIEF ADMIN OFCR OF THE HOUSE,2013Q4,PERSONNEL COMPENSATION,"","MOORE, EDWARDA P",10/01/13,12/31/13,FINANCIAL COUNSELOR,"19,894.74",FISCAL YEAR 2014,"","","","MOORE, EDWARDA P"
,CHIEF ADMIN OFCR OF THE HOUSE,2013Q4,PERSONNEL COMPENSATION,"","MORA,CARLOS",10/01/13,12/31/13,BROADCAST ENGINEER/PROD SPEC,"21,663.00",FISCAL YEAR 2014,"","","","MORA,CARLOS"
,CHIEF ADMIN OFCR OF THE HOUSE,2013Q4,PERSONNEL COMPENSATION,"","MORETTI, SCOTT A",10/01/13,12/31/13,NETWORK TECHNICIAN,"22,107.00",FISCAL YEAR 2014,"","","","MORETTI, SCOTT A"
,CHIEF ADMIN OFCR OF THE HOUSE,2013Q4,PERSONNEL COMPENSATION,"","MORGAN,CODY R",10/01/13,12/31/13,JOURNEYMAN TEXTILE SPEC,"16,179.24",FISCAL YEAR 2014,"","","","MORGAN,CODY R"
